Workbook

Sheet Macros Required
B1: ="Macros Required - " & title -> Macros Required - Budget Business
B3: Macros must be enabled for this application to function.
B5: Please refer to your spreadsheet Help for details on how to enable macros.
B7: Suitability must be independently assessed and use indicates acceptance of any and all associated risk.

Sheet Welcome
B1: Budget Business
B3: Build: 20220225 by bizpep.com
B5: The Budget Tool Business provides a streamlined and effective means to generate a budget for up to five years. Full flexibility allows you to add Revenue, Variable Cost and Fixed Cost categories and lines to suit any business. Operation is via an easy to use toolbar and function buttons. The budget can be displayed in any combination of month, quarter, or year. Change indicators provide means to adjust revenue and costs year on year with initial default values applied to minimize input requirements and simplify use. Full what if and sensitivity analysis is available by varying the Change indicators. Budgets can be freely formatted for printing and graphing. The Budget Tool Business is suitable for both existing and proposed businesses.
B7: To start use the sheet tabs to select the Input sheet.
B8: Input is in the blue cells. Non-input cells are protected to maintain formula integrity.
B9: Instruction Sheet
B11: =IF(Scratch!B55=TRUE,"Current license subscriptions can be managed directly from your PayPal account.","In evaluation mode functionality is restriced.") -> In evaluation mode functionality is restriced.
B12: =IF(Scratch!B55=TRUE,"On renewal new License Details will be emailed. You can purchase at new license at:","To fully enable this application please purchase a license at:") -> To fully enable this application please purchase a license at:
B13: https://bizpep.com/budgetbusiness.html?display=license
B14: =IF(Scratch!B55=TRUE,"Current license details fully enable your application","License Details are sent by email, on reciept input license details to fully enable your application.") -> License Details are sent by email, on reciept input license details to fully enable your application.
B17: Application License Details:
B18: Licensed Email Address:
B19: License Code:
B20: License Valid to Date: | C20: =IF(Scratch!B55=TRUE,Scratch!C55,"Not Licensed, for Evaluation Only.") -> Not Licensed, for Evaluation Only.
B22: Suitability must be independently assessed and use indicates acceptance of any and all associated risk.

Sheet Input
B5: ="Input - " &title -> Input - Budget Business
B6: Blue cells require input. Yellow cells may be overwritten if desired. For instructions
B7: place your mouse over the red markers or view the | D7: Instruction Sheet.
A8: 91 | CX8: BK
B9: Budget Title | CX9: BT
A10: B | B10: T | C10: YTD | D10: Rem | E10: FY | F10: C | G10: M | H10: M | I10: M | J10: Q | K10: M | L10: M | M10: M | N10: Q | O10: M | P10: M | Q10: M | R10: Q | S10: M | T10: M | U10: M | V10: Q | W10: Y | X10: V | Y10: C | Z10: M | AA10: M | AB10: M | AC10: Q | AD10: M | AE10: M | AF10: M | AG10: Q | AH10: M | AI10: M | AJ10: M | AK10: Q | AL10: M | AM10: M | AN10: M | AO10: Q | AP10: Y | AQ10: V | AR10: C | AS10: M | AT10: M | AU10: M | AV10: Q | AW10: M | AX10: M | AY10: M | AZ10: Q | BA10: M | BB10: M | BC10: M | BD10: Q | BE10: M | BF10: M | BG10: M | BH10: Q | BI10: Y | BJ10: V | BK10: C | BL10: M | BM10: M | BN10: M | BO10: Q | BP10: M | BQ10: M | BR10: M | BS10: Q | BT10: M | BU10: M | BV10: M | BW10: Q | BX10: M | BY10: M | BZ10: M | CA10: Q | CB10: Y | CC10: V | CD10: C | CE10: M | CF10: M | CG10: M | CH10: Q | CI10: M | CJ10: M | CK10: M | CL10: Q | CM10: M | CN10: M | CO10: M | CP10: Q | CQ10: M | CR10: M | CS10: M | CT10: Q | CU10: Y | CV10: V | CW10: B | CX10: T
B11: Show Details | D11: Show Year
C15: Current | D15: =+C15 -> Current | E15: =+C15 -> Current | F15: Year 1 | G15: =$F$15 -> Year 1 | H15: =$F$15 -> Year 1 | I15: Year 1 | J15: Year 1 | K15: Year 1 | L15: Year 1 | M15: Year 1 | N15: Year 1 | O15: Year 1 | P15: Year 1 | Q15: Year 1 | R15: Year 1 | S15: Year 1 | T15: Year 1 | U15: Year 1 | V15: Year 1 | W15: Year 1 | X15: Year 1 | Y15: Year 2 | Z15: =$Y$15 -> Year 2 | AA15: =$Y$15 -> Year 2 | AB15: Year 2 | AC15: Year 2 | AD15: Year 2 | AE15: Year 2 | AF15: Year 2 | AG15: Year 2 | AH15: Year 2 | AI15: Year 2 | AJ15: Year 2 | AK15: Year 2 | AL15: Year 2 | AM15: Year 2 | AN15: Year 2 | AO15: Year 2 | AP15: Year 2 | AQ15: Year 2 | AR15: Year 3 | AS15: Year 3 | AT15: Year 3 | AU15: Year 3 | AV15: Year 3 | AW15: Year 3 | AX15: Year 3 | AY15: Year 3 | AZ15: Year 3 | BA15: Year 3 | BB15: Year 3 | BC15: Year 3 | BD15: Year 3 | BE15: Year 3 | BF15: Year 3 | BG15: Year 3 | BH15: Year 3 | BI15: Year 3 | BJ15: Year 3 | BK15: Year 4 | BL15: =$BK$15 -> Year 4 | BM15: =$BK$15 -> Year 4 | BN15: Year 4 | BO15: Year 4 | BP15: Year 4 | BQ15: Year 4 | BR15: Year 4 | BS15: Year 4 | BT15: Year 4 | BU15: Year 4 | BV15: Year 4 | BW15: Year 4 | BX15: Year 4 | BY15: Year 4 | BZ15: Year 4 | CA15: Year 4 | CB15: Year 4 | CC15: Year 4 | CD15: Year 5 | CE15: =$CD$15 -> Year 5 | CF15: =$CD$15 -> Year 5 | CG15: Year 5 | CH15: Year 5 | CI15: Year 5 | CJ15: Year 5 | CK15: Year 5 | CL15: Year 5 | CM15: Year 5 | CN15: Year 5 | CO15: Year 5 | CP15: Year 5 | CQ15: Year 5 | CR15: Year 5 | CS15: Year 5 | CT15: Year 5 | CU15: Year 5 | CV15: Year 5
C16: YTD Mths | D16: Mths Left | E16: Full Year | F16: Change | G16: 2022-04-10 | H16: =G16 + 31 -> 2022-05-11 | I16: 2022-06-11 | J16: Quarter 1 | K16: =I16 + 31 -> 2022-07-12 | L16: =K16 + 31 -> 2022-08-12 | M16: 2022-09-12 | N16: Quarter 2 | O16: =M16 + 31 -> 2022-10-13 | P16: =O16 + 31 -> 2022-11-13 | Q16: 2022-12-14 | R16: Quarter 3 | S16: =Q16 + 31 -> 2023-01-14 | T16: =S16 + 31 -> 2023-02-14 | U16: 2023-03-17 | V16: Quarter 4 | W16: Full Year | X16: Variation | Y16: =$F$16 -> Change | Z16: =G16 + 366 -> 2023-04-11 | AA16: 2023-05-12 | AB16: 2023-06-12 | AC16: =J16 -> Quarter 1 | AD16: 2023-07-13 | AE16: 2023-08-13 | AF16: 2023-09-13 | AG16: =N16 -> Quarter 2 | AH16: 2023-10-14 | AI16: 2023-11-14 | AJ16: 2023-12-15 | AK16: =R16 -> Quarter 3 | AL16: 2024-01-15 | AM16: 2024-02-15 | AN16: 2024-03-17 | AO16: =V16 -> Quarter 4 | AP16: =W16 -> Full Year | AQ16: =X16 -> Variation | AR16: =$F$16 -> Change | AS16: =G16 + 731 -> 2024-04-10 | AT16: 2024-05-11 | AU16: 2024-06-11 | AV16: =J16 -> Quarter 1 | AW16: 2024-07-12 | AX16: 2024-08-12 | AY16: 2024-09-12 | AZ16: =N16 -> Quarter 2 | BA16: 2024-10-13 | BB16: 2024-11-13 | BC16: 2024-12-14 | BD16: =R16 -> Quarter 3 | BE16: 2025-01-14 | BF16: 2025-02-14 | BG16: 2025-03-17 | BH16: =V16 -> Quarter 4 | BI16: =W16 -> Full Year | BJ16: =X16 -> Variation | BK16: =$F$16 -> Change | BL16: =G16 + 1096 -> 2025-04-10 | BM16: 2025-05-11 | BN16: 2025-06-11 | BO16: =J16 -> Quarter 1 | BP16: 2025-07-12 | BQ16: 2025-08-12 | BR16: 2025-09-12 | BS16: =N16 -> Quarter 2 | BT16: 2025-10-13 | BU16: 2025-11-13 | BV16: 2025-12-14 | BW16: =R16 -> Quarter 3 | BX16: 2026-01-14 | BY16: 2026-02-14 | BZ16: 2026-03-17 | CA16: =V16 -> Quarter 4 | CB16: =W16 -> Full Year | CC16: =X16 -> Variation | CD16: =$F$16 -> Change | CE16: =G16 + 1461 -> 2026-04-10 | CF16: 2026-05-11 | CG16: 2026-06-11 | CH16: =J16 -> Quarter 1 | CI16: 2026-07-12 | CJ16: 2026-08-12 | CK16: 2026-09-12 | CL16: =N16 -> Quarter 2 | CM16: 2026-10-13 | CN16: 2026-11-13 | CO16: 2026-12-14 | CP16: =R16 -> Quarter 3 | CQ16: 2027-01-14 | CR16: 2027-02-14 | CS16: 2027-03-17 | CT16: =V16 -> Quarter 4 | CU16: =W16 -> Full Year | CV16: =X16 -> Variation | CX16: YT
C17: 12 | D17: =12-YTDMonths -> 0 | F17: Values | Y17: =$F$17 -> Values | AR17: =$F$17 -> Values | BK17: =$F$17 -> Values | CD17: =$F$17 -> Values
F19: % by Mth | G19: =1 / 12 -> 0.08333333333 | H19: 0.08333333333 | I19: 0.08333333333 | J19: =SUM(G19:I19) -> 0.25 | K19: =1 / 12 -> 0.08333333333 | L19: 0.08333333333 | M19: 0.08333333333 | N19: =SUM(K19:M19) -> 0.25 | O19: =1 / 12 -> 0.08333333333 | P19: 0.08333333333 | Q19: 0.08333333333 | R19: =SUM(O19:Q19) -> 0.25 | S19: =1 / 12 -> 0.08333333333 | T19: 0.08333333333 | U19: =+W19-(SUM(R19:T19)+N19+J19) -> 0.08333333333 | V19: =SUM(S19:U19) -> 0.25 | W19: 1 | Z19: =G19 -> 0.08333333333 | AA19: =H19 -> 0.08333333333 | AB19: =I19 -> 0.08333333333 | AC19: =SUM(Z19:AB19) -> 0.25 | AD19: =K19 -> 0.08333333333 | AE19: =L19 -> 0.08333333333 | AF19: =M19 -> 0.08333333333 | AG19: =SUM(AD19:AF19) -> 0.25 | AH19: =O19 -> 0.08333333333 | AI19: =P19 -> 0.08333333333 | AJ19: =Q19 -> 0.08333333333 | AK19: =SUM(AH19:AJ19) -> 0.25 | AL19: =S19 -> 0.08333333333 | AM19: =T19 -> 0.08333333333 | AN19: =+AP19-(SUM(AK19:AM19)+AG19+AC19) -> 0.08333333333 | AO19: =SUM(AL19:AN19) -> 0.25 | AP19: 1 | AS19: =G19 -> 0.08333333333 | AT19: =H19 -> 0.08333333333 | AU19: =I19 -> 0.08333333333 | AV19: =SUM(AS19:AU19) -> 0.25 | AW19: =K19 -> 0.08333333333 | AX19: =L19 -> 0.08333333333 | AY19: =M19 -> 0.08333333333 | AZ19: =SUM(AW19:AY19) -> 0.25 | BA19: =O19 -> 0.08333333333 | BB19: =P19 -> 0.08333333333 | BC19: =Q19 -> 0.08333333333 | BD19: =SUM(BA19:BC19) -> 0.25 | BE19: =S19 -> 0.08333333333 | BF19: =T19 -> 0.08333333333 | BG19: =+BI19-(SUM(BD19:BF19)+AZ19+AV19) -> 0.08333333333 | BH19: =SUM(BE19:BG19) -> 0.25 | BI19: 1 | BL19: =G19 -> 0.08333333333 | BM19: =H19 -> 0.08333333333 | BN19: =I19 -> 0.08333333333 | BO19: =SUM(BL19:BN19) -> 0.25 | BP19: =K19 -> 0.08333333333 | BQ19: =L19 -> 0.08333333333 | BR19: =M19 -> 0.08333333333 | BS19: =SUM(BP19:BR19) -> 0.25 | BT19: =O19 -> 0.08333333333 | BU19: =P19 -> 0.08333333333 | BV19: =Q19 -> 0.08333333333 | BW19: =SUM(BT19:BV19) -> 0.25 | BX19: =S19 -> 0.08333333333 | BY19: =T19 -> 0.08333333333 | BZ19: =+CB19-(SUM(BW19:BY19)+BS19+BO19) -> 0.08333333333 | CA19: =SUM(BX19:BZ19) -> 0.25 | CB19: 1 | CE19: =G19 -> 0.08333333333 | CF19: =H19 -> 0.08333333333 | CG19: =I19 -> 0.08333333333 | CH19: =SUM(CE19:CG19) -> 0.25 | CI19: =K19 -> 0.08333333333 | CJ19: =L19 -> 0.08333333333 | CK19: =M19 -> 0.08333333333 | CL19: =SUM(CI19:CK19) -> 0.25 | CM19: =O19 -> 0.08333333333 | CN19: =P19 -> 0.08333333333 | CO19: =Q19 -> 0.08333333333 | CP19: =SUM(CM19:CO19) -> 0.25 | CQ19: =S19 -> 0.08333333333 | CR19: =T19 -> 0.08333333333 | CS19: =+CU19-(SUM(CP19:CR19)+CL19+CH19) -> 0.08333333333 | CT19: =SUM(CQ19:CS19) -> 0.25 | CU19: 1
F21: Inc/Dec | Y21: =+$F21 -> Inc/Dec | AR21: =+$F21 -> Inc/Dec | BK21: =+$F21 -> Inc/Dec | CD21: =+$F21 -> Inc/Dec
F22: 0 | Y22: =F22 -> 0 | AR22: =F22 -> 0 | BK22: =F22 -> 0 | CD22: =F22 -> 0
B23: Title Revenue | CX23: RA
CX24: RI
B25: Total Base Revenue | G25: =SUMIF($CX$1:$CX24,"RLB",G$1:G24) -> 0 | H25: =SUMIF($CX$1:$CX24,"RLB",H$1:H24) -> 0 | I25: =SUMIF($CX$1:$CX24,"RLB",I$1:I24) -> 0 | J25: =SUMIF($CX$1:$CX24,"RLB",J$1:J24) -> 0 | K25: =SUMIF($CX$1:$CX24,"RLB",K$1:K24) -> 0 | L25: =SUMIF($CX$1:$CX24,"RLB",L$1:L24) -> 0 | M25: =SUMIF($CX$1:$CX24,"RLB",M$1:M24) -> 0 | N25: =SUMIF($CX$1:$CX24,"RLB",N$1:N24) -> 0 | O25: =SUMIF($CX$1:$CX24,"RLB",O$1:O24) -> 0 | P25: =SUMIF($CX$1:$CX24,"RLB",P$1:P24) -> 0 | Q25: =SUMIF($CX$1:$CX24,"RLB",Q$1:Q24) -> 0 | R25: =SUMIF($CX$1:$CX24,"RLB",R$1:R24) -> 0 | S25: =SUMIF($CX$1:$CX24,"RLB",S$1:S24) -> 0 | T25: =SUMIF($CX$1:$CX24,"RLB",T$1:T24) -> 0 | U25: =SUMIF($CX$1:$CX24,"RLB",U$1:U24) -> 0 | V25: =SUMIF($CX$1:$CX24,"RLB",V$1:V24) -> 0 | W25: =SUMIF($CX$1:$CX24,"RLB",W$1:W24) -> 0 | Z25: =SUMIF($CX$1:$CX24,"RLB",Z$1:Z24) -> 0 | AA25: =SUMIF($CX$1:$CX24,"RLB",AA$1:AA24) -> 0 | AB25: =SUMIF($CX$1:$CX24,"RLB",AB$1:AB24) -> 0 | AC25: =SUMIF($CX$1:$CX24,"RLB",AC$1:AC24) -> 0 | AD25: =SUMIF($CX$1:$CX24,"RLB",AD$1:AD24) -> 0 | AE25: =SUMIF($CX$1:$CX24,"RLB",AE$1:AE24) -> 0 | AF25: =SUMIF($CX$1:$CX24,"RLB",AF$1:AF24) -> 0 | AG25: =SUMIF($CX$1:$CX24,"RLB",AG$1:AG24) -> 0 | AH25: =SUMIF($CX$1:$CX24,"RLB",AH$1:AH24) -> 0 | AI25: =SUMIF($CX$1:$CX24,"RLB",AI$1:AI24) -> 0 | AJ25: =SUMIF($CX$1:$CX24,"RLB",AJ$1:AJ24) -> 0 | AK25: =SUMIF($CX$1:$CX24,"RLB",AK$1:AK24) -> 0 | AL25: =SUMIF($CX$1:$CX24,"RLB",AL$1:AL24) -> 0 | AM25: =SUMIF($CX$1:$CX24,"RLB",AM$1:AM24) -> 0 | AN25: =SUMIF($CX$1:$CX24,"RLB",AN$1:AN24) -> 0 | AO25: =SUMIF($CX$1:$CX24,"RLB",AO$1:AO24) -> 0 | AP25: =SUMIF($CX$1:$CX24,"RLB",AP$1:AP24) -> 0 | AS25: =SUMIF($CX$1:$CX24,"RLB",AS$1:AS24) -> 0 | AT25: =SUMIF($CX$1:$CX24,"RLB",AT$1:AT24) -> 0 | AU25: =SUMIF($CX$1:$CX24,"RLB",AU$1:AU24) -> 0 | AV25: =SUMIF($CX$1:$CX24,"RLB",AV$1:AV24) -> 0 | AW25: =SUMIF($CX$1:$CX24,"RLB",AW$1:AW24) -> 0 | AX25: =SUMIF($CX$1:$CX24,"RLB",AX$1:AX24) -> 0 | AY25: =SUMIF($CX$1:$CX24,"RLB",AY$1:AY24) -> 0 | AZ25: =SUMIF($CX$1:$CX24,"RLB",AZ$1:AZ24) -> 0 | BA25: =SUMIF($CX$1:$CX24,"RLB",BA$1:BA24) -> 0 | BB25: =SUMIF($CX$1:$CX24,"RLB",BB$1:BB24) -> 0 | BC25: =SUMIF($CX$1:$CX24,"RLB",BC$1:BC24) -> 0 | BD25: =SUMIF($CX$1:$CX24,"RLB",BD$1:BD24) -> 0 | BE25: =SUMIF($CX$1:$CX24,"RLB",BE$1:BE24) -> 0 | BF25: =SUMIF($CX$1:$CX24,"RLB",BF$1:BF24) -> 0 | BG25: =SUMIF($CX$1:$CX24,"RLB",BG$1:BG24) -> 0 | BH25: =SUMIF($CX$1:$CX24,"RLB",BH$1:BH24) -> 0 | BI25: =SUMIF($CX$1:$CX24,"RLB",BI$1:BI24) -> 0 | BL25: =SUMIF($CX$1:$CX24,"RLB",BL$1:BL24) -> 0 | BM25: =SUMIF($CX$1:$CX24,"RLB",BM$1:BM24) -> 0 | BN25: =SUMIF($CX$1:$CX24,"RLB",BN$1:BN24) -> 0 | BO25: =SUMIF($CX$1:$CX24,"RLB",BO$1:BO24) -> 0 | BP25: =SUMIF($CX$1:$CX24,"RLB",BP$1:BP24) -> 0 | BQ25: =SUMIF($CX$1:$CX24,"RLB",BQ$1:BQ24) -> 0 | BR25: =SUMIF($CX$1:$CX24,"RLB",BR$1:BR24) -> 0 | BS25: =SUMIF($CX$1:$CX24,"RLB",BS$1:BS24) -> 0 | BT25: =SUMIF($CX$1:$CX24,"RLB",BT$1:BT24) -> 0 | BU25: =SUMIF($CX$1:$CX24,"RLB",BU$1:BU24) -> 0 | BV25: =SUMIF($CX$1:$CX24,"RLB",BV$1:BV24) -> 0 | BW25: =SUMIF($CX$1:$CX24,"RLB",BW$1:BW24) -> 0 | BX25: =SUMIF($CX$1:$CX24,"RLB",BX$1:BX24) -> 0 | BY25: =SUMIF($CX$1:$CX24,"RLB",BY$1:BY24) -> 0 | BZ25: =SUMIF($CX$1:$CX24,"RLB",BZ$1:BZ24) -> 0 | CA25: =SUMIF($CX$1:$CX24,"RLB",CA$1:CA24) -> 0 | CB25: =SUMIF($CX$1:$CX24,"RLB",CB$1:CB24) -> 0 | CE25: =SUMIF($CX$1:$CX24,"RLB",CE$1:CE24) -> 0 | CF25: =SUMIF($CX$1:$CX24,"RLB",CF$1:CF24) -> 0 | CG25: =SUMIF($CX$1:$CX24,"RLB",CG$1:CG24) -> 0 | CH25: =SUMIF($CX$1:$CX24,"RLB",CH$1:CH24) -> 0 | CI25: =SUMIF($CX$1:$CX24,"RLB",CI$1:CI24) -> 0 | CJ25: =SUMIF($CX$1:$CX24,"RLB",CJ$1:CJ24) -> 0 | CK25: =SUMIF($CX$1:$CX24,"RLB",CK$1:CK24) -> 0 | CL25: =SUMIF($CX$1:$CX24,"RLB",CL$1:CL24) -> 0 | CM25: =SUMIF($CX$1:$CX24,"RLB",CM$1:CM24) -> 0 | CN25: =SUMIF($CX$1:$CX24,"RLB",CN$1:CN24) -> 0 | CO25: =SUMIF($CX$1:$CX24,"RLB",CO$1:CO24) -> 0 | CP25: =SUMIF($CX$1:$CX24,"RLB",CP$1:CP24) -> 0 | CQ25: =SUMIF($CX$1:$CX24,"RLB",CQ$1:CQ24) -> 0 | CR25: =SUMIF($CX$1:$CX24,"RLB",CR$1:CR24) -> 0 | CS25: =SUMIF($CX$1:$CX24,"RLB",CS$1:CS24) -> 0 | CT25: =SUMIF($CX$1:$CX24,"RLB",CT$1:CT24) -> 0 | CU25: =SUMIF($CX$1:$CX24,"RLB",CU$1:CU24) -> 0 | CX25: RABT
B26: Percentage of Year | G26: =+G25/W25 ->  | H26: =+H25/W25 ->  | I26: =+I25/W25 ->  | J26: =+J25/W25 ->  | K26: =+K25/W25 ->  | L26: =+L25/W25 ->  | M26: =+M25/W25 ->  | N26: =+N25/W25 ->  | O26: =+O25/W25 ->  | P26: =+P25/W25 ->  | Q26: =+Q25/W25 ->  | R26: =+R25/W25 ->  | S26: =+S25/W25 ->  | T26: =+T25/W25 ->  | U26: =+U25/W25 ->  | V26: =+V25/W25 ->  | W26: =+W25/W25 ->  | Z26: =+Z25/AP25 ->  | AA26: =+AA25/AP25 ->  | AB26: =+AB25/AP25 ->  | AC26: =+AC25/AP25 ->  | AD26: =+AD25/AP25 ->  | AE26: =+AE25/AP25 ->  | AF26: =+AF25/AP25 ->  | AG26: =+AG25/AP25 ->  | AH26: =+AH25/AP25 ->  | AI26: =+AI25/AP25 ->  | AJ26: =+AJ25/AP25 ->  | AK26: =+AK25/AP25 ->  | AL26: =+AL25/AP25 ->  | AM26: =+AM25/AP25 ->  | AN26: =+AN25/AP25 ->  | AO26: =+AO25/AP25 ->  | AP26: =+AP25/AP25 ->  | AS26: =+AS25/BI25 ->  | AT26: =+AT25/BI25 ->  | AU26: =+AU25/BI25 ->  | AV26: =+AV25/BI25 ->  | AW26: =+AW25/BI25 ->  | AX26: =+AX25/BI25 ->  | AY26: =+AY25/BI25 ->  | AZ26: =+AZ25/BI25 ->  | BA26: =+BA25/BI25 ->  | BB26: =+BB25/BI25 ->  | BC26: =+BC25/BI25 ->  | BD26: =+BD25/BI25 ->  | BE26: =+BE25/BI25 ->  | BF26: =+BF25/BI25 ->  | BG26: =+BG25/BI25 ->  | BH26: =+BH25/BI25 ->  | BI26: =+BI25/BI25 ->  | BL26: =+BL25/CB25 ->  | BM26: =+BM25/CB25 ->  | BN26: =+BN25/CB25 ->  | BO26: =+BO25/CB25 ->  | BP26: =+BP25/CB25 ->  | BQ26: =+BQ25/CB25 ->  | BR26: =+BR25/CB25 ->  | BS26: =+BS25/CB25 ->  | BT26: =+BT25/CB25 ->  | BU26: =+BU25/CB25 ->  | BV26: =+BV25/CB25 ->  | BW26: =+BW25/CB25 ->  | BX26: =+BX25/CB25 ->  | BY26: =+BY25/CB25 ->  | BZ26: =+BZ25/CB25 ->  | CA26: =+CA25/CB25 ->  | CB26: =+CB25/CB25 ->  | CE26: =+CE25/CU25 ->  | CF26: =+CF25/CU25 ->  | CG26: =+CG25/CU25 ->  | CH26: =+CH25/CU25 ->  | CI26: =+CI25/CU25 ->  | CJ26: =+CJ25/CU25 ->  | CK26: =+CK25/CU25 ->  | CL26: =+CL25/CU25 ->  | CM26: =+CM25/CU25 ->  | CN26: =+CN25/CU25 ->  | CO26: =+CO25/CU25 ->  | CP26: =+CP25/CU25 ->  | CQ26: =+CQ25/CU25 ->  | CR26: =+CR25/CU25 ->  | CS26: =+CS25/CU25 ->  | CT26: =+CT25/CU25 ->  | CU26: =+CU25/CU25 ->  | CX26: RABP
B27: Total Growth Revenue | G27: =SUMIF($CX$1:$CX24,"RLG",G$1:G24) -> 0 | H27: =SUMIF($CX$1:$CX24,"RLG",H$1:H24) -> 0 | I27: =SUMIF($CX$1:$CX24,"RLG",I$1:I24) -> 0 | J27: =SUMIF($CX$1:$CX24,"RLG",J$1:J24) -> 0 | K27: =SUMIF($CX$1:$CX24,"RLG",K$1:K24) -> 0 | L27: =SUMIF($CX$1:$CX24,"RLG",L$1:L24) -> 0 | M27: =SUMIF($CX$1:$CX24,"RLG",M$1:M24) -> 0 | N27: =SUMIF($CX$1:$CX24,"RLG",N$1:N24) -> 0 | O27: =SUMIF($CX$1:$CX24,"RLG",O$1:O24) -> 0 | P27: =SUMIF($CX$1:$CX24,"RLG",P$1:P24) -> 0 | Q27: =SUMIF($CX$1:$CX24,"RLG",Q$1:Q24) -> 0 | R27: =SUMIF($CX$1:$CX24,"RLG",R$1:R24) -> 0 | S27: =SUMIF($CX$1:$CX24,"RLG",S$1:S24) -> 0 | T27: =SUMIF($CX$1:$CX24,"RLG",T$1:T24) -> 0 | U27: =SUMIF($CX$1:$CX24,"RLG",U$1:U24) -> 0 | V27: =SUMIF($CX$1:$CX24,"RLG",V$1:V24) -> 0 | W27: =SUMIF($CX$1:$CX24,"RLG",W$1:W24) -> 0 | Z27: =SUMIF($CX$1:$CX24,"RLG",Z$1:Z24) -> 0 | AA27: =SUMIF($CX$1:$CX24,"RLG",AA$1:AA24) -> 0 | AB27: =SUMIF($CX$1:$CX24,"RLG",AB$1:AB24) -> 0 | AC27: =SUMIF($CX$1:$CX24,"RLG",AC$1:AC24) -> 0 | AD27: =SUMIF($CX$1:$CX24,"RLG",AD$1:AD24) -> 0 | AE27: =SUMIF($CX$1:$CX24,"RLG",AE$1:AE24) -> 0 | AF27: =SUMIF($CX$1:$CX24,"RLG",AF$1:AF24) -> 0 | AG27: =SUMIF($CX$1:$CX24,"RLG",AG$1:AG24) -> 0 | AH27: =SUMIF($CX$1:$CX24,"RLG",AH$1:AH24) -> 0 | AI27: =SUMIF($CX$1:$CX24,"RLG",AI$1:AI24) -> 0 | AJ27: =SUMIF($CX$1:$CX24,"RLG",AJ$1:AJ24) -> 0 | AK27: =SUMIF($CX$1:$CX24,"RLG",AK$1:AK24) -> 0 | AL27: =SUMIF($CX$1:$CX24,"RLG",AL$1:AL24) -> 0 | AM27: =SUMIF($CX$1:$CX24,"RLG",AM$1:AM24) -> 0 | AN27: =SUMIF($CX$1:$CX24,"RLG",AN$1:AN24) -> 0 | AO27: =SUMIF($CX$1:$CX24,"RLG",AO$1:AO24) -> 0 | AP27: =SUMIF($CX$1:$CX24,"RLG",AP$1:AP24) -> 0 | AS27: =SUMIF($CX$1:$CX24,"RLG",AS$1:AS24) -> 0 | AT27: =SUMIF($CX$1:$CX24,"RLG",AT$1:AT24) -> 0 | AU27: =SUMIF($CX$1:$CX24,"RLG",AU$1:AU24) -> 0 | AV27: =SUMIF($CX$1:$CX24,"RLG",AV$1:AV24) -> 0 | AW27: =SUMIF($CX$1:$CX24,"RLG",AW$1:AW24) -> 0 | AX27: =SUMIF($CX$1:$CX24,"RLG",AX$1:AX24) -> 0 | AY27: =SUMIF($CX$1:$CX24,"RLG",AY$1:AY24) -> 0 | AZ27: =SUMIF($CX$1:$CX24,"RLG",AZ$1:AZ24) -> 0 | BA27: =SUMIF($CX$1:$CX24,"RLG",BA$1:BA24) -> 0 | BB27: =SUMIF($CX$1:$CX24,"RLG",BB$1:BB24) -> 0 | BC27: =SUMIF($CX$1:$CX24,"RLG",BC$1:BC24) -> 0 | BD27: =SUMIF($CX$1:$CX24,"RLG",BD$1:BD24) -> 0 | BE27: =SUMIF($CX$1:$CX24,"RLG",BE$1:BE24) -> 0 | BF27: =SUMIF($CX$1:$CX24,"RLG",BF$1:BF24) -> 0 | BG27: =SUMIF($CX$1:$CX24,"RLG",BG$1:BG24) -> 0 | BH27: =SUMIF($CX$1:$CX24,"RLG",BH$1:BH24) -> 0 | BI27: =SUMIF($CX$1:$CX24,"RLG",BI$1:BI24) -> 0 | BL27: =SUMIF($CX$1:$CX24,"RLG",BL$1:BL24) -> 0 | BM27: =SUMIF($CX$1:$CX24,"RLG",BM$1:BM24) -> 0 | BN27: =SUMIF($CX$1:$CX24,"RLG",BN$1:BN24) -> 0 | BO27: =SUMIF($CX$1:$CX24,"RLG",BO$1:BO24) -> 0 | BP27: =SUMIF($CX$1:$CX24,"RLG",BP$1:BP24) -> 0 | BQ27: =SUMIF($CX$1:$CX24,"RLG",BQ$1:BQ24) -> 0 | BR27: =SUMIF($CX$1:$CX24,"RLG",BR$1:BR24) -> 0 | BS27: =SUMIF($CX$1:$CX24,"RLG",BS$1:BS24) -> 0 | BT27: =SUMIF($CX$1:$CX24,"RLG",BT$1:BT24) -> 0 | BU27: =SUMIF($CX$1:$CX24,"RLG",BU$1:BU24) -> 0 | BV27: =SUMIF($CX$1:$CX24,"RLG",BV$1:BV24) -> 0 | BW27: =SUMIF($CX$1:$CX24,"RLG",BW$1:BW24) -> 0 | BX27: =SUMIF($CX$1:$CX24,"RLG",BX$1:BX24) -> 0 | BY27: =SUMIF($CX$1:$CX24,"RLG",BY$1:BY24) -> 0 | BZ27: =SUMIF($CX$1:$CX24,"RLG",BZ$1:BZ24) -> 0 | CA27: =SUMIF($CX$1:$CX24,"RLG",CA$1:CA24) -> 0 | CB27: =SUMIF($CX$1:$CX24,"RLG",CB$1:CB24) -> 0 | CE27: =SUMIF($CX$1:$CX24,"RLG",CE$1:CE24) -> 0 | CF27: =SUMIF($CX$1:$CX24,"RLG",CF$1:CF24) -> 0 | CG27: =SUMIF($CX$1:$CX24,"RLG",CG$1:CG24) -> 0 | CH27: =SUMIF($CX$1:$CX24,"RLG",CH$1:CH24) -> 0 | CI27: =SUMIF($CX$1:$CX24,"RLG",CI$1:CI24) -> 0 | CJ27: =SUMIF($CX$1:$CX24,"RLG",CJ$1:CJ24) -> 0 | CK27: =SUMIF($CX$1:$CX24,"RLG",CK$1:CK24) -> 0 | CL27: =SUMIF($CX$1:$CX24,"RLG",CL$1:CL24) -> 0 | CM27: =SUMIF($CX$1:$CX24,"RLG",CM$1:CM24) -> 0 | CN27: =SUMIF($CX$1:$CX24,"RLG",CN$1:CN24) -> 0 | CO27: =SUMIF($CX$1:$CX24,"RLG",CO$1:CO24) -> 0 | CP27: =SUMIF($CX$1:$CX24,"RLG",CP$1:CP24) -> 0 | CQ27: =SUMIF($CX$1:$CX24,"RLG",CQ$1:CQ24) -> 0 | CR27: =SUMIF($CX$1:$CX24,"RLG",CR$1:CR24) -> 0 | CS27: =SUMIF($CX$1:$CX24,"RLG",CS$1:CS24) -> 0 | CT27: =SUMIF($CX$1:$CX24,"RLG",CT$1:CT24) -> 0 | CU27: =SUMIF($CX$1:$CX24,"RLG",CU$1:CU24) -> 0 | CX27: RAGT
B28: Percentage of Year | G28: =+G27/W27 ->  | H28: =+H27/W27 ->  | I28: =+I27/W27 ->  | J28: =+J27/W27 ->  | K28: =+K27/W27 ->  | L28: =+L27/W27 ->  | M28: =+M27/W27 ->  | N28: =+N27/W27 ->  | O28: =+O27/W27 ->  | P28: =+P27/W27 ->  | Q28: =+Q27/W27 ->  | R28: =+R27/W27 ->  | S28: =+S27/W27 ->  | T28: =+T27/W27 ->  | U28: =+U27/W27 ->  | V28: =+V27/W27 ->  | W28: =+W27/W27 ->  | Z28: =+Z27/AP27 ->  | AA28: =+AA27/AP27 ->  | AB28: =+AB27/AP27 ->  | AC28: =+AC27/AP27 ->  | AD28: =+AD27/AP27 ->  | AE28: =+AE27/AP27 ->  | AF28: =+AF27/AP27 ->  | AG28: =+AG27/AP27 ->  | AH28: =+AH27/AP27 ->  | AI28: =+AI27/AP27 ->  | AJ28: =+AJ27/AP27 ->  | AK28: =+AK27/AP27 ->  | AL28: =+AL27/AP27 ->  | AM28: =+AM27/AP27 ->  | AN28: =+AN27/AP27 ->  | AO28: =+AO27/AP27 ->  | AP28: =+AP27/AP27 ->  | AS28: =+AS27/BI27 ->  | AT28: =+AT27/BI27 ->  | AU28: =+AU27/BI27 ->  | AV28: =+AV27/BI27 ->  | AW28: =+AW27/BI27 ->  | AX28: =+AX27/BI27 ->  | AY28: =+AY27/BI27 ->  | AZ28: =+AZ27/BI27 ->  | BA28: =+BA27/BI27 ->  | BB28: =+BB27/BI27 ->  | BC28: =+BC27/BI27 ->  | BD28: =+BD27/BI27 ->  | BE28: =+BE27/BI27 ->  | BF28: =+BF27/BI27 ->  | BG28: =+BG27/BI27 ->  | BH28: =+BH27/BI27 ->  | BI28: =+BI27/BI27 ->  | BL28: =+BL27/CB27 ->  | BM28: =+BM27/CB27 ->  | BN28: =+BN27/CB27 ->  | BO28: =+BO27/CB27 ->  | BP28: =+BP27/CB27 ->  | BQ28: =+BQ27/CB27 ->  | BR28: =+BR27/CB27 ->  | BS28: =+BS27/CB27 ->  | BT28: =+BT27/CB27 ->  | BU28: =+BU27/CB27 ->  | BV28: =+BV27/CB27 ->  | BW28: =+BW27/CB27 ->  | BX28: =+BX27/CB27 ->  | BY28: =+BY27/CB27 ->  | BZ28: =+BZ27/CB27 ->  | CA28: =+CA27/CB27 ->  | CB28: =+CB27/CB27 ->  | CE28: =+CE27/CU27 ->  | CF28: =+CF27/CU27 ->  | CG28: =+CG27/CU27 ->  | CH28: =+CH27/CU27 ->  | CI28: =+CI27/CU27 ->  | CJ28: =+CJ27/CU27 ->  | CK28: =+CK27/CU27 ->  | CL28: =+CL27/CU27 ->  | CM28: =+CM27/CU27 ->  | CN28: =+CN27/CU27 ->  | CO28: =+CO27/CU27 ->  | CP28: =+CP27/CU27 ->  | CQ28: =+CQ27/CU27 ->  | CR28: =+CR27/CU27 ->  | CS28: =+CS27/CU27 ->  | CT28: =+CT27/CU27 ->  | CU28: =+CU27/CU27 ->  | CX28: RAGP
B29: Total Revenue | C29: =SUMIF($CX$1:$CX28,"RL",C$1:C28) -> 0 | D29: =SUMIF($CX$1:$CX28,"RL",D$1:D28) -> 0 | E29: =SUMIF($CX$1:$CX28,"RL",E$1:E28) -> 0 | G29: =SUMIF($CX$1:$CX28,"RL",G$1:G28) -> 0 | H29: =SUMIF($CX$1:$CX28,"RL",H$1:H28) -> 0 | I29: =SUMIF($CX$1:$CX28,"RL",I$1:I28) -> 0 | J29: =SUMIF($CX$1:$CX28,"RL",J$1:J28) -> 0 | K29: =SUMIF($CX$1:$CX28,"RL",K$1:K28) -> 0 | L29: =SUMIF($CX$1:$CX28,"RL",L$1:L28) -> 0 | M29: =SUMIF($CX$1:$CX28,"RL",M$1:M28) -> 0 | N29: =SUMIF($CX$1:$CX28,"RL",N$1:N28) -> 0 | O29: =SUMIF($CX$1:$CX28,"RL",O$1:O28) -> 0 | P29: =SUMIF($CX$1:$CX28,"RL",P$1:P28) -> 0 | Q29: =SUMIF($CX$1:$CX28,"RL",Q$1:Q28) -> 0 | R29: =SUMIF($CX$1:$CX28,"RL",R$1:R28) -> 0 | S29: =SUMIF($CX$1:$CX28,"RL",S$1:S28) -> 0 | T29: =SUMIF($CX$1:$CX28,"RL",T$1:T28) -> 0 | U29: =SUMIF($CX$1:$CX28,"RL",U$1:U28) -> 0 | V29: =SUMIF($CX$1:$CX28,"RL",V$1:V28) -> 0 | W29: =SUMIF($CX$1:$CX28,"RL",W$1:W28) -> 0 | X29: =+W29-E29 -> 0 | Z29: =SUMIF($CX$1:$CX28,"RL",Z$1:Z28) -> 0 | AA29: =SUMIF($CX$1:$CX28,"RL",AA$1:AA28) -> 0 | AB29: =SUMIF($CX$1:$CX28,"RL",AB$1:AB28) -> 0 | AC29: =SUMIF($CX$1:$CX28,"RL",AC$1:AC28) -> 0 | AD29: =SUMIF($CX$1:$CX28,"RL",AD$1:AD28) -> 0 | AE29: =SUMIF($CX$1:$CX28,"RL",AE$1:AE28) -> 0 | AF29: =SUMIF($CX$1:$CX28,"RL",AF$1:AF28) -> 0 | AG29: =SUMIF($CX$1:$CX28,"RL",AG$1:AG28) -> 0 | AH29: =SUMIF($CX$1:$CX28,"RL",AH$1:AH28) -> 0 | AI29: =SUMIF($CX$1:$CX28,"RL",AI$1:AI28) -> 0 | AJ29: =SUMIF($CX$1:$CX28,"RL",AJ$1:AJ28) -> 0 | AK29: =SUMIF($CX$1:$CX28,"RL",AK$1:AK28) -> 0 | AL29: =SUMIF($CX$1:$CX28,"RL",AL$1:AL28) -> 0 | AM29: =SUMIF($CX$1:$CX28,"RL",AM$1:AM28) -> 0 | AN29: =SUMIF($CX$1:$CX28,"RL",AN$1:AN28) -> 0 | AO29: =SUMIF($CX$1:$CX28,"RL",AO$1:AO28) -> 0 | AP29: =SUMIF($CX$1:$CX28,"RL",AP$1:AP28) -> 0 | AQ29: =+AP29-W29 -> 0 | AS29: =SUMIF($CX$1:$CX28,"RL",AS$1:AS28) -> 0 | AT29: =SUMIF($CX$1:$CX28,"RL",AT$1:AT28) -> 0 | AU29: =SUMIF($CX$1:$CX28,"RL",AU$1:AU28) -> 0 | AV29: =SUMIF($CX$1:$CX28,"RL",AV$1:AV28) -> 0 | AW29: =SUMIF($CX$1:$CX28,"RL",AW$1:AW28) -> 0 | AX29: =SUMIF($CX$1:$CX28,"RL",AX$1:AX28) -> 0 | AY29: =SUMIF($CX$1:$CX28,"RL",AY$1:AY28) -> 0 | AZ29: =SUMIF($CX$1:$CX28,"RL",AZ$1:AZ28) -> 0 | BA29: =SUMIF($CX$1:$CX28,"RL",BA$1:BA28) -> 0 | BB29: =SUMIF($CX$1:$CX28,"RL",BB$1:BB28) -> 0 | BC29: =SUMIF($CX$1:$CX28,"RL",BC$1:BC28) -> 0 | BD29: =SUMIF($CX$1:$CX28,"RL",BD$1:BD28) -> 0 | BE29: =SUMIF($CX$1:$CX28,"RL",BE$1:BE28) -> 0 | BF29: =SUMIF($CX$1:$CX28,"RL",BF$1:BF28) -> 0 | BG29: =SUMIF($CX$1:$CX28,"RL",BG$1:BG28) -> 0 | BH29: =SUMIF($CX$1:$CX28,"RL",BH$1:BH28) -> 0 | BI29: =SUMIF($CX$1:$CX28,"RL",BI$1:BI28) -> 0 | BJ29: =+BI29-AP29 -> 0 | BL29: =SUMIF($CX$1:$CX28,"RL",BL$1:BL28) -> 0 | BM29: =SUMIF($CX$1:$CX28,"RL",BM$1:BM28) -> 0 | BN29: =SUMIF($CX$1:$CX28,"RL",BN$1:BN28) -> 0 | BO29: =SUMIF($CX$1:$CX28,"RL",BO$1:BO28) -> 0 | BP29: =SUMIF($CX$1:$CX28,"RL",BP$1:BP28) -> 0 | BQ29: =SUMIF($CX$1:$CX28,"RL",BQ$1:BQ28) -> 0 | BR29: =SUMIF($CX$1:$CX28,"RL",BR$1:BR28) -> 0 | BS29: =SUMIF($CX$1:$CX28,"RL",BS$1:BS28) -> 0 | BT29: =SUMIF($CX$1:$CX28,"RL",BT$1:BT28) -> 0 | BU29: =SUMIF($CX$1:$CX28,"RL",BU$1:BU28) -> 0 | BV29: =SUMIF($CX$1:$CX28,"RL",BV$1:BV28) -> 0 | BW29: =SUMIF($CX$1:$CX28,"RL",BW$1:BW28) -> 0 | BX29: =SUMIF($CX$1:$CX28,"RL",BX$1:BX28) -> 0 | BY29: =SUMIF($CX$1:$CX28,"RL",BY$1:BY28) -> 0 | BZ29: =SUMIF($CX$1:$CX28,"RL",BZ$1:BZ28) -> 0 | CA29: =SUMIF($CX$1:$CX28,"RL",CA$1:CA28) -> 0 | CB29: =SUMIF($CX$1:$CX28,"RL",CB$1:CB28) -> 0 | CC29: =+CB29-BI29 -> 0 | CE29: =SUMIF($CX$1:$CX28,"RL",CE$1:CE28) -> 0 | CF29: =SUMIF($CX$1:$CX28,"RL",CF$1:CF28) -> 0 | CG29: =SUMIF($CX$1:$CX28,"RL",CG$1:CG28) -> 0 | CH29: =SUMIF($CX$1:$CX28,"RL",CH$1:CH28) -> 0 | CI29: =SUMIF($CX$1:$CX28,"RL",CI$1:CI28) -> 0 | CJ29: =SUMIF($CX$1:$CX28,"RL",CJ$1:CJ28) -> 0 | CK29: =SUMIF($CX$1:$CX28,"RL",CK$1:CK28) -> 0 | CL29: =SUMIF($CX$1:$CX28,"RL",CL$1:CL28) -> 0 | CM29: =SUMIF($CX$1:$CX28,"RL",CM$1:CM28) -> 0 | CN29: =SUMIF($CX$1:$CX28,"RL",CN$1:CN28) -> 0 | CO29: =SUMIF($CX$1:$CX28,"RL",CO$1:CO28) -> 0 | CP29: =SUMIF($CX$1:$CX28,"RL",CP$1:CP28) -> 0 | CQ29: =SUMIF($CX$1:$CX28,"RL",CQ$1:CQ28) -> 0 | CR29: =SUMIF($CX$1:$CX28,"RL",CR$1:CR28) -> 0 | CS29: =SUMIF($CX$1:$CX28,"RL",CS$1:CS28) -> 0 | CT29: =SUMIF($CX$1:$CX28,"RL",CT$1:CT28) -> 0 | CU29: =SUMIF($CX$1:$CX28,"RL",CU$1:CU28) -> 0 | CV29: =+CU29-CB29 -> 0 | CX29: RAT
B30: Percentage of Year | C30: =+RTCYYTD/RTCYFY ->  | D30: =+RTCYYTD/RTCYFY ->  | E30: =+RTCYFY/RTCYFY ->  | G30: =+G29/W29 ->  | H30: =+H29/W29 ->  | I30: =+I29/W29 ->  | J30: =+J29/W29 ->  | K30: =+K29/W29 ->  | L30: =+L29/W29 ->  | M30: =+M29/W29 ->  | N30: =+N29/W29 ->  | O30: =+O29/W29 ->  | P30: =+P29/W29 ->  | Q30: =+Q29/W29 ->  | R30: =+R29/W29 ->  | S30: =+S29/W29 ->  | T30: =+T29/W29 ->  | U30: =+U29/W29 ->  | V30: =+V29/W29 ->  | W30: =+W29/W29 ->  | X30: =+X29/W29 ->  | Z30: =+Z29/AP29 ->  | AA30: =+AA29/AP29 ->  | AB30: =+AB29/AP29 ->  | AC30: =+AC29/AP29 ->  | AD30: =+AD29/AP29 ->  | AE30: =+AE29/AP29 ->  | AF30: =+AF29/AP29 ->  | AG30: =+AG29/AP29 ->  | AH30: =+AH29/AP29 ->  | AI30: =+AI29/AP29 ->  | AJ30: =+AJ29/AP29 ->  | AK30: =+AK29/AP29 ->  | AL30: =+AL29/AP29 ->  | AM30: =+AM29/AP29 ->  | AN30: =+AN29/AP29 ->  | AO30: =+AO29/AP29 ->  | AP30: =+AP29/AP29 ->  | AQ30: =+AQ29/W29 ->  | AS30: =+AS29/BI29 ->  | AT30: =+AT29/BI29 ->  | AU30: =+AU29/BI29 ->  | AV30: =+AV29/BI29 ->  | AW30: =+AW29/BI29 ->  | AX30: =+AX29/BI29 ->  | AY30: =+AY29/BI29 ->  | AZ30: =+AZ29/BI29 ->  | BA30: =+BA29/BI29 ->  | BB30: =+BB29/BI29 ->  | BC30: =+BC29/BI29 ->  | BD30: =+BD29/BI29 ->  | BE30: =+BE29/BI29 ->  | BF30: =+BF29/BI29 ->  | BG30: =+BG29/BI29 ->  | BH30: =+BH29/BI29 ->  | BI30: =+BI29/BI29 ->  | BJ30: =+BJ29/AP29 ->  | BL30: =+BL29/CB29 ->  | BM30: =+BM29/CB29 ->  | BN30: =+BN29/CB29 ->  | BO30: =+BO29/CB29 ->  | BP30: =+BP29/CB29 ->  | BQ30: =+BQ29/CB29 ->  | BR30: =+BR29/CB29 ->  | BS30: =+BS29/CB29 ->  | BT30: =+BT29/CB29 ->  | BU30: =+BU29/CB29 ->  | BV30: =+BV29/CB29 ->  | BW30: =+BW29/CB29 ->  | BX30: =+BX29/CB29 ->  | BY30: =+BY29/CB29 ->  | BZ30: =+BZ29/CB29 ->  | CA30: =+CA29/CB29 ->  | CB30: =+CB29/CB29 ->  | CC30: =+CC29/BI29 ->  | CE30: =+CE29/CU29 ->  | CF30: =+CF29/CU29 ->  | CG30: =+CG29/CU29 ->  | CH30: =+CH29/CU29 ->  | CI30: =+CI29/CU29 ->  | CJ30: =+CJ29/CU29 ->  | CK30: =+CK29/CU29 ->  | CL30: =+CL29/CU29 ->  | CM30: =+CM29/CU29 ->  | CN30: =+CN29/CU29 ->  | CO30: =+CO29/CU29 ->  | CP30: =+CP29/CU29 ->  | CQ30: =+CQ29/CU29 ->  | CR30: =+CR29/CU29 ->  | CS30: =+CS29/CU29 ->  | CT30: =+CT29/CU29 ->  | CU30: =+CU29/CU29 ->  | CV30: =+CV29/$CB29 ->  | CX30: RAP
F33: =+F21 -> Inc/Dec | Y33: =+F33 -> Inc/Dec | AR33: =+F33 -> Inc/Dec | BK33: =+F33 -> Inc/Dec | CD33: =+F33 -> Inc/Dec
F34: 0 | Y34: =F34 -> 0 | AR34: =F34 -> 0 | BK34: =F34 -> 0 | CD34: =F34 -> 0
B35: Title Variable Costs | CX35: VA
CX36: VI
B37: Total Variable Costs | C37: =SUMIF($CX$1:$CX36,"VL",C$1:C36) -> 0 | D37: =SUMIF($CX$1:$CX36,"VL",D$1:D36) -> 0 | E37: =SUMIF($CX$1:$CX36,"VL",E$1:E36) -> 0 | G37: =SUMIF($CX$1:$CX36,"VL",G$1:G36) -> 0 | H37: =SUMIF($CX$1:$CX36,"VL",H$1:H36) -> 0 | I37: =SUMIF($CX$1:$CX36,"VL",I$1:I36) -> 0 | J37: =SUMIF($CX$1:$CX36,"VL",J$1:J36) -> 0 | K37: =SUMIF($CX$1:$CX36,"VL",K$1:K36) -> 0 | L37: =SUMIF($CX$1:$CX36,"VL",L$1:L36) -> 0 | M37: =SUMIF($CX$1:$CX36,"VL",M$1:M36) -> 0 | N37: =SUMIF($CX$1:$CX36,"VL",N$1:N36) -> 0 | O37: =SUMIF($CX$1:$CX36,"VL",O$1:O36) -> 0 | P37: =SUMIF($CX$1:$CX36,"VL",P$1:P36) -> 0 | Q37: =SUMIF($CX$1:$CX36,"VL",Q$1:Q36) -> 0 | R37: =SUMIF($CX$1:$CX36,"VL",R$1:R36) -> 0 | S37: =SUMIF($CX$1:$CX36,"VL",S$1:S36) -> 0 | T37: =SUMIF($CX$1:$CX36,"VL",T$1:T36) -> 0 | U37: =SUMIF($CX$1:$CX36,"VL",U$1:U36) -> 0 | V37: =SUMIF($CX$1:$CX36,"VL",V$1:V36) -> 0 | W37: =SUMIF($CX$1:$CX36,"VL",W$1:W36) -> 0 | X37: =+W37-E37 -> 0 | Z37: =SUMIF($CX$1:$CX36,"VL",Z$1:Z36) -> 0 | AA37: =SUMIF($CX$1:$CX36,"VL",AA$1:AA36) -> 0 | AB37: =SUMIF($CX$1:$CX36,"VL",AB$1:AB36) -> 0 | AC37: =SUMIF($CX$1:$CX36,"VL",AC$1:AC36) -> 0 | AD37: =SUMIF($CX$1:$CX36,"VL",AD$1:AD36) -> 0 | AE37: =SUMIF($CX$1:$CX36,"VL",AE$1:AE36) -> 0 | AF37: =SUMIF($CX$1:$CX36,"VL",AF$1:AF36) -> 0 | AG37: =SUMIF($CX$1:$CX36,"VL",AG$1:AG36) -> 0 | AH37: =SUMIF($CX$1:$CX36,"VL",AH$1:AH36) -> 0 | AI37: =SUMIF($CX$1:$CX36,"VL",AI$1:AI36) -> 0 | AJ37: =SUMIF($CX$1:$CX36,"VL",AJ$1:AJ36) -> 0 | AK37: =SUMIF($CX$1:$CX36,"VL",AK$1:AK36) -> 0 | AL37: =SUMIF($CX$1:$CX36,"VL",AL$1:AL36) -> 0 | AM37: =SUMIF($CX$1:$CX36,"VL",AM$1:AM36) -> 0 | AN37: =SUMIF($CX$1:$CX36,"VL",AN$1:AN36) -> 0 | AO37: =SUMIF($CX$1:$CX36,"VL",AO$1:AO36) -> 0 | AP37: =SUMIF($CX$1:$CX36,"VL",AP$1:AP36) -> 0 | AQ37: =+AP37-W37 -> 0 | AS37: =SUMIF($CX$1:$CX36,"VL",AS$1:AS36) -> 0 | AT37: =SUMIF($CX$1:$CX36,"VL",AT$1:AT36) -> 0 | AU37: =SUMIF($CX$1:$CX36,"VL",AU$1:AU36) -> 0 | AV37: =SUMIF($CX$1:$CX36,"VL",AV$1:AV36) -> 0 | AW37: =SUMIF($CX$1:$CX36,"VL",AW$1:AW36) -> 0 | AX37: =SUMIF($CX$1:$CX36,"VL",AX$1:AX36) -> 0 | AY37: =SUMIF($CX$1:$CX36,"VL",AY$1:AY36) -> 0 | AZ37: =SUMIF($CX$1:$CX36,"VL",AZ$1:AZ36) -> 0 | BA37: =SUMIF($CX$1:$CX36,"VL",BA$1:BA36) -> 0 | BB37: =SUMIF($CX$1:$CX36,"VL",BB$1:BB36) -> 0 | BC37: =SUMIF($CX$1:$CX36,"VL",BC$1:BC36) -> 0 | BD37: =SUMIF($CX$1:$CX36,"VL",BD$1:BD36) -> 0 | BE37: =SUMIF($CX$1:$CX36,"VL",BE$1:BE36) -> 0 | BF37: =SUMIF($CX$1:$CX36,"VL",BF$1:BF36) -> 0 | BG37: =SUMIF($CX$1:$CX36,"VL",BG$1:BG36) -> 0 | BH37: =SUMIF($CX$1:$CX36,"VL",BH$1:BH36) -> 0 | BI37: =SUMIF($CX$1:$CX36,"VL",BI$1:BI36) -> 0 | BJ37: =+BI37-AP37 -> 0 | BL37: =SUMIF($CX$1:$CX36,"VL",BL$1:BL36) -> 0 | BM37: =SUMIF($CX$1:$CX36,"VL",BM$1:BM36) -> 0 | BN37: =SUMIF($CX$1:$CX36,"VL",BN$1:BN36) -> 0 | BO37: =SUMIF($CX$1:$CX36,"VL",BO$1:BO36) -> 0 | BP37: =SUMIF($CX$1:$CX36,"VL",BP$1:BP36) -> 0 | BQ37: =SUMIF($CX$1:$CX36,"VL",BQ$1:BQ36) -> 0 | BR37: =SUMIF($CX$1:$CX36,"VL",BR$1:BR36) -> 0 | BS37: =SUMIF($CX$1:$CX36,"VL",BS$1:BS36) -> 0 | BT37: =SUMIF($CX$1:$CX36,"VL",BT$1:BT36) -> 0 | BU37: =SUMIF($CX$1:$CX36,"VL",BU$1:BU36) -> 0 | BV37: =SUMIF($CX$1:$CX36,"VL",BV$1:BV36) -> 0 | BW37: =SUMIF($CX$1:$CX36,"VL",BW$1:BW36) -> 0 | BX37: =SUMIF($CX$1:$CX36,"VL",BX$1:BX36) -> 0 | BY37: =SUMIF($CX$1:$CX36,"VL",BY$1:BY36) -> 0 | BZ37: =SUMIF($CX$1:$CX36,"VL",BZ$1:BZ36) -> 0 | CA37: =SUMIF($CX$1:$CX36,"VL",CA$1:CA36) -> 0 | CB37: =SUMIF($CX$1:$CX36,"VL",CB$1:CB36) -> 0 | CC37: =+CB37-BI37 -> 0 | CE37: =SUMIF($CX$1:$CX36,"VL",CE$1:CE36) -> 0 | CF37: =SUMIF($CX$1:$CX36,"VL",CF$1:CF36) -> 0 | CG37: =SUMIF($CX$1:$CX36,"VL",CG$1:CG36) -> 0 | CH37: =SUMIF($CX$1:$CX36,"VL",CH$1:CH36) -> 0 | CI37: =SUMIF($CX$1:$CX36,"VL",CI$1:CI36) -> 0 | CJ37: =SUMIF($CX$1:$CX36,"VL",CJ$1:CJ36) -> 0 | CK37: =SUMIF($CX$1:$CX36,"VL",CK$1:CK36) -> 0 | CL37: =SUMIF($CX$1:$CX36,"VL",CL$1:CL36) -> 0 | CM37: =SUMIF($CX$1:$CX36,"VL",CM$1:CM36) -> 0 | CN37: =SUMIF($CX$1:$CX36,"VL",CN$1:CN36) -> 0 | CO37: =SUMIF($CX$1:$CX36,"VL",CO$1:CO36) -> 0 | CP37: =SUMIF($CX$1:$CX36,"VL",CP$1:CP36) -> 0 | CQ37: =SUMIF($CX$1:$CX36,"VL",CQ$1:CQ36) -> 0 | CR37: =SUMIF($CX$1:$CX36,"VL",CR$1:CR36) -> 0 | CS37: =SUMIF($CX$1:$CX36,"VL",CS$1:CS36) -> 0 | CT37: =SUMIF($CX$1:$CX36,"VL",CT$1:CT36) -> 0 | CU37: =SUMIF($CX$1:$CX36,"VL",CU$1:CU36) -> 0 | CV37: =+CU37-CB37 -> 0 | CX37: VAT
B38: Percentage of Revenue | C38: =+C37/RTCYYTD ->  | D38: =+D37/RTCYRem ->  | E38: =+E37/RTCYFY ->  | G38: =+G37/RTY1M1 ->  | H38: =+H37/RTY1M2 ->  | I38: =+I37/RTY1M3 ->  | J38: =+J37/RTY1Q1 ->  | K38: =+K37/RTY1M4 ->  | L38: =+L37/RTY1M5 ->  | M38: =+M37/RTY1M6 ->  | N38: =+N37/RTY1Q2 ->  | O38: =+O37/RTY1M7 ->  | P38: =+P37/RTY1M8 ->  | Q38: =+Q37/RTY1M9 ->  | R38: =+R37/RTY1Q3 ->  | S38: =+S37/RTY1M10 ->  | T38: =+T37/RTY1M11 ->  | U38: =+U37/RTY1M12 ->  | V38: =+V37/RTY1Q4 ->  | W38: =+W37/RTY1FY ->  | X38: =+X37/E37 ->  | Z38: =+Z37/RTY2M1 ->  | AA38: =+AA37/RTY2M2 ->  | AB38: =+AB37/RTY2M3 ->  | AC38: =+AC37/RTY2Q1 ->  | AD38: =+AD37/RTY2M4 ->  | AE38: =+AE37/RTY2M5 ->  | AF38: =+AF37/RTY2M6 ->  | AG38: =+AG37/RTY2Q2 ->  | AH38: =+AH37/RTY2M7 ->  | AI38: =+AI37/RTY2M8 ->  | AJ38: =+AJ37/RTY2M9 ->  | AK38: =+AK37/RTY2Q3 ->  | AL38: =+AL37/RTY2M10 ->  | AM38: =+AM37/RTY2M11 ->  | AN38: =+AN37/RTY2M12 ->  | AO38: =+AO37/RTY2Q4 ->  | AP38: =+AP37/RTY2FY ->  | AQ38: =+AQ37/W37 ->  | AS38: =+AS37/RTY3M1 ->  | AT38: =+AT37/RTY3M2 ->  | AU38: =+AU37/RTY3M3 ->  | AV38: =+AV37/RTY3Q1 ->  | AW38: =+AW37/RTY3M4 ->  | AX38: =+AX37/RTY3M5 ->  | AY38: =+AY37/RTY3M6 ->  | AZ38: =+AZ37/RTY3Q2 ->  | BA38: =+BA37/RTY3M7 ->  | BB38: =+BB37/RTY3M8 ->  | BC38: =+BC37/RTY3M9 ->  | BD38: =+BD37/RTY3Q3 ->  | BE38: =+BE37/RTY3M10 ->  | BF38: =+BF37/RTY3M11 ->  | BG38: =+BG37/RTY3M12 ->  | BH38: =+BH37/RTY3Q4 ->  | BI38: =+BI37/RTY3FY ->  | BJ38: =+BJ37/AP37 ->  | BL38: =+BL37/RTY4M1 ->  | BM38: =+BM37/RTY4M2 ->  | BN38: =+BN37/RTY4M3 ->  | BO38: =+BO37/RTY4Q1 ->  | BP38: =+BP37/RTY4M4 ->  | BQ38: =+BQ37/RTY4M5 ->  | BR38: =+BR37/RTY4M6 ->  | BS38: =+BS37/RTY4Q2 ->  | BT38: =+BT37/RTY4M7 ->  | BU38: =+BU37/RTY4M8 ->  | BV38: =+BV37/RTY4M9 ->  | BW38: =+BW37/RTY4Q3 ->  | BX38: =+BX37/RTY4M10 ->  | BY38: =+BY37/RTY4M11 ->  | BZ38: =+BZ37/RTY4M12 ->  | CA38: =+CA37/RTY4Q4 ->  | CB38: =+CB37/RTY4FY ->  | CC38: =+CC37/BI37 ->  | CE38: =+CE37/RTY5M1 ->  | CF38: =+CF37/RTY5M2 ->  | CG38: =+CG37/RTY5M3 ->  | CH38: =+CH37/RTY5Q1 ->  | CI38: =+CI37/RTY5M4 ->  | CJ38: =+CJ37/RTY5M5 ->  | CK38: =+CK37/RTY5M6 ->  | CL38: =+CL37/RTY5Q2 ->  | CM38: =+CM37/RTY5M7 ->  | CN38: =+CN37/RTY5M8 ->  | CO38: =+CO37/RTY5M9 ->  | CP38: =+CP37/RTY5Q3 ->  | CQ38: =+CQ37/RTY5M10 ->  | CR38: =+CR37/RTY5M11 ->  | CS38: =+CS37/RTY5M12 ->  | CT38: =+CT37/RTY5Q4 ->  | CU38: =+CU37/RTY5FY ->  | CV38: =+CV37/CB37 ->  | CX38: VAP
F41: =+F21 -> Inc/Dec | Y41: =+F41 -> Inc/Dec | AR41: =+F41 -> Inc/Dec | BK41: =+F41 -> Inc/Dec | CD41: =+F41 -> Inc/Dec
F42: 0 | Y42: =F42 -> 0 | AR42: =F42 -> 0 | BK42: =F42 -> 0 | CD42: =F42 -> 0
B43: Title Fixed Costs | CX43: FA
CX44: FI
B45: Total Fixed Costs | C45: =SUMIF($CX$1:$CX44,"FL",C$1:C44) -> 0 | D45: =SUMIF($CX$1:$CX44,"FL",D$1:D44) -> 0 | E45: =SUMIF($CX$1:$CX44,"FL",E$1:E44) -> 0 | G45: =SUMIF($CX$1:$CX44,"FL",G$1:G44) -> 0 | H45: =SUMIF($CX$1:$CX44,"FL",H$1:H44) -> 0 | I45: =SUMIF($CX$1:$CX44,"FL",I$1:I44) -> 0 | J45: =SUMIF($CX$1:$CX44,"FL",J$1:J44) -> 0 | K45: =SUMIF($CX$1:$CX44,"FL",K$1:K44) -> 0 | L45: =SUMIF($CX$1:$CX44,"FL",L$1:L44) -> 0 | M45: =SUMIF($CX$1:$CX44,"FL",M$1:M44) -> 0 | N45: =SUMIF($CX$1:$CX44,"FL",N$1:N44) -> 0 | O45: =SUMIF($CX$1:$CX44,"FL",O$1:O44) -> 0 | P45: =SUMIF($CX$1:$CX44,"FL",P$1:P44) -> 0 | Q45: =SUMIF($CX$1:$CX44,"FL",Q$1:Q44) -> 0 | R45: =SUMIF($CX$1:$CX44,"FL",R$1:R44) -> 0 | S45: =SUMIF($CX$1:$CX44,"FL",S$1:S44) -> 0 | T45: =SUMIF($CX$1:$CX44,"FL",T$1:T44) -> 0 | U45: =SUMIF($CX$1:$CX44,"FL",U$1:U44) -> 0 | V45: =SUMIF($CX$1:$CX44,"FL",V$1:V44) -> 0 | W45: =SUMIF($CX$1:$CX44,"FL",W$1:W44) -> 0 | X45: =+W45-E45 -> 0 | Z45: =SUMIF($CX$1:$CX44,"FL",Z$1:Z44) -> 0 | AA45: =SUMIF($CX$1:$CX44,"FL",AA$1:AA44) -> 0 | AB45: =SUMIF($CX$1:$CX44,"FL",AB$1:AB44) -> 0 | AC45: =SUMIF($CX$1:$CX44,"FL",AC$1:AC44) -> 0 | AD45: =SUMIF($CX$1:$CX44,"FL",AD$1:AD44) -> 0 | AE45: =SUMIF($CX$1:$CX44,"FL",AE$1:AE44) -> 0 | AF45: =SUMIF($CX$1:$CX44,"FL",AF$1:AF44) -> 0 | AG45: =SUMIF($CX$1:$CX44,"FL",AG$1:AG44) -> 0 | AH45: =SUMIF($CX$1:$CX44,"FL",AH$1:AH44) -> 0 | AI45: =SUMIF($CX$1:$CX44,"FL",AI$1:AI44) -> 0 | AJ45: =SUMIF($CX$1:$CX44,"FL",AJ$1:AJ44) -> 0 | AK45: =SUMIF($CX$1:$CX44,"FL",AK$1:AK44) -> 0 | AL45: =SUMIF($CX$1:$CX44,"FL",AL$1:AL44) -> 0 | AM45: =SUMIF($CX$1:$CX44,"FL",AM$1:AM44) -> 0 | AN45: =SUMIF($CX$1:$CX44,"FL",AN$1:AN44) -> 0 | AO45: =SUMIF($CX$1:$CX44,"FL",AO$1:AO44) -> 0 | AP45: =SUMIF($CX$1:$CX44,"FL",AP$1:AP44) -> 0 | AQ45: =+AP45-W45 -> 0 | AS45: =SUMIF($CX$1:$CX44,"FL",AS$1:AS44) -> 0 | AT45: =SUMIF($CX$1:$CX44,"FL",AT$1:AT44) -> 0 | AU45: =SUMIF($CX$1:$CX44,"FL",AU$1:AU44) -> 0 | AV45: =SUMIF($CX$1:$CX44,"FL",AV$1:AV44) -> 0 | AW45: =SUMIF($CX$1:$CX44,"FL",AW$1:AW44) -> 0 | AX45: =SUMIF($CX$1:$CX44,"FL",AX$1:AX44) -> 0 | AY45: =SUMIF($CX$1:$CX44,"FL",AY$1:AY44) -> 0 | AZ45: =SUMIF($CX$1:$CX44,"FL",AZ$1:AZ44) -> 0 | BA45: =SUMIF($CX$1:$CX44,"FL",BA$1:BA44) -> 0 | BB45: =SUMIF($CX$1:$CX44,"FL",BB$1:BB44) -> 0 | BC45: =SUMIF($CX$1:$CX44,"FL",BC$1:BC44) -> 0 | BD45: =SUMIF($CX$1:$CX44,"FL",BD$1:BD44) -> 0 | BE45: =SUMIF($CX$1:$CX44,"FL",BE$1:BE44) -> 0 | BF45: =SUMIF($CX$1:$CX44,"FL",BF$1:BF44) -> 0 | BG45: =SUMIF($CX$1:$CX44,"FL",BG$1:BG44) -> 0 | BH45: =SUMIF($CX$1:$CX44,"FL",BH$1:BH44) -> 0 | BI45: =SUMIF($CX$1:$CX44,"FL",BI$1:BI44) -> 0 | BJ45: =+BI45-AP45 -> 0 | BL45: =SUMIF($CX$1:$CX44,"FL",BL$1:BL44) -> 0 | BM45: =SUMIF($CX$1:$CX44,"FL",BM$1:BM44) -> 0 | BN45: =SUMIF($CX$1:$CX44,"FL",BN$1:BN44) -> 0 | BO45: =SUMIF($CX$1:$CX44,"FL",BO$1:BO44) -> 0 | BP45: =SUMIF($CX$1:$CX44,"FL",BP$1:BP44) -> 0 | BQ45: =SUMIF($CX$1:$CX44,"FL",BQ$1:BQ44) -> 0 | BR45: =SUMIF($CX$1:$CX44,"FL",BR$1:BR44) -> 0 | BS45: =SUMIF($CX$1:$CX44,"FL",BS$1:BS44) -> 0 | BT45: =SUMIF($CX$1:$CX44,"FL",BT$1:BT44) -> 0 | BU45: =SUMIF($CX$1:$CX44,"FL",BU$1:BU44) -> 0 | BV45: =SUMIF($CX$1:$CX44,"FL",BV$1:BV44) -> 0 | BW45: =SUMIF($CX$1:$CX44,"FL",BW$1:BW44) -> 0 | BX45: =SUMIF($CX$1:$CX44,"FL",BX$1:BX44) -> 0 | BY45: =SUMIF($CX$1:$CX44,"FL",BY$1:BY44) -> 0 | BZ45: =SUMIF($CX$1:$CX44,"FL",BZ$1:BZ44) -> 0 | CA45: =SUMIF($CX$1:$CX44,"FL",CA$1:CA44) -> 0 | CB45: =SUMIF($CX$1:$CX44,"FL",CB$1:CB44) -> 0 | CC45: =+CB45-BI45 -> 0 | CE45: =SUMIF($CX$1:$CX44,"FL",CE$1:CE44) -> 0 | CF45: =SUMIF($CX$1:$CX44,"FL",CF$1:CF44) -> 0 | CG45: =SUMIF($CX$1:$CX44,"FL",CG$1:CG44) -> 0 | CH45: =SUMIF($CX$1:$CX44,"FL",CH$1:CH44) -> 0 | CI45: =SUMIF($CX$1:$CX44,"FL",CI$1:CI44) -> 0 | CJ45: =SUMIF($CX$1:$CX44,"FL",CJ$1:CJ44) -> 0 | CK45: =SUMIF($CX$1:$CX44,"FL",CK$1:CK44) -> 0 | CL45: =SUMIF($CX$1:$CX44,"FL",CL$1:CL44) -> 0 | CM45: =SUMIF($CX$1:$CX44,"FL",CM$1:CM44) -> 0 | CN45: =SUMIF($CX$1:$CX44,"FL",CN$1:CN44) -> 0 | CO45: =SUMIF($CX$1:$CX44,"FL",CO$1:CO44) -> 0 | CP45: =SUMIF($CX$1:$CX44,"FL",CP$1:CP44) -> 0 | CQ45: =SUMIF($CX$1:$CX44,"FL",CQ$1:CQ44) -> 0 | CR45: =SUMIF($CX$1:$CX44,"FL",CR$1:CR44) -> 0 | CS45: =SUMIF($CX$1:$CX44,"FL",CS$1:CS44) -> 0 | CT45: =SUMIF($CX$1:$CX44,"FL",CT$1:CT44) -> 0 | CU45: =SUMIF($CX$1:$CX44,"FL",CU$1:CU44) -> 0 | CV45: =+CU45-CB45 -> 0 | CX45: FAT
B46: Percentage of Revenue | C46: =+C45/RTCYYTD ->  | D46: =+D45/RTCYRem ->  | E46: =+E45/RTCYFY ->  | G46: =+G45/RTY1M1 ->  | H46: =+H45/RTY1M2 ->  | I46: =+I45/RTY1M3 ->  | J46: =+J45/RTY1Q1 ->  | K46: =+K45/RTY1M4 ->  | L46: =+L45/RTY1M5 ->  | M46: =+M45/RTY1M6 ->  | N46: =+N45/RTY1Q2 ->  | O46: =+O45/RTY1M7 ->  | P46: =+P45/RTY1M8 ->  | Q46: =+Q45/RTY1M9 ->  | R46: =+R45/RTY1Q3 ->  | S46: =+S45/RTY1M10 ->  | T46: =+T45/RTY1M11 ->  | U46: =+U45/RTY1M12 ->  | V46: =+V45/RTY1Q4 ->  | W46: =+W45/RTY1FY ->  | X46: =+X45/E45 ->  | Z46: =+Z45/RTY2M1 ->  | AA46: =+AA45/RTY2M2 ->  | AB46: =+AB45/RTY2M3 ->  | AC46: =+AC45/RTY2Q1 ->  | AD46: =+AD45/RTY2M4 ->  | AE46: =+AE45/RTY2M5 ->  | AF46: =+AF45/RTY2M6 ->  | AG46: =+AG45/RTY2Q2 ->  | AH46: =+AH45/RTY2M7 ->  | AI46: =+AI45/RTY2M8 ->  | AJ46: =+AJ45/RTY2M9 ->  | AK46: =+AK45/RTY2Q3 ->  | AL46: =+AL45/RTY2M10 ->  | AM46: =+AM45/RTY2M11 ->  | AN46: =+AN45/RTY2M12 ->  | AO46: =+AO45/RTY2Q4 ->  | AP46: =+AP45/RTY2FY ->  | AQ46: =+AQ45/W45 ->  | AS46: =+AS45/RTY3M1 ->  | AT46: =+AT45/RTY3M2 ->  | AU46: =+AU45/RTY3M3 ->  | AV46: =+AV45/RTY3Q1 ->  | AW46: =+AW45/RTY3M4 ->  | AX46: =+AX45/RTY3M5 ->  | AY46: =+AY45/RTY3M6 ->  | AZ46: =+AZ45/RTY3Q2 ->  | BA46: =+BA45/RTY3M7 ->  | BB46: =+BB45/RTY3M8 ->  | BC46: =+BC45/RTY3M9 ->  | BD46: =+BD45/RTY3Q3 ->  | BE46: =+BE45/RTY3M10 ->  | BF46: =+BF45/RTY3M11 ->  | BG46: =+BG45/RTY3M12 ->  | BH46: =+BH45/RTY3Q4 ->  | BI46: =+BI45/RTY3FY ->  | BJ46: =+BJ45/AP45 ->  | BL46: =+BL45/RTY4M1 ->  | BM46: =+BM45/RTY4M2 ->  | BN46: =+BN45/RTY4M3 ->  | BO46: =+BO45/RTY4Q1 ->  | BP46: =+BP45/RTY4M4 ->  | BQ46: =+BQ45/RTY4M5 ->  | BR46: =+BR45/RTY4M6 ->  | BS46: =+BS45/RTY4Q2 ->  | BT46: =+BT45/RTY4M7 ->  | BU46: =+BU45/RTY4M8 ->  | BV46: =+BV45/RTY4M9 ->  | BW46: =+BW45/RTY4Q3 ->  | BX46: =+BX45/RTY4M10 ->  | BY46: =+BY45/RTY4M11 ->  | BZ46: =+BZ45/RTY4M12 ->  | CA46: =+CA45/RTY4Q4 ->  | CB46: =+CB45/RTY4FY ->  | CC46: =+CC45/BI45 ->  | CE46: =+CE45/RTY5M1 ->  | CF46: =+CF45/RTY5M2 ->  | CG46: =+CG45/RTY5M3 ->  | CH46: =+CH45/RTY5Q1 ->  | CI46: =+CI45/RTY5M4 ->  | CJ46: =+CJ45/RTY5M5 ->  | CK46: =+CK45/RTY5M6 ->  | CL46: =+CL45/RTY5Q2 ->  | CM46: =+CM45/RTY5M7 ->  | CN46: =+CN45/RTY5M8 ->  | CO46: =+CO45/RTY5M9 ->  | CP46: =+CP45/RTY5Q3 ->  | CQ46: =+CQ45/RTY5M10 ->  | CR46: =+CR45/RTY5M11 ->  | CS46: =+CS45/RTY5M12 ->  | CT46: =+CT45/RTY5Q4 ->  | CU46: =+CU45/RTY5FY ->  | CV46: =+CV45/CB45 ->  | CX46: FAP
B47: Profit/Surplus | C47: =SUMIF($CX$1:$CX46,"RL",C$1:C46)-SUMIF($CX$1:$CX46,"VL",C$1:C46)-SUMIF($CX$1:$CX46,"FL",C$1:C46) -> 0 | D47: =SUMIF($CX$1:$CX46,"RL",D$1:D46)-SUMIF($CX$1:$CX46,"VL",D$1:D46)-SUMIF($CX$1:$CX46,"FL",D$1:D46) -> 0 | E47: =SUMIF($CX$1:$CX46,"RL",E$1:E46)-SUMIF($CX$1:$CX46,"VL",E$1:E46)-SUMIF($CX$1:$CX46,"FL",E$1:E46) -> 0 | G47: =SUMIF($CX$1:$CX46,"RL",G$1:G46)-SUMIF($CX$1:$CX46,"VL",G$1:G46)-SUMIF($CX$1:$CX46,"FL",G$1:G46) -> 0 | H47: =SUMIF($CX$1:$CX46,"RL",H$1:H46)-SUMIF($CX$1:$CX46,"VL",H$1:H46)-SUMIF($CX$1:$CX46,"FL",H$1:H46) -> 0 | I47: =SUMIF($CX$1:$CX46,"RL",I$1:I46)-SUMIF($CX$1:$CX46,"VL",I$1:I46)-SUMIF($CX$1:$CX46,"FL",I$1:I46) -> 0 | J47: =SUMIF($CX$1:$CX46,"RL",J$1:J46)-SUMIF($CX$1:$CX46,"VL",J$1:J46)-SUMIF($CX$1:$CX46,"FL",J$1:J46) -> 0 | K47: =SUMIF($CX$1:$CX46,"RL",K$1:K46)-SUMIF($CX$1:$CX46,"VL",K$1:K46)-SUMIF($CX$1:$CX46,"FL",K$1:K46) -> 0 | L47: =SUMIF($CX$1:$CX46,"RL",L$1:L46)-SUMIF($CX$1:$CX46,"VL",L$1:L46)-SUMIF($CX$1:$CX46,"FL",L$1:L46) -> 0 | M47: =SUMIF($CX$1:$CX46,"RL",M$1:M46)-SUMIF($CX$1:$CX46,"VL",M$1:M46)-SUMIF($CX$1:$CX46,"FL",M$1:M46) -> 0 | N47: =SUMIF($CX$1:$CX46,"RL",N$1:N46)-SUMIF($CX$1:$CX46,"VL",N$1:N46)-SUMIF($CX$1:$CX46,"FL",N$1:N46) -> 0 | O47: =SUMIF($CX$1:$CX46,"RL",O$1:O46)-SUMIF($CX$1:$CX46,"VL",O$1:O46)-SUMIF($CX$1:$CX46,"FL",O$1:O46) -> 0 | P47: =SUMIF($CX$1:$CX46,"RL",P$1:P46)-SUMIF($CX$1:$CX46,"VL",P$1:P46)-SUMIF($CX$1:$CX46,"FL",P$1:P46) -> 0 | Q47: =SUMIF($CX$1:$CX46,"RL",Q$1:Q46)-SUMIF($CX$1:$CX46,"VL",Q$1:Q46)-SUMIF($CX$1:$CX46,"FL",Q$1:Q46) -> 0 | R47: =SUMIF($CX$1:$CX46,"RL",R$1:R46)-SUMIF($CX$1:$CX46,"VL",R$1:R46)-SUMIF($CX$1:$CX46,"FL",R$1:R46) -> 0 | S47: =SUMIF($CX$1:$CX46,"RL",S$1:S46)-SUMIF($CX$1:$CX46,"VL",S$1:S46)-SUMIF($CX$1:$CX46,"FL",S$1:S46) -> 0 | T47: =SUMIF($CX$1:$CX46,"RL",T$1:T46)-SUMIF($CX$1:$CX46,"VL",T$1:T46)-SUMIF($CX$1:$CX46,"FL",T$1:T46) -> 0 | U47: =SUMIF($CX$1:$CX46,"RL",U$1:U46)-SUMIF($CX$1:$CX46,"VL",U$1:U46)-SUMIF($CX$1:$CX46,"FL",U$1:U46) -> 0 | V47: =SUMIF($CX$1:$CX46,"RL",V$1:V46)-SUMIF($CX$1:$CX46,"VL",V$1:V46)-SUMIF($CX$1:$CX46,"FL",V$1:V46) -> 0 | W47: =SUMIF($CX$1:$CX46,"RL",W$1:W46)-SUMIF($CX$1:$CX46,"VL",W$1:W46)-SUMIF($CX$1:$CX46,"FL",W$1:W46) -> 0 | X47: =+W47-E47 -> 0 | Z47: =SUMIF($CX$1:$CX46,"RL",Z$1:Z46)-SUMIF($CX$1:$CX46,"VL",Z$1:Z46)-SUMIF($CX$1:$CX46,"FL",Z$1:Z46) -> 0 | AA47: =SUMIF($CX$1:$CX46,"RL",AA$1:AA46)-SUMIF($CX$1:$CX46,"VL",AA$1:AA46)-SUMIF($CX$1:$CX46,"FL",AA$1:AA46) -> 0 | AB47: =SUMIF($CX$1:$CX46,"RL",AB$1:AB46)-SUMIF($CX$1:$CX46,"VL",AB$1:AB46)-SUMIF($CX$1:$CX46,"FL",AB$1:AB46) -> 0 | AC47: =SUMIF($CX$1:$CX46,"RL",AC$1:AC46)-SUMIF($CX$1:$CX46,"VL",AC$1:AC46)-SUMIF($CX$1:$CX46,"FL",AC$1:AC46) -> 0 | AD47: =SUMIF($CX$1:$CX46,"RL",AD$1:AD46)-SUMIF($CX$1:$CX46,"VL",AD$1:AD46)-SUMIF($CX$1:$CX46,"FL",AD$1:AD46) -> 0 | AE47: =SUMIF($CX$1:$CX46,"RL",AE$1:AE46)-SUMIF($CX$1:$CX46,"VL",AE$1:AE46)-SUMIF($CX$1:$CX46,"FL",AE$1:AE46) -> 0 | AF47: =SUMIF($CX$1:$CX46,"RL",AF$1:AF46)-SUMIF($CX$1:$CX46,"VL",AF$1:AF46)-SUMIF($CX$1:$CX46,"FL",AF$1:AF46) -> 0 | AG47: =SUMIF($CX$1:$CX46,"RL",AG$1:AG46)-SUMIF($CX$1:$CX46,"VL",AG$1:AG46)-SUMIF($CX$1:$CX46,"FL",AG$1:AG46) -> 0 | AH47: =SUMIF($CX$1:$CX46,"RL",AH$1:AH46)-SUMIF($CX$1:$CX46,"VL",AH$1:AH46)-SUMIF($CX$1:$CX46,"FL",AH$1:AH46) -> 0 | AI47: =SUMIF($CX$1:$CX46,"RL",AI$1:AI46)-SUMIF($CX$1:$CX46,"VL",AI$1:AI46)-SUMIF($CX$1:$CX46,"FL",AI$1:AI46) -> 0 | AJ47: =SUMIF($CX$1:$CX46,"RL",AJ$1:AJ46)-SUMIF($CX$1:$CX46,"VL",AJ$1:AJ46)-SUMIF($CX$1:$CX46,"FL",AJ$1:AJ46) -> 0 | AK47: =SUMIF($CX$1:$CX46,"RL",AK$1:AK46)-SUMIF($CX$1:$CX46,"VL",AK$1:AK46)-SUMIF($CX$1:$CX46,"FL",AK$1:AK46) -> 0 | AL47: =SUMIF($CX$1:$CX46,"RL",AL$1:AL46)-SUMIF($CX$1:$CX46,"VL",AL$1:AL46)-SUMIF($CX$1:$CX46,"FL",AL$1:AL46) -> 0 | AM47: =SUMIF($CX$1:$CX46,"RL",AM$1:AM46)-SUMIF($CX$1:$CX46,"VL",AM$1:AM46)-SUMIF($CX$1:$CX46,"FL",AM$1:AM46) -> 0 | AN47: =SUMIF($CX$1:$CX46,"RL",AN$1:AN46)-SUMIF($CX$1:$CX46,"VL",AN$1:AN46)-SUMIF($CX$1:$CX46,"FL",AN$1:AN46) -> 0 | AO47: =SUMIF($CX$1:$CX46,"RL",AO$1:AO46)-SUMIF($CX$1:$CX46,"VL",AO$1:AO46)-SUMIF($CX$1:$CX46,"FL",AO$1:AO46) -> 0 | AP47: =SUMIF($CX$1:$CX46,"RL",AP$1:AP46)-SUMIF($CX$1:$CX46,"VL",AP$1:AP46)-SUMIF($CX$1:$CX46,"FL",AP$1:AP46) -> 0 | AQ47: =+AP47-W47 -> 0 | AS47: =SUMIF($CX$1:$CX46,"RL",AS$1:AS46)-SUMIF($CX$1:$CX46,"VL",AS$1:AS46)-SUMIF($CX$1:$CX46,"FL",AS$1:AS46) -> 0 | AT47: =SUMIF($CX$1:$CX46,"RL",AT$1:AT46)-SUMIF($CX$1:$CX46,"VL",AT$1:AT46)-SUMIF($CX$1:$CX46,"FL",AT$1:AT46) -> 0 | AU47: =SUMIF($CX$1:$CX46,"RL",AU$1:AU46)-SUMIF($CX$1:$CX46,"VL",AU$1:AU46)-SUMIF($CX$1:$CX46,"FL",AU$1:AU46) -> 0 | AV47: =SUMIF($CX$1:$CX46,"RL",AV$1:AV46)-SUMIF($CX$1:$CX46,"VL",AV$1:AV46)-SUMIF($CX$1:$CX46,"FL",AV$1:AV46) -> 0 | AW47: =SUMIF($CX$1:$CX46,"RL",AW$1:AW46)-SUMIF($CX$1:$CX46,"VL",AW$1:AW46)-SUMIF($CX$1:$CX46,"FL",AW$1:AW46) -> 0 | AX47: =SUMIF($CX$1:$CX46,"RL",AX$1:AX46)-SUMIF($CX$1:$CX46,"VL",AX$1:AX46)-SUMIF($CX$1:$CX46,"FL",AX$1:AX46) -> 0 | AY47: =SUMIF($CX$1:$CX46,"RL",AY$1:AY46)-SUMIF($CX$1:$CX46,"VL",AY$1:AY46)-SUMIF($CX$1:$CX46,"FL",AY$1:AY46) -> 0 | AZ47: =SUMIF($CX$1:$CX46,"RL",AZ$1:AZ46)-SUMIF($CX$1:$CX46,"VL",AZ$1:AZ46)-SUMIF($CX$1:$CX46,"FL",AZ$1:AZ46) -> 0 | BA47: =SUMIF($CX$1:$CX46,"RL",BA$1:BA46)-SUMIF($CX$1:$CX46,"VL",BA$1:BA46)-SUMIF($CX$1:$CX46,"FL",BA$1:BA46) -> 0 | BB47: =SUMIF($CX$1:$CX46,"RL",BB$1:BB46)-SUMIF($CX$1:$CX46,"VL",BB$1:BB46)-SUMIF($CX$1:$CX46,"FL",BB$1:BB46) -> 0 | BC47: =SUMIF($CX$1:$CX46,"RL",BC$1:BC46)-SUMIF($CX$1:$CX46,"VL",BC$1:BC46)-SUMIF($CX$1:$CX46,"FL",BC$1:BC46) -> 0 | BD47: =SUMIF($CX$1:$CX46,"RL",BD$1:BD46)-SUMIF($CX$1:$CX46,"VL",BD$1:BD46)-SUMIF($CX$1:$CX46,"FL",BD$1:BD46) -> 0 | BE47: =SUMIF($CX$1:$CX46,"RL",BE$1:BE46)-SUMIF($CX$1:$CX46,"VL",BE$1:BE46)-SUMIF($CX$1:$CX46,"FL",BE$1:BE46) -> 0 | BF47: =SUMIF($CX$1:$CX46,"RL",BF$1:BF46)-SUMIF($CX$1:$CX46,"VL",BF$1:BF46)-SUMIF($CX$1:$CX46,"FL",BF$1:BF46) -> 0 | BG47: =SUMIF($CX$1:$CX46,"RL",BG$1:BG46)-SUMIF($CX$1:$CX46,"VL",BG$1:BG46)-SUMIF($CX$1:$CX46,"FL",BG$1:BG46) -> 0 | BH47: =SUMIF($CX$1:$CX46,"RL",BH$1:BH46)-SUMIF($CX$1:$CX46,"VL",BH$1:BH46)-SUMIF($CX$1:$CX46,"FL",BH$1:BH46) -> 0 | BI47: =SUMIF($CX$1:$CX46,"RL",BI$1:BI46)-SUMIF($CX$1:$CX46,"VL",BI$1:BI46)-SUMIF($CX$1:$CX46,"FL",BI$1:BI46) -> 0 | BJ47: =+BI47-AP47 -> 0 | BL47: =SUMIF($CX$1:$CX46,"RL",BL$1:BL46)-SUMIF($CX$1:$CX46,"VL",BL$1:BL46)-SUMIF($CX$1:$CX46,"FL",BL$1:BL46) -> 0 | BM47: =SUMIF($CX$1:$CX46,"RL",BM$1:BM46)-SUMIF($CX$1:$CX46,"VL",BM$1:BM46)-SUMIF($CX$1:$CX46,"FL",BM$1:BM46) -> 0 | BN47: =SUMIF($CX$1:$CX46,"RL",BN$1:BN46)-SUMIF($CX$1:$CX46,"VL",BN$1:BN46)-SUMIF($CX$1:$CX46,"FL",BN$1:BN46) -> 0 | BO47: =SUMIF($CX$1:$CX46,"RL",BO$1:BO46)-SUMIF($CX$1:$CX46,"VL",BO$1:BO46)-SUMIF($CX$1:$CX46,"FL",BO$1:BO46) -> 0 | BP47: =SUMIF($CX$1:$CX46,"RL",BP$1:BP46)-SUMIF($CX$1:$CX46,"VL",BP$1:BP46)-SUMIF($CX$1:$CX46,"FL",BP$1:BP46) -> 0 | BQ47: =SUMIF($CX$1:$CX46,"RL",BQ$1:BQ46)-SUMIF($CX$1:$CX46,"VL",BQ$1:BQ46)-SUMIF($CX$1:$CX46,"FL",BQ$1:BQ46) -> 0 | BR47: =SUMIF($CX$1:$CX46,"RL",BR$1:BR46)-SUMIF($CX$1:$CX46,"VL",BR$1:BR46)-SUMIF($CX$1:$CX46,"FL",BR$1:BR46) -> 0 | BS47: =SUMIF($CX$1:$CX46,"RL",BS$1:BS46)-SUMIF($CX$1:$CX46,"VL",BS$1:BS46)-SUMIF($CX$1:$CX46,"FL",BS$1:BS46) -> 0 | BT47: =SUMIF($CX$1:$CX46,"RL",BT$1:BT46)-SUMIF($CX$1:$CX46,"VL",BT$1:BT46)-SUMIF($CX$1:$CX46,"FL",BT$1:BT46) -> 0 | BU47: =SUMIF($CX$1:$CX46,"RL",BU$1:BU46)-SUMIF($CX$1:$CX46,"VL",BU$1:BU46)-SUMIF($CX$1:$CX46,"FL",BU$1:BU46) -> 0 | BV47: =SUMIF($CX$1:$CX46,"RL",BV$1:BV46)-SUMIF($CX$1:$CX46,"VL",BV$1:BV46)-SUMIF($CX$1:$CX46,"FL",BV$1:BV46) -> 0 | BW47: =SUMIF($CX$1:$CX46,"RL",BW$1:BW46)-SUMIF($CX$1:$CX46,"VL",BW$1:BW46)-SUMIF($CX$1:$CX46,"FL",BW$1:BW46) -> 0 | BX47: =SUMIF($CX$1:$CX46,"RL",BX$1:BX46)-SUMIF($CX$1:$CX46,"VL",BX$1:BX46)-SUMIF($CX$1:$CX46,"FL",BX$1:BX46) -> 0 | BY47: =SUMIF($CX$1:$CX46,"RL",BY$1:BY46)-SUMIF($CX$1:$CX46,"VL",BY$1:BY46)-SUMIF($CX$1:$CX46,"FL",BY$1:BY46) -> 0 | BZ47: =SUMIF($CX$1:$CX46,"RL",BZ$1:BZ46)-SUMIF($CX$1:$CX46,"VL",BZ$1:BZ46)-SUMIF($CX$1:$CX46,"FL",BZ$1:BZ46) -> 0 | CA47: =SUMIF($CX$1:$CX46,"RL",CA$1:CA46)-SUMIF($CX$1:$CX46,"VL",CA$1:CA46)-SUMIF($CX$1:$CX46,"FL",CA$1:CA46) -> 0 | CB47: =SUMIF($CX$1:$CX46,"RL",CB$1:CB46)-SUMIF($CX$1:$CX46,"VL",CB$1:CB46)-SUMIF($CX$1:$CX46,"FL",CB$1:CB46) -> 0 | CC47: =+CB47-BI47 -> 0 | CE47: =SUMIF($CX$1:$CX46,"RL",CE$1:CE46)-SUMIF($CX$1:$CX46,"VL",CE$1:CE46)-SUMIF($CX$1:$CX46,"FL",CE$1:CE46) -> 0 | CF47: =SUMIF($CX$1:$CX46,"RL",CF$1:CF46)-SUMIF($CX$1:$CX46,"VL",CF$1:CF46)-SUMIF($CX$1:$CX46,"FL",CF$1:CF46) -> 0 | CG47: =SUMIF($CX$1:$CX46,"RL",CG$1:CG46)-SUMIF($CX$1:$CX46,"VL",CG$1:CG46)-SUMIF($CX$1:$CX46,"FL",CG$1:CG46) -> 0 | CH47: =SUMIF($CX$1:$CX46,"RL",CH$1:CH46)-SUMIF($CX$1:$CX46,"VL",CH$1:CH46)-SUMIF($CX$1:$CX46,"FL",CH$1:CH46) -> 0 | CI47: =SUMIF($CX$1:$CX46,"RL",CI$1:CI46)-SUMIF($CX$1:$CX46,"VL",CI$1:CI46)-SUMIF($CX$1:$CX46,"FL",CI$1:CI46) -> 0 | CJ47: =SUMIF($CX$1:$CX46,"RL",CJ$1:CJ46)-SUMIF($CX$1:$CX46,"VL",CJ$1:CJ46)-SUMIF($CX$1:$CX46,"FL",CJ$1:CJ46) -> 0 | CK47: =SUMIF($CX$1:$CX46,"RL",CK$1:CK46)-SUMIF($CX$1:$CX46,"VL",CK$1:CK46)-SUMIF($CX$1:$CX46,"FL",CK$1:CK46) -> 0 | CL47: =SUMIF($CX$1:$CX46,"RL",CL$1:CL46)-SUMIF($CX$1:$CX46,"VL",CL$1:CL46)-SUMIF($CX$1:$CX46,"FL",CL$1:CL46) -> 0 | CM47: =SUMIF($CX$1:$CX46,"RL",CM$1:CM46)-SUMIF($CX$1:$CX46,"VL",CM$1:CM46)-SUMIF($CX$1:$CX46,"FL",CM$1:CM46) -> 0 | CN47: =SUMIF($CX$1:$CX46,"RL",CN$1:CN46)-SUMIF($CX$1:$CX46,"VL",CN$1:CN46)-SUMIF($CX$1:$CX46,"FL",CN$1:CN46) -> 0 | CO47: =SUMIF($CX$1:$CX46,"RL",CO$1:CO46)-SUMIF($CX$1:$CX46,"VL",CO$1:CO46)-SUMIF($CX$1:$CX46,"FL",CO$1:CO46) -> 0 | CP47: =SUMIF($CX$1:$CX46,"RL",CP$1:CP46)-SUMIF($CX$1:$CX46,"VL",CP$1:CP46)-SUMIF($CX$1:$CX46,"FL",CP$1:CP46) -> 0 | CQ47: =SUMIF($CX$1:$CX46,"RL",CQ$1:CQ46)-SUMIF($CX$1:$CX46,"VL",CQ$1:CQ46)-SUMIF($CX$1:$CX46,"FL",CQ$1:CQ46) -> 0 | CR47: =SUMIF($CX$1:$CX46,"RL",CR$1:CR46)-SUMIF($CX$1:$CX46,"VL",CR$1:CR46)-SUMIF($CX$1:$CX46,"FL",CR$1:CR46) -> 0 | CS47: =SUMIF($CX$1:$CX46,"RL",CS$1:CS46)-SUMIF($CX$1:$CX46,"VL",CS$1:CS46)-SUMIF($CX$1:$CX46,"FL",CS$1:CS46) -> 0 | CT47: =SUMIF($CX$1:$CX46,"RL",CT$1:CT46)-SUMIF($CX$1:$CX46,"VL",CT$1:CT46)-SUMIF($CX$1:$CX46,"FL",CT$1:CT46) -> 0 | CU47: =SUMIF($CX$1:$CX46,"RL",CU$1:CU46)-SUMIF($CX$1:$CX46,"VL",CU$1:CU46)-SUMIF($CX$1:$CX46,"FL",CU$1:CU46) -> 0 | CV47: =+CU47-CB47 -> 0 | CX47: PAT
B48: Percentage of Revenue | C48: =+C47/RTCYYTD ->  | D48: =+D47/RTCYRem ->  | E48: =+E47/RTCYFY ->  | G48: =+G47/RTY1M1 ->  | H48: =+H47/RTY1M2 ->  | I48: =+I47/RTY1M3 ->  | J48: =+J47/RTY1Q1 ->  | K48: =+K47/RTY1M4 ->  | L48: =+L47/RTY1M5 ->  | M48: =+M47/RTY1M6 ->  | N48: =+N47/RTY1Q2 ->  | O48: =+O47/RTY1M7 ->  | P48: =+P47/RTY1M8 ->  | Q48: =+Q47/RTY1M9 ->  | R48: =+R47/RTY1Q3 ->  | S48: =+S47/RTY1M10 ->  | T48: =+T47/RTY1M11 ->  | U48: =+U47/RTY1M12 ->  | V48: =+V47/RTY1Q4 ->  | W48: =+W47/RTY1FY ->  | X48: =+X47/E47 ->  | Z48: =+Z47/RTY2M1 ->  | AA48: =+AA47/RTY2M2 ->  | AB48: =+AB47/RTY2M3 ->  | AC48: =+AC47/RTY2Q1 ->  | AD48: =+AD47/RTY2M4 ->  | AE48: =+AE47/RTY2M5 ->  | AF48: =+AF47/RTY2M6 ->  | AG48: =+AG47/RTY2Q2 ->  | AH48: =+AH47/RTY2M7 ->  | AI48: =+AI47/RTY2M8 ->  | AJ48: =+AJ47/RTY2M9 ->  | AK48: =+AK47/RTY2Q3 ->  | AL48: =+AL47/RTY2M10 ->  | AM48: =+AM47/RTY2M11 ->  | AN48: =+AN47/RTY2M12 ->  | AO48: =+AO47/RTY2Q4 ->  | AP48: =+AP47/RTY2FY ->  | AQ48: =+AQ47/W47 ->  | AS48: =+AS47/RTY3M1 ->  | AT48: =+AT47/RTY3M2 ->  | AU48: =+AU47/RTY3M3 ->  | AV48: =+AV47/RTY3Q1 ->  | AW48: =+AW47/RTY3M4 ->  | AX48: =+AX47/RTY3M5 ->  | AY48: =+AY47/RTY3M6 ->  | AZ48: =+AZ47/RTY3Q2 ->  | BA48: =+BA47/RTY3M7 ->  | BB48: =+BB47/RTY3M8 ->  | BC48: =+BC47/RTY3M9 ->  | BD48: =+BD47/RTY3Q3 ->  | BE48: =+BE47/RTY3M10 ->  | BF48: =+BF47/RTY3M11 ->  | BG48: =+BG47/RTY3M12 ->  | BH48: =+BH47/RTY3Q4 ->  | BI48: =+BI47/RTY3FY ->  | BJ48: =+BJ47/AP47 ->  | BL48: =+BL47/RTY4M1 ->  | BM48: =+BM47/RTY4M2 ->  | BN48: =+BN47/RTY4M3 ->  | BO48: =+BO47/RTY4Q1 ->  | BP48: =+BP47/RTY4M4 ->  | BQ48: =+BQ47/RTY4M5 ->  | BR48: =+BR47/RTY4M6 ->  | BS48: =+BS47/RTY4Q2 ->  | BT48: =+BT47/RTY4M7 ->  | BU48: =+BU47/RTY4M8 ->  | BV48: =+BV47/RTY4M9 ->  | BW48: =+BW47/RTY4Q3 ->  | BX48: =+BX47/RTY4M10 ->  | BY48: =+BY47/RTY4M11 ->  | BZ48: =+BZ47/RTY4M12 ->  | CA48: =+CA47/RTY4Q4 ->  | CB48: =+CB47/RTY4FY ->  | CC48: =+CC47/BI47 ->  | CE48: =+CE47/RTY5M1 ->  | CF48: =+CF47/RTY5M2 ->  | CG48: =+CG47/RTY5M3 ->  | CH48: =+CH47/RTY5Q1 ->  | CI48: =+CI47/RTY5M4 ->  | CJ48: =+CJ47/RTY5M5 ->  | CK48: =+CK47/RTY5M6 ->  | CL48: =+CL47/RTY5Q2 ->  | CM48: =+CM47/RTY5M7 ->  | CN48: =+CN47/RTY5M8 ->  | CO48: =+CO47/RTY5M9 ->  | CP48: =+CP47/RTY5Q3 ->  | CQ48: =+CQ47/RTY5M10 ->  | CR48: =+CR47/RTY5M11 ->  | CS48: =+CS47/RTY5M12 ->  | CT48: =+CT47/RTY5Q4 ->  | CU48: =+CU47/RTY5FY ->  | CV48: =+CV47/CB47 ->  | CX48: PAP
CX49: T

Sheet Example New Sheet
A1: 36 | Q1: BK
A2: 18 | B2: Example New Sheet | Q2: BT
A3: B | B3: T | C3: M | D3: M | E3: M | F3: M | G3: M | H3: M | I3: M | J3: M | K3: M | L3: M | M3: M | N3: M | O3: Y | P3: B | Q3: T
C4: 2010-04-10 | D4: 2010-05-11 | E4: 2010-06-11 | F4: 2010-07-12 | G4: 2010-08-12 | H4: 2010-09-12 | I4: 2010-10-13 | J4: 2010-11-13 | K4: 2010-12-14 | L4: 2011-01-14 | M4: 2011-02-14 | N4: 2011-03-17 | O4: Full Year | Q4: YT
B5: Title Revenue | Q5: RA
B6: Product Sales | C6: 11567.64706 | D6: 12677.64706 | E6: 14643.52941 | F6: 15024.70588 | G6: 15405.88235 | H6: 16664.11765 | I6: 17066.47059 | J6: 17468.82353 | K6: 13168.23529 | L6: 13464.70588 | M6: 12778.23529 | N6: 17070 | O6: =SUM(C6:N6) -> 177000 | Q6: RL
B7: Percent of Year | C7: =+C6/O6 -> 0.06535393819 | D7: =+D6/O6 -> 0.07162512463 | E7: =+E6/O6 -> 0.08273180459 | F7: =+F6/O6 -> 0.08488534397 | G7: =+G6/O6 -> 0.08703888335 | H7: =+H6/O6 -> 0.09414755733 | I7: =+I6/O6 -> 0.09642073779 | J7: =+J6/O6 -> 0.09869391825 | K7: =+K6/O6 -> 0.07439680957 | L7: =+L6/O6 -> 0.07607178465 | M7: =+M6/O6 -> 0.07219341974 | N7: =+N6/O6 -> 0.09644067797 | O7: =+O6/O6 -> 1 | Q7: RLP
B8: Service Income | C8: 15423.52941 | D8: 16903.52941 | E8: 19524.70588 | F8: 20032.94118 | G8: 20541.17647 | H8: 22218.82353 | I8: 22755.29412 | J8: 23291.76471 | K8: 17557.64706 | L8: 17952.94118 | M8: 17037.64706 | N8: 22760 | O8: =SUM(C8:N8) -> 236000 | Q8: RL
B9: Percent of Year | C9: =+C8/O8 -> 0.06535393819 | D9: =+D8/O8 -> 0.07162512463 | E9: =+E8/O8 -> 0.08273180459 | F9: =+F8/O8 -> 0.08488534397 | G9: =+G8/O8 -> 0.08703888335 | H9: =+H8/O8 -> 0.09414755733 | I9: =+I8/O8 -> 0.09642073779 | J9: =+J8/O8 -> 0.09869391825 | K9: =+K8/O8 -> 0.07439680957 | L9: =+L8/O8 -> 0.07607178465 | M9: =+M8/O8 -> 0.07219341974 | N9: =+N8/O8 -> 0.09644067797 | O9: =+O8/O8 -> 1 | Q9: RLP
Q10: RI
B11: Total Revenue | C11: =SUMIF($Q$1:$Q10,"RL",C$1:C10) -> 26991.17647 | D11: =SUMIF($Q$1:$Q10,"RL",D$1:D10) -> 29581.17647 | E11: =SUMIF($Q$1:$Q10,"RL",E$1:E10) -> 34168.23529 | F11: =SUMIF($Q$1:$Q10,"RL",F$1:F10) -> 35057.64706 | G11: =SUMIF($Q$1:$Q10,"RL",G$1:G10) -> 35947.05882 | H11: =SUMIF($Q$1:$Q10,"RL",H$1:H10) -> 38882.94118 | I11: =SUMIF($Q$1:$Q10,"RL",I$1:I10) -> 39821.76471 | J11: =SUMIF($Q$1:$Q10,"RL",J$1:J10) -> 40760.58824 | K11: =SUMIF($Q$1:$Q10,"RL",K$1:K10) -> 30725.88235 | L11: =SUMIF($Q$1:$Q10,"RL",L$1:L10) -> 31417.64706 | M11: =SUMIF($Q$1:$Q10,"RL",M$1:M10) -> 29815.88235 | N11: =SUMIF($Q$1:$Q10,"RL",N$1:N10) -> 39830 | O11: =SUMIF($Q$1:$Q10,"RL",O$1:O10) -> 413000 | Q11: RAT
B12: Percent of Year | C12: =+C11/O11 -> 0.06535393819 | D12: =+D11/O11 -> 0.07162512463 | E12: =+E11/O11 -> 0.08273180459 | F12: =+F11/O11 -> 0.08488534397 | G12: =+G11/O11 -> 0.08703888335 | H12: =+H11/O11 -> 0.09414755733 | I12: =+I11/O11 -> 0.09642073779 | J12: =+J11/O11 -> 0.09869391825 | K12: =+K11/O11 -> 0.07439680957 | L12: =+L11/O11 -> 0.07607178465 | M12: =+M11/O11 -> 0.07219341974 | N12: =+N11/O11 -> 0.09644067797 | O12: =+O11/O11 -> 1 | Q12: RLP
B13: Title Variable Costs | Q13: VA
B14: Product Costs | C14: 5776.111765 | D14: 6330.371765 | E14: 7312.002353 | F14: 7502.336471 | G14: 7692.670588 | H14: 8320.949412 | I14: 8521.857647 | J14: 8722.765882 | K14: 6575.338824 | L14: 6723.376471 | M14: 6380.598824 | N14: 8523.62 | O14: =SUM(C14:N14) -> 88382 | Q14: VL
B15: Percent of Month | C15: =+C14/SUMIF($Q$1:$Q14,"RAT",C$1:C14) -> 0.214 | D15: =+D14/SUMIF($Q$1:$Q14,"RAT",D$1:D14) -> 0.214 | E15: =+E14/SUMIF($Q$1:$Q14,"RAT",E$1:E14) -> 0.214 | F15: =+F14/SUMIF($Q$1:$Q14,"RAT",F$1:F14) -> 0.214 | G15: =+G14/SUMIF($Q$1:$Q14,"RAT",G$1:G14) -> 0.214 | H15: =+H14/SUMIF($Q$1:$Q14,"RAT",H$1:H14) -> 0.214 | I15: =+I14/SUMIF($Q$1:$Q14,"RAT",I$1:I14) -> 0.214 | J15: =+J14/SUMIF($Q$1:$Q14,"RAT",J$1:J14) -> 0.214 | K15: =+K14/SUMIF($Q$1:$Q14,"RAT",K$1:K14) -> 0.214 | L15: =+L14/SUMIF($Q$1:$Q14,"RAT",L$1:L14) -> 0.214 | M15: =+M14/SUMIF($Q$1:$Q14,"RAT",M$1:M14) -> 0.214 | N15: =+N14/SUMIF($Q$1:$Q14,"RAT",N$1:N14) -> 0.214 | O15: =+O14/SUMIF($Q$1:$Q14,"RAT",O$1:O14) -> 0.214 | Q15: RLP
B16: Service Costs | C16: 8251.588235 | D16: 9043.388235 | E16: 10445.71765 | F16: 10717.62353 | G16: 10989.52941 | H16: 11887.07059 | I16: 12174.08235 | J16: 12461.09412 | K16: 9393.341176 | L16: 9604.823529 | M16: 9115.141176 | N16: 12176.6 | O16: =SUM(C16:N16) -> 126260 | Q16: VL
B17: Percent of Month | C17: =+C16/SUMIF($Q$1:$Q16,"RAT",C$1:C16) -> 0.3057142857 | D17: =+D16/SUMIF($Q$1:$Q16,"RAT",D$1:D16) -> 0.3057142857 | E17: =+E16/SUMIF($Q$1:$Q16,"RAT",E$1:E16) -> 0.3057142857 | F17: =+F16/SUMIF($Q$1:$Q16,"RAT",F$1:F16) -> 0.3057142857 | G17: =+G16/SUMIF($Q$1:$Q16,"RAT",G$1:G16) -> 0.3057142857 | H17: =+H16/SUMIF($Q$1:$Q16,"RAT",H$1:H16) -> 0.3057142857 | I17: =+I16/SUMIF($Q$1:$Q16,"RAT",I$1:I16) -> 0.3057142857 | J17: =+J16/SUMIF($Q$1:$Q16,"RAT",J$1:J16) -> 0.3057142857 | K17: =+K16/SUMIF($Q$1:$Q16,"RAT",K$1:K16) -> 0.3057142857 | L17: =+L16/SUMIF($Q$1:$Q16,"RAT",L$1:L16) -> 0.3057142857 | M17: =+M16/SUMIF($Q$1:$Q16,"RAT",M$1:M16) -> 0.3057142857 | N17: =+N16/SUMIF($Q$1:$Q16,"RAT",N$1:N16) -> 0.3057142857 | O17: =+O16/SUMIF($Q$1:$Q16,"RAT",O$1:O16) -> 0.3057142857 | Q17: RLP
Q18: RI
B19: Total Variable Costs | C19: =SUMIF($Q$1:$Q18,"VL",C$1:C18) -> 14027.7 | D19: =SUMIF($Q$1:$Q18,"VL",D$1:D18) -> 15373.76 | E19: =SUMIF($Q$1:$Q18,"VL",E$1:E18) -> 17757.72 | F19: =SUMIF($Q$1:$Q18,"VL",F$1:F18) -> 18219.96 | G19: =SUMIF($Q$1:$Q18,"VL",G$1:G18) -> 18682.2 | H19: =SUMIF($Q$1:$Q18,"VL",H$1:H18) -> 20208.02 | I19: =SUMIF($Q$1:$Q18,"VL",I$1:I18) -> 20695.94 | J19: =SUMIF($Q$1:$Q18,"VL",J$1:J18) -> 21183.86 | K19: =SUMIF($Q$1:$Q18,"VL",K$1:K18) -> 15968.68 | L19: =SUMIF($Q$1:$Q18,"VL",L$1:L18) -> 16328.2 | M19: =SUMIF($Q$1:$Q18,"VL",M$1:M18) -> 15495.74 | N19: =SUMIF($Q$1:$Q18,"VL",N$1:N18) -> 20700.22 | O19: =SUMIF($Q$1:$Q18,"VL",O$1:O18) -> 214642 | Q19: VAT
B20: Percent of Month | C20: =+C19/SUMIF($Q$1:$Q19,"RAT",C$1:C19) -> 0.5197142857 | D20: =+D19/SUMIF($Q$1:$Q19,"RAT",D$1:D19) -> 0.5197142857 | E20: =+E19/SUMIF($Q$1:$Q19,"RAT",E$1:E19) -> 0.5197142857 | F20: =+F19/SUMIF($Q$1:$Q19,"RAT",F$1:F19) -> 0.5197142857 | G20: =+G19/SUMIF($Q$1:$Q19,"RAT",G$1:G19) -> 0.5197142857 | H20: =+H19/SUMIF($Q$1:$Q19,"RAT",H$1:H19) -> 0.5197142857 | I20: =+I19/SUMIF($Q$1:$Q19,"RAT",I$1:I19) -> 0.5197142857 | J20: =+J19/SUMIF($Q$1:$Q19,"RAT",J$1:J19) -> 0.5197142857 | K20: =+K19/SUMIF($Q$1:$Q19,"RAT",K$1:K19) -> 0.5197142857 | L20: =+L19/SUMIF($Q$1:$Q19,"RAT",L$1:L19) -> 0.5197142857 | M20: =+M19/SUMIF($Q$1:$Q19,"RAT",M$1:M19) -> 0.5197142857 | N20: =+N19/SUMIF($Q$1:$Q19,"RAT",N$1:N19) -> 0.5197142857 | O20: =+O19/SUMIF($Q$1:$Q19,"RAT",O$1:O19) -> 0.5197142857 | Q20: RLP
B21: Fixed Costs | Q21: FA
B22: Administration | C22: 1750 | D22: 1750 | E22: 1750 | F22: 1750 | G22: 1750 | H22: 1750 | I22: 1750 | J22: 1750 | K22: 1750 | L22: 1750 | M22: 1750 | N22: 1750 | O22: =SUM(C22:N22) -> 21000 | Q22: FL
B23: Percent of Month | C23: =+C22/SUMIF($Q$1:$Q22,"RAT",C$1:C22) -> 0.06483600305 | D23: =+D22/SUMIF($Q$1:$Q22,"RAT",D$1:D22) -> 0.05915924276 | E23: =+E22/SUMIF($Q$1:$Q22,"RAT",E$1:E22) -> 0.05121716076 | F23: =+F22/SUMIF($Q$1:$Q22,"RAT",F$1:F22) -> 0.04991778248 | G23: =+G22/SUMIF($Q$1:$Q22,"RAT",G$1:G22) -> 0.04868270332 | H23: =+H22/SUMIF($Q$1:$Q22,"RAT",H$1:H22) -> 0.04500688341 | I23: =+I22/SUMIF($Q$1:$Q22,"RAT",I$1:I22) -> 0.04394581739 | J23: =+J22/SUMIF($Q$1:$Q22,"RAT",J$1:J22) -> 0.04293362966 | K23: =+K22/SUMIF($Q$1:$Q22,"RAT",K$1:K22) -> 0.05695523988 | L23: =+L22/SUMIF($Q$1:$Q22,"RAT",L$1:L22) -> 0.05570117955 | M23: =+M22/SUMIF($Q$1:$Q22,"RAT",M$1:M22) -> 0.05869355061 | N23: =+N22/SUMIF($Q$1:$Q22,"RAT",N$1:N22) -> 0.04393673111 | O23: =+O22/SUMIF($Q$1:$Q22,"RAT",O$1:O22) -> 0.05084745763 | Q23: RLP
B24: Salaries | C24: 4375 | D24: 4375 | E24: 4375 | F24: 4375 | G24: 4375 | H24: 4375 | I24: 4375 | J24: 4375 | K24: 4375 | L24: 4375 | M24: 4375 | N24: 4375 | O24: =SUM(C24:N24) -> 52500 | Q24: FL
B25: Percent of Month | C25: =+C24/SUMIF($Q$1:$Q24,"RAT",C$1:C24) -> 0.1620900076 | D25: =+D24/SUMIF($Q$1:$Q24,"RAT",D$1:D24) -> 0.1478981069 | E25: =+E24/SUMIF($Q$1:$Q24,"RAT",E$1:E24) -> 0.1280429019 | F25: =+F24/SUMIF($Q$1:$Q24,"RAT",F$1:F24) -> 0.1247944562 | G25: =+G24/SUMIF($Q$1:$Q24,"RAT",G$1:G24) -> 0.1217067583 | H25: =+H24/SUMIF($Q$1:$Q24,"RAT",H$1:H24) -> 0.1125172085 | I25: =+I24/SUMIF($Q$1:$Q24,"RAT",I$1:I24) -> 0.1098645435 | J25: =+J24/SUMIF($Q$1:$Q24,"RAT",J$1:J24) -> 0.1073340741 | K25: =+K24/SUMIF($Q$1:$Q24,"RAT",K$1:K24) -> 0.1423880997 | L25: =+L24/SUMIF($Q$1:$Q24,"RAT",L$1:L24) -> 0.1392529489 | M25: =+M24/SUMIF($Q$1:$Q24,"RAT",M$1:M24) -> 0.1467338765 | N25: =+N24/SUMIF($Q$1:$Q24,"RAT",N$1:N24) -> 0.1098418278 | O25: =+O24/SUMIF($Q$1:$Q24,"RAT",O$1:O24) -> 0.1271186441 | Q25: RLP
B26: Property Costs | C26: 3500 | D26: 3500 | E26: 3500 | F26: 3500 | G26: 3500 | H26: 3500 | I26: 3500 | J26: 3500 | K26: 3500 | L26: 3500 | M26: 3500 | N26: 3500 | O26: =SUM(C26:N26) -> 42000 | Q26: FL
B27: Percent of Month | C27: =+C26/SUMIF($Q$1:$Q26,"RAT",C$1:C26) -> 0.1296720061 | D27: =+D26/SUMIF($Q$1:$Q26,"RAT",D$1:D26) -> 0.1183184855 | E27: =+E26/SUMIF($Q$1:$Q26,"RAT",E$1:E26) -> 0.1024343215 | F27: =+F26/SUMIF($Q$1:$Q26,"RAT",F$1:F26) -> 0.09983556495 | G27: =+G26/SUMIF($Q$1:$Q26,"RAT",G$1:G26) -> 0.09736540664 | H27: =+H26/SUMIF($Q$1:$Q26,"RAT",H$1:H26) -> 0.09001376681 | I27: =+I26/SUMIF($Q$1:$Q26,"RAT",I$1:I26) -> 0.08789163478 | J27: =+J26/SUMIF($Q$1:$Q26,"RAT",J$1:J26) -> 0.08586725932 | K27: =+K26/SUMIF($Q$1:$Q26,"RAT",K$1:K26) -> 0.1139104798 | L27: =+L26/SUMIF($Q$1:$Q26,"RAT",L$1:L26) -> 0.1114023591 | M27: =+M26/SUMIF($Q$1:$Q26,"RAT",M$1:M26) -> 0.1173871012 | N27: =+N26/SUMIF($Q$1:$Q26,"RAT",N$1:N26) -> 0.08787346221 | O27: =+O26/SUMIF($Q$1:$Q26,"RAT",O$1:O26) -> 0.1016949153 | Q27: RLP
Q28: RI
B29: Total Fixed Costs | C29: =SUMIF($Q$1:$Q28,"FL",C$1:C28) -> 9625 | D29: =SUMIF($Q$1:$Q28,"FL",D$1:D28) -> 9625 | E29: =SUMIF($Q$1:$Q28,"FL",E$1:E28) -> 9625 | F29: =SUMIF($Q$1:$Q28,"FL",F$1:F28) -> 9625 | G29: =SUMIF($Q$1:$Q28,"FL",G$1:G28) -> 9625 | H29: =SUMIF($Q$1:$Q28,"FL",H$1:H28) -> 9625 | I29: =SUMIF($Q$1:$Q28,"FL",I$1:I28) -> 9625 | J29: =SUMIF($Q$1:$Q28,"FL",J$1:J28) -> 9625 | K29: =SUMIF($Q$1:$Q28,"FL",K$1:K28) -> 9625 | L29: =SUMIF($Q$1:$Q28,"FL",L$1:L28) -> 9625 | M29: =SUMIF($Q$1:$Q28,"FL",M$1:M28) -> 9625 | N29: =SUMIF($Q$1:$Q28,"FL",N$1:N28) -> 9625 | O29: =SUMIF($Q$1:$Q28,"FL",O$1:O28) -> 115500 | Q29: FAT
B30: Percent of Month | C30: =+C29/SUMIF($Q$1:$Q29,"RAT",C$1:C29) -> 0.3565980168 | D30: =+D29/SUMIF($Q$1:$Q29,"RAT",D$1:D29) -> 0.3253758352 | E30: =+E29/SUMIF($Q$1:$Q29,"RAT",E$1:E29) -> 0.2816943842 | F30: =+F29/SUMIF($Q$1:$Q29,"RAT",F$1:F29) -> 0.2745478036 | G30: =+G29/SUMIF($Q$1:$Q29,"RAT",G$1:G29) -> 0.2677548683 | H30: =+H29/SUMIF($Q$1:$Q29,"RAT",H$1:H29) -> 0.2475378587 | I30: =+I29/SUMIF($Q$1:$Q29,"RAT",I$1:I29) -> 0.2417019957 | J30: =+J29/SUMIF($Q$1:$Q29,"RAT",J$1:J29) -> 0.2361349631 | K30: =+K29/SUMIF($Q$1:$Q29,"RAT",K$1:K29) -> 0.3132538194 | L30: =+L29/SUMIF($Q$1:$Q29,"RAT",L$1:L29) -> 0.3063564875 | M30: =+M29/SUMIF($Q$1:$Q29,"RAT",M$1:M29) -> 0.3228145284 | N30: =+N29/SUMIF($Q$1:$Q29,"RAT",N$1:N29) -> 0.2416520211 | O30: =+O29/SUMIF($Q$1:$Q29,"RAT",O$1:O29) -> 0.2796610169 | Q30: RLP
B31: Profit/Surplus | C31: =SUMIF($Q$1:$Q30,"RL",C$1:C30)-SUMIF($Q$1:$Q30,"VL",C$1:C30)-SUMIF($Q$1:$Q30,"FL",C$1:C30) -> 3338.476471 | D31: =SUMIF($Q$1:$Q30,"RL",D$1:D30)-SUMIF($Q$1:$Q30,"VL",D$1:D30)-SUMIF($Q$1:$Q30,"FL",D$1:D30) -> 4582.416471 | E31: =SUMIF($Q$1:$Q30,"RL",E$1:E30)-SUMIF($Q$1:$Q30,"VL",E$1:E30)-SUMIF($Q$1:$Q30,"FL",E$1:E30) -> 6785.515294 | F31: =SUMIF($Q$1:$Q30,"RL",F$1:F30)-SUMIF($Q$1:$Q30,"VL",F$1:F30)-SUMIF($Q$1:$Q30,"FL",F$1:F30) -> 7212.687059 | G31: =SUMIF($Q$1:$Q30,"RL",G$1:G30)-SUMIF($Q$1:$Q30,"VL",G$1:G30)-SUMIF($Q$1:$Q30,"FL",G$1:G30) -> 7639.858824 | H31: =SUMIF($Q$1:$Q30,"RL",H$1:H30)-SUMIF($Q$1:$Q30,"VL",H$1:H30)-SUMIF($Q$1:$Q30,"FL",H$1:H30) -> 9049.921176 | I31: =SUMIF($Q$1:$Q30,"RL",I$1:I30)-SUMIF($Q$1:$Q30,"VL",I$1:I30)-SUMIF($Q$1:$Q30,"FL",I$1:I30) -> 9500.824706 | J31: =SUMIF($Q$1:$Q30,"RL",J$1:J30)-SUMIF($Q$1:$Q30,"VL",J$1:J30)-SUMIF($Q$1:$Q30,"FL",J$1:J30) -> 9951.728235 | K31: =SUMIF($Q$1:$Q30,"RL",K$1:K30)-SUMIF($Q$1:$Q30,"VL",K$1:K30)-SUMIF($Q$1:$Q30,"FL",K$1:K30) -> 5132.202353 | L31: =SUMIF($Q$1:$Q30,"RL",L$1:L30)-SUMIF($Q$1:$Q30,"VL",L$1:L30)-SUMIF($Q$1:$Q30,"FL",L$1:L30) -> 5464.447059 | M31: =SUMIF($Q$1:$Q30,"RL",M$1:M30)-SUMIF($Q$1:$Q30,"VL",M$1:M30)-SUMIF($Q$1:$Q30,"FL",M$1:M30) -> 4695.142353 | N31: =SUMIF($Q$1:$Q30,"RL",N$1:N30)-SUMIF($Q$1:$Q30,"VL",N$1:N30)-SUMIF($Q$1:$Q30,"FL",N$1:N30) -> 9504.78 | O31: =SUMIF($Q$1:$Q30,"RL",O$1:O30)-SUMIF($Q$1:$Q30,"VL",O$1:O30)-SUMIF($Q$1:$Q30,"FL",O$1:O30) -> 82858 | Q31: PAT
B32: Percent of Month | C32: =+C31/SUMIF($Q$1:$Q31,"RAT",C$1:C31) -> 0.1236876975 | D32: =+D31/SUMIF($Q$1:$Q31,"RAT",D$1:D31) -> 0.1549098791 | E32: =+E31/SUMIF($Q$1:$Q31,"RAT",E$1:E31) -> 0.1985913301 | F32: =+F31/SUMIF($Q$1:$Q31,"RAT",F$1:F31) -> 0.2057379107 | G32: =+G31/SUMIF($Q$1:$Q31,"RAT",G$1:G31) -> 0.212530846 | H32: =+H31/SUMIF($Q$1:$Q31,"RAT",H$1:H31) -> 0.2327478556 | I32: =+I31/SUMIF($Q$1:$Q31,"RAT",I$1:I31) -> 0.2385837186 | J32: =+J31/SUMIF($Q$1:$Q31,"RAT",J$1:J31) -> 0.2441507512 | K32: =+K31/SUMIF($Q$1:$Q31,"RAT",K$1:K31) -> 0.1670318949 | L32: =+L31/SUMIF($Q$1:$Q31,"RAT",L$1:L31) -> 0.1739292267 | M32: =+M31/SUMIF($Q$1:$Q31,"RAT",M$1:M31) -> 0.1574711859 | N32: =+N31/SUMIF($Q$1:$Q31,"RAT",N$1:N31) -> 0.2386336932 | O32: =+O31/SUMIF($Q$1:$Q31,"RAT",O$1:O31) -> 0.2006246973 | Q32: RLP
Q33: T

Sheet Instructions
B2: ="Instructions - " &title -> Instructions - Budget Business
B3: Overview
B4: Outline | D4: The Budget Tool Business provides a streamlined and effective means to generate a budget for up to five years. Full flexibility allows you to add Revenue, Variable Cost and Fixed Cost categories and lines to suit any business. Operation is via an easy to use toolbar and function buttons. The budget can be displayed in any combination of month, quarter, or year. Change indicators provide means to adjust revenue and costs year on year with initial default values applied to minimize input requirements and simplify use. Full what if and sensitivity analysis is available by varying the Change indicators. Budgets can be freely formatted for printing and graphing. The Budget Tool Business is suitable for both existing and proposed businesses. Additional business support software and details are available at the Bizpep Online Web Site:
B8: Input
B9: All input is on the Input sheet. Blue cells require input. Yellow cells may be overwritten if desired. Place your mouse over the red markers on the Input sheet for details. Following is a Step by Step outline and function details. Functions are activated by buttons and check/option boxes. Toggle between sheets using the tabs at the bottom of the window.
B10: Step 1 - Set Up | D10: Input an identifier for your budget in the Budget Title cell. To build your budget you require base revenue and cost data. If you are budgeting for an existing business this can be current profit and loss details. If you are budgeting for a new venture you require estimates for fixed costs and variable costs. If your base data only covers a portion of a year input the number of months the data applies for in in blue cell below YTD Months. Data for the remaining months will be calculated. If you are using data for a full year input 12 in the blue cell below YTD Months. To remove added lines select the line to delete and use Delete Selection. To start a new budget use Reset.
B11: Step 2 - Revenue | D11: To add base revenue select a row within the revenue area and click Add a Revenue Line or Add a Revenue Category. Name the revenue and input the base value. You can add as many revenue categories or lines as you require.
B12: Step 3 - Variable Costs | D12: Variable costs can be input as monetary values or percentages of revenue. Select you desired input in the Input Set for box. If you select Input Set for Percent you must also select Percentages in the Show Details box. To add base variable costs select a row within the costs area and click Add a Variable Cost Line or Add a Variable Cost Category. Name the variable cost and input the base value. You can add as many variable cost categories or lines as you require.
B13: Step 4 - Fixed Costs | D13: To add base fixed costs select a row within the costs area and click Add a Fixed Cost Line or Add a Fixed Cost Category. Name the fixed cost and input the base value. You can add as many fixed cost categories or lines as you require.
B14: Step 5 - Forecast Data | D14: To build your budget for following years select year 1 in the Show Year box. Then for Year 1 select Change and Months. Input the first month for your budget. In the Change column blue cells input your default increase / decrease (Inc/Dec) for revenue, variable costs, and fixed costs to indicate the percentage change year on year. For variable costs this percentage change applies to the variable cost percentage of revenue. For revenue and fixed costs it applies to the value. For the first 11 months in Year 1 input a percentage by month value (% by Mth) in the blue cells to indicate the percentage of annual revenue each month contributes.
B15: Step 6 - Refine | D15: The values in your Inc/Dec and % by Mth cells are applied as defaults to generate a full five year budget. For each individual revenue or cost line you can over write the default value. All yellow cells can be adjusted as required. Once you have completed your budget Copy to New sheet to save. This will display your budget with all the level of detail you currently have on show and will include current year data if selected. This sheet includes values and formula allowing further adjustments if required. You can then plot the revenue and profit levels for the displayed view and print as required.
B16: Budget Identifier | D16: Input an identifier for your budget.
B17: Yellow Labels | D17: You can change the default labels in yellow cells if desired.
B18: Number of Months | D18: Input the number of months that you have data for. If you have revenue and expense data for 6 months input 6 in this cell. Then input your data in this column. If you input less than 12 data for the remaining year will be calculated. To use your own full year data set this cell to 12 and input your full year data in this column. To build a budget for a new business set this cell to 12 and input projected revenue for your first month multiplied by 12 to set a base point. Year 1 revenue will grow monthly from this point according to the annual % Change Increase/Decrease you apply. Input Variable Costs as a Monetary amount (12 x first month costs for a new business) or as a Percent of revenue and input Fixed Costs for a full year.
B19: Show Details | D19: Click the boxes to Show or Hide detail.
B20: Show Year | D20: Click the boxes to Show or Hide detail.
B21: Copy to New Sheet | D21: Copy to New Sheet will save your completed budget to an new sheet in the form of the current layout. This may take a couple of minutes, increasing with the size of your budget.
D22: 1. Set the budget to the required display, i.e. Show Years, Percentages etc.
D23: 2. Select Include Current Year if you wish to include current year data.
D24: 3. Click Copy to New Sheet.
D25: You will be asked to input a Sheet Name and your budget will be saved to this sheet.
D26: From this sheet you can format and print as required. Blue cells indicate values that have been pasted and can be changed, other cells include formulas and should not be changed. To Update the Budget Chart with your New Sheet data select the New Sheet tab and then select the Budget Chart tab. The Budget Chart Plots the Total Revenue and Profit for all data columns included in the previously selected new sheet except the last column. The last column is usually full year data. If you wish to plot full year data include a Variation column after the last full year data. You can include you own charts by inserting them in the New Sheet.
D27: Please note that the first column and the second column from the end of your budget will include identifiers used in formula. These columns should not be modified. All required lines should be added on the Input Base Data Sheet before you copy to the New Sheet. If you delete or add columns or rows in the new sheet formulas may be corrupted. Formulas will also produce error results when the source data columns are not included i.e. the variation formulas will not work if the previous year is not included in the new sheet.
B28: Delete Selection | D28: Select a cell in the Line or Category you wish to delete. Click Delete Selection. This will delete all rows associated with the selected line or category. You can only delete rows that have been added.
B29: Delete Sheet | D29: Delete Sheet allows you to delete sheets that have been added using the Copy to New Sheet function. It only removes added sheets.
B30: Reset | D30: Reset removes all added detail and data, returning the Input Base Data sheet to its initial state. Before a new budget is commenced Reset to clear previous data.
B31: Add a Revenue Category and Add a Revenue Line | D31: Revenue can be added within categories or as individual lines. To define a revenue category select a cell within the revenue area and click Add a Revenue Category. You can then name your category and add additional revenue lines within it. If categories are not required select a cell within the revenue area and click Add a Revenue Line.
D32: For each revenue line input a title and a value for the Current Year, Year to Date. The number of months for the Year to Date must be input in the blue cell at the top of the column.
B33: Revenue | D33: Revenue for the each of the budget years consists of 2 components. Base Revenue, which is the same as the previous year (no change year on year), and Growth Revenue, which is the difference between the previous year and the budget year. Base Revenue is allocated to each month according to its Percentage by Month (% by Mth). The default value assumes all months contribute equal revenue giving 8.3333% (1/12) for all months. This is unlikely as the revenue of most businesses tends to vary due to seasonal influences such as weather, holiday periods, etc. You should adjust these values to reflect monthly revenue variations in your business.
D34: The amount of Growth Revenue is determined by the revenue Increase/Decrease (Inc/Dec) percentage applied. Growth Revenue is distributed across the months by considering the Percentage by Month and the Compounding Growth Affect. If you secure one new customer a month to generate your Growth Revenue then in month 1 you have Growth Revenue from one new customer, in month 2 you have Growth Revenue from 2 new customers (the customer secured in month 1 and the customer secured in month 2). This Compounding Growth Affect is adjusted by the Percentage by Month to calculate the amount of Growth Revenue allocated to each month. Imagine the Percentage by Month for month 2 is half that of month 1 due to seasonal factors halving the number of customers in month 2. The average number of new customers you could secure in month 2 will also be halved by this downturn in demand resulting in a decrease in the amount of Growth Revenue that can be secured.
B35: Add a Variable Cost Category, Add a Variable cost Line, and Input Set for | D35: Variable costs vary with revenue. Only include these costs in this area. Input for variable costs can be as a percentage of revenue (Percent) or a monetary amount (Monetary). To apply your required input select either Percent or Monetary. If you select Percent you must also select Percentages in Show Details so you can input your percentage data.
D36: Variable costs can be added within categories or as individual lines. To define a variable cost category select a cell within the variable cost area and click Add a Variable Cost Category. You can then name your category and add additional variable cost lines within it. If categories are not required select a cell within the variable cost area and click Add a Variable Cost Line.
D37: For each variable cost line input a title and a value for the Current Year, Year to Date.
B38: Variable Costs | D38: Variable cost amounts are calculated as a percentage of revenue for the corresponding period. During a year variable cost values vary with revenue but their percentage remains constant.
D39: Increase / Decrease (Inc/Dec) percentages apply to the variable cost percentage not the variable cost amount. For example if current revenue is $100, and variable costs are $40 or 40%. For the following year I set the revenue Inc/Dec to 100% (doubling revenue to $200) and I set the variable cost Inc/Dec to 50%. This increases the variable cost percentage to 60% giving a variable cost value of $120 (60% of $200).
B40: Add Fixed Cost Category and Add Fixed Cost line | D40: Fixed costs remain constant (up to a point) regards of revenue variations. Only include these costs in this area.
D41: Fixed costs can be added within categories or as individual lines. To define a fixed cost category select a cell within the fixed cost area and click Add a Fixed Cost Category. You can then name your category and add additional fixed cost lines within it. If categories are not required select a cell within the variable cost area and click Add a Fixed Cost Line.
D42: For each fixed cost line input a title and a value for the Current Year, Year to Date. The number of months for the Year to Date must be input in the blue cell at the top of the column.
B43: Fixed Costs | D43: Fixed cost values are constant during the year they do not vary with revenue. Monthly fixed cost values are calculated as 1/12 of annual fixed costs
D44: Increase / Decrease (Inc/Dec) percentages apply to the fixed cost value. For example if current fixed costs are $50 and for the following year I set the fixed cost Inc/Dec to 10% fixed costs will increase to $55 regardless of revenue.
B45: Profit/Surplus | D45: Profit/Surplus is Revenue less Variable Costs less Fixed Costs.
B46: Inc/Dec Revenue | D46: Input a Revenue Increase / Decrease (Inc/Dec) percentage for the year. This is the percentage change in revenue year on year.
D47: For example if Current Year revenue is $100 and revenue Inc/Dec is set to 20%. Revenue for Year 1 will be $120. This will consist of $100 Base Revenue distributed according to the Percentage by Month (% by Mth) and $20 Growth Revenue distributed according to the Percentage by Month and the Compounding Growth Affect.
D48: Year 1 revenue Increase / Decrease percentages are applied as default values to all added Year 1 revenue lines and as the default for following years. You can overwrite these if desired.
B49: Inc/Dec Variable Costs | D49: Input a Variable Cost Increase / Decrease (Inc/Dec) percentage for the year. This applies to the variable cost percentage not the variable cost value.
D50: For example if current revenue is $100, and variable costs are $40 or 40%. For the following year I set the revenue Inc/Dec to 100% (doubling revenue to $200) and I set the variable cost Inc/Dec to 50%. This increases the variable cost percentage to 60% giving a variable cost value of $120 (60% of $200).
D51: Year 1 variable cost Increase / Decrease percentages are applied as default values to all added Year 1 variable cost lines and as the default for following years. You can overwrite these if desired.
B52: Inc/Dec Fixed Costs | D52: Input a Fixed Cost Increase / Decrease (Inc/Dec) percentage for the year. This applies to the fixed cost value.
D53: For example if current fixed costs are $50 and for the following year I set the fixed cost Inc/Dec to 10% fixed costs will increase to $55 regardless of revenue.
D54: Year 1 fixed cost Increase / Decrease percentages are applied as default values to all added Year 1 fixed cost lines and as the default for following years. You can overwrite these if desired.
B55: Budget Start Month | D55: Input the first month for your budget in month year format (e.g. Apr 01).
B56: Budget following Months | D56: Month Cells are calculated as the previous month plus 31 days. Year 1 month labels are applied to all following years. You can overwrite these cells if desired.
B57: % by Month | D57: For the first 11 months of the year input the Percentage by Month (% by Mth) to indicate the percentage of annual revenue each month would provide if there was no revenue growth. The percentage for the 12th month of the year is calculated to ensure the annual total is 100%. Use the 12th month percentage as a check on your inputs. The initial value is 8.3% (1/12) for all months.
D58: Year 1 Percentage by Month values are applied as default values to all added revenue lines and following years. You can overwrite these if desired.

Sheet Worksheet (hidden)
B3: New Revenue Category | CX3: RC
B4: New Revenue Line | C4: 0 | D4: =+RemMonths/YTDMonths*C4 -> 0 | E4: =+D4+C4 -> 0 | F4: =+DefRelRev -> 0 | G4: =+G6+G8 -> 0 | H4: =+H6+H8 -> 0 | I4: =+I6+I8 -> 0 | J4: =SUM(G4:I4) -> 0 | K4: =+K6+K8 -> 0 | L4: =+L6+L8 -> 0 | M4: =+M6+M8 -> 0 | N4: =SUM(K4:M4) -> 0 | O4: =+O6+O8 -> 0 | P4: =+P6+P8 -> 0 | Q4: =+Q6+Q8 -> 0 | R4: =SUM(O4:Q4) -> 0 | S4: =+S6+S8 -> 0 | T4: =+T6+T8 -> 0 | U4: =+U6+U8 -> 0 | V4: =SUM(S4:U4) -> 0 | W4: =+E4*(1+F4) -> 0 | X4: =+W4-E4 -> 0 | Y4: =+DefRelRev2 -> 0 | Z4: =+Z6+Z8 -> 0 | AA4: =+AA6+AA8 -> 0 | AB4: =+AB6+AB8 -> 0 | AC4: =SUM(Z4:AB4) -> 0 | AD4: =+AD6+AD8 -> 0 | AE4: =+AE6+AE8 -> 0 | AF4: =+AF6+AF8 -> 0 | AG4: =SUM(AD4:AF4) -> 0 | AH4: =+AH6+AH8 -> 0 | AI4: =+AI6+AI8 -> 0 | AJ4: =+AJ6+AJ8 -> 0 | AK4: =SUM(AH4:AJ4) -> 0 | AL4: =+AL6+AL8 -> 0 | AM4: =+AM6+AM8 -> 0 | AN4: =+AN6+AN8 -> 0 | AO4: =SUM(AL4:AN4) -> 0 | AP4: =+W4*(1+Y4) -> 0 | AQ4: =+AP4-W4 -> 0 | AR4: =+DefRelRev3 -> 0 | AS4: =+AS6+AS8 -> 0 | AT4: =+AT6+AT8 -> 0 | AU4: =+AU6+AU8 -> 0 | AV4: =SUM(AS4:AU4) -> 0 | AW4: =+AW6+AW8 -> 0 | AX4: =+AX6+AX8 -> 0 | AY4: =+AY6+AY8 -> 0 | AZ4: =SUM(AW4:AY4) -> 0 | BA4: =+BA6+BA8 -> 0 | BB4: =+BB6+BB8 -> 0 | BC4: =+BC6+BC8 -> 0 | BD4: =SUM(BA4:BC4) -> 0 | BE4: =+BE6+BE8 -> 0 | BF4: =+BF6+BF8 -> 0 | BG4: =+BG6+BG8 -> 0 | BH4: =SUM(BE4:BG4) -> 0 | BI4: =+AP4*(1+AR4) -> 0 | BJ4: =+BI4-AP4 -> 0 | BK4: =+DefRelRev4 -> 0 | BL4: =+BL6+BL8 -> 0 | BM4: =+BM6+BM8 -> 0 | BN4: =+BN6+BN8 -> 0 | BO4: =SUM(BL4:BN4) -> 0 | BP4: =+BP6+BP8 -> 0 | BQ4: =+BQ6+BQ8 -> 0 | BR4: =+BR6+BR8 -> 0 | BS4: =SUM(BP4:BR4) -> 0 | BT4: =+BT6+BT8 -> 0 | BU4: =+BU6+BU8 -> 0 | BV4: =+BV6+BV8 -> 0 | BW4: =SUM(BT4:BV4) -> 0 | BX4: =+BX6+BX8 -> 0 | BY4: =+BY6+BY8 -> 0 | BZ4: =+BZ6+BZ8 -> 0 | CA4: =SUM(BX4:BZ4) -> 0 | CB4: =+BI4*(1+BK4) -> 0 | CC4: =+CB4-BI4 -> 0 | CD4: =+DefRelRev5 -> 0 | CE4: =+CE6+CE8 -> 0 | CF4: =+CF6+CF8 -> 0 | CG4: =+CG6+CG8 -> 0 | CH4: =SUM(CE4:CG4) -> 0 | CI4: =+CI6+CI8 -> 0 | CJ4: =+CJ6+CJ8 -> 0 | CK4: =+CK6+CK8 -> 0 | CL4: =SUM(CI4:CK4) -> 0 | CM4: =+CM6+CM8 -> 0 | CN4: =+CN6+CN8 -> 0 | CO4: =+CO6+CO8 -> 0 | CP4: =SUM(CM4:CO4) -> 0 | CQ4: =+CQ6+CQ8 -> 0 | CR4: =+CR6+CR8 -> 0 | CS4: =+CS6+CS8 -> 0 | CT4: =SUM(CQ4:CS4) -> 0 | CU4: =+CB4*(1+CD4) -> 0 | CV4: =+CU4-CB4 -> 0 | CX4: RL
B5: Percentage of Year | G5: =+G4/W4 ->  | H5: =+H4/W4 ->  | I5: =+I4/W4 ->  | K5: =+K4/W4 ->  | L5: =+L4/W4 ->  | M5: =+M4/W4 ->  | O5: =+O4/W4 ->  | P5: =+P4/W4 ->  | Q5: =+Q4/W4 ->  | S5: =+S4/W4 ->  | T5: =+T4/W4 ->  | U5: =+U4/W4 ->  | W5: =+V5+R5+N5+J5 ->  | X5: =+X4/E4 ->  | Z5: =+Z4/AP4 ->  | AA5: =+AA4/AP4 ->  | AB5: =+AB4/AP4 ->  | AD5: =+AD4/AP4 ->  | AE5: =+AE4/AP4 ->  | AF5: =+AF4/AP4 ->  | AH5: =+AH4/AP4 ->  | AI5: =+AI4/AP4 ->  | AJ5: =+AJ4/AP4 ->  | AL5: =+AL4/AP4 ->  | AM5: =+AM4/AP4 ->  | AN5: =+AN4/AP4 ->  | AP5: =+AO5+AK5+AG5+AC5 ->  | AQ5: =+AP4/W4 ->  | AS5: =+AS4/BI4 ->  | AT5: =+AT4/BI4 ->  | AU5: =+AU4/BI4 ->  | AW5: =+AW4/BI4 ->  | AX5: =+AX4/BI4 ->  | AY5: =+AY4/BI4 ->  | BA5: =+BA4/BI4 ->  | BB5: =+BB4/BI4 ->  | BC5: =+BC4/BI4 ->  | BE5: =+BE4/BI4 ->  | BF5: =+BF4/BI4 ->  | BG5: =+BG4/BI4 ->  | BI5: =+BH5+BD5+AZ5+AV5 ->  | BJ5: =+BJ4/AP4 ->  | BL5: =+BL4/CB4 ->  | BM5: =+BM4/CB4 ->  | BN5: =+BN4/CB4 ->  | BP5: =+BP4/CB4 ->  | BQ5: =+BQ4/CB4 ->  | BR5: =+BR4/CB4 ->  | BT5: =+BT4/CB4 ->  | BU5: =+BU4/CB4 ->  | BV5: =+BV4/CB4 ->  | BX5: =+BX4/CB4 ->  | BY5: =+BY4/CB4 ->  | BZ5: =+BZ4/CB4 ->  | CB5: =+CA5+BW5+BS5+BO5 ->  | CC5: =+CC4/BI4 ->  | CE5: =+CE4/CU4 ->  | CF5: =+CF4/CU4 ->  | CG5: =+CG4/CU4 ->  | CI5: =+CI4/CU4 ->  | CJ5: =+CJ4/CU4 ->  | CK5: =+CK4/CU4 ->  | CM5: =+CM4/CU4 ->  | CN5: =+CN4/CU4 ->  | CO5: =+CO4/CU4 ->  | CQ5: =+CQ4/CU4 ->  | CR5: =+CR4/CU4 ->  | CS5: =+CS4/CU4 ->  | CU5: =+CT5+CP5+CL5+CH5 ->  | CV5: =+CV4/CB4 ->  | CX5: RLP
B6: Base Revenue | G6: =+G7*E4 -> 0 | H6: =+H7*E4 -> 0 | I6: =+I7*E4 -> 0 | J6: 0 | K6: =+K7*E4 -> 0 | L6: =+L7*E4 -> 0 | M6: =+M7*E4 -> 0 | N6: 0 | O6: =+O7*E4 -> 0 | P6: =+P7*E4 -> 0 | Q6: =+Q7*E4 -> 0 | R6: 0 | S6: =+S7*E4 -> 0 | T6: =+T7*E4 -> 0 | U6: =+U7*E4 -> 0 | V6: 0 | W6: =+V6+R6+N6+J6 -> 0 | Z6: =+Z7*W4 -> 0 | AA6: =+AA7*W4 -> 0 | AB6: =+AB7*W4 -> 0 | AC6: 0 | AD6: =+AD7*W4 -> 0 | AE6: =+AE7*W4 -> 0 | AF6: =+AF7*W4 -> 0 | AG6: 0 | AH6: =+AH7*W4 -> 0 | AI6: =+AI7*W4 -> 0 | AJ6: =+AJ7*W4 -> 0 | AK6: 0 | AL6: =+AL7*W4 -> 0 | AM6: =+AM7*W4 -> 0 | AN6: =+AN7*W4 -> 0 | AO6: 0 | AP6: =+AO6+AK6+AG6+AC6 -> 0 | AS6: =+AS7*AP4 -> 0 | AT6: =+AT7*AP4 -> 0 | AU6: =+AU7*AP4 -> 0 | AV6: 0 | AW6: =+AW7*AP4 -> 0 | AX6: =+AX7*AP4 -> 0 | AY6: =+AY7*AP4 -> 0 | AZ6: 0 | BA6: =+BA7*AP4 -> 0 | BB6: =+BB7*AP4 -> 0 | BC6: =+BC7*AP4 -> 0 | BD6: 0 | BE6: =+BE7*AP4 -> 0 | BF6: =+BF7*AP4 -> 0 | BG6: =+BG7*AP4 -> 0 | BH6: 0 | BI6: =+BH6+BD6+AZ6+AV6 -> 0 | BL6: =+BL7*BI4 -> 0 | BM6: =+BM7*BI4 -> 0 | BN6: =+BN7*BI4 -> 0 | BO6: 0 | BP6: =+BP7*BI4 -> 0 | BQ6: =+BQ7*BI4 -> 0 | BR6: =+BR7*BI4 -> 0 | BS6: 0 | BT6: =+BT7*BI4 -> 0 | BU6: =+BU7*BI4 -> 0 | BV6: =+BV7*BI4 -> 0 | BW6: 0 | BX6: =+BX7*BI4 -> 0 | BY6: =+BY7*BI4 -> 0 | BZ6: =+BZ7*BI4 -> 0 | CA6: 0 | CB6: =+CA6+BW6+BS6+BO6 -> 0 | CE6: =+CE7*CB4 -> 0 | CF6: =+CF7*CB4 -> 0 | CG6: =+CG7*CB4 -> 0 | CH6: 0 | CI6: =+CI7*CB4 -> 0 | CJ6: =+CJ7*CB4 -> 0 | CK6: =+CK7*CB4 -> 0 | CL6: 0 | CM6: =+CM7*CB4 -> 0 | CN6: =+CN7*CB4 -> 0 | CO6: =+CO7*CB4 -> 0 | CP6: 0 | CQ6: =+CQ7*CB4 -> 0 | CR6: =+CR7*CB4 -> 0 | CS6: =+CS7*CB4 -> 0 | CT6: 0 | CU6: =+CT6+CP6+CL6+CH6 -> 0 | CX6: RLB
B7: Percentage of Year | G7: =+M1PCD -> 0.08333333333 | H7: =+M2PCD -> 0.08333333333 | I7: =+M3PCD -> 0.08333333333 | J7: 0.25 | K7: =+M4PCD -> 0.08333333333 | L7: =+M5PCD -> 0.08333333333 | M7: =+M6PCD -> 0.08333333333 | N7: 0.25 | O7: =+M7PCD -> 0.08333333333 | P7: =+M8PCD -> 0.08333333333 | Q7: =+M9PCD -> 0.08333333333 | R7: 0.25 | S7: =+M10PCD -> 0.08333333333 | T7: =+M11PCD -> 0.08333333333 | U7: =+W7-(SUM(R7:T7)+N7+J7) -> 0.08333333333 | V7: 0.25 | W7: 1 | X7: =0.0128205128205128*G7/(0.0833333333333333)+2/78*H7/(1/12)+3/78*I7/(1/12)+4/78*K7/(1/12)+5/78*L7/(1/12)+6/78*M7/(1/12)+7/78*O7/(1/12)+8/78*P7/(1/12)+9/78*Q7/(1/12)+10/78*S7/(1/12)+11/78*T7/(1/12)+12/78*U7/(1/12) -> 1 | Z7: =+M1PCD2 -> 0.08333333333 | AA7: =+M2PCD2 -> 0.08333333333 | AB7: =+M3PCD2 -> 0.08333333333 | AC7: 0.25 | AD7: =+M4PCD2 -> 0.08333333333 | AE7: =+M5PCD2 -> 0.08333333333 | AF7: =+M6PCD2 -> 0.08333333333 | AG7: 0.25 | AH7: =+M7PCD2 -> 0.08333333333 | AI7: =+M8PCD2 -> 0.08333333333 | AJ7: =+M9PCD2 -> 0.08333333333 | AK7: 0.25 | AL7: =+M10PCD2 -> 0.08333333333 | AM7: =+M11PCD2 -> 0.08333333333 | AN7: =+AP7-(SUM(AK7:AM7)+AG7+AC7) -> 0.08333333333 | AO7: 0.25 | AP7: 1 | AQ7: =0.0128205128205128*Z7/(0.0833333333333333)+2/78*AA7/(1/12)+3/78*AB7/(1/12)+4/78*AD7/(1/12)+5/78*AE7/(1/12)+6/78*AF7/(1/12)+7/78*AH7/(1/12)+8/78*AI7/(1/12)+9/78*AJ7/(1/12)+10/78*AL7/(1/12)+11/78*AM7/(1/12)+12/78*AN7/(1/12) -> 1 | AS7: =+M1PCD3 -> 0.08333333333 | AT7: =+M2PCD3 -> 0.08333333333 | AU7: =+M3PCD3 -> 0.08333333333 | AV7: 0.25 | AW7: =+M4PCD3 -> 0.08333333333 | AX7: =+M5PCD3 -> 0.08333333333 | AY7: =+M6PCD3 -> 0.08333333333 | AZ7: 0.25 | BA7: =+M7PCD3 -> 0.08333333333 | BB7: =+M8PCD3 -> 0.08333333333 | BC7: =+M9PCD3 -> 0.08333333333 | BD7: 0.25 | BE7: =+M10PCD3 -> 0.08333333333 | BF7: =+M11PCD3 -> 0.08333333333 | BG7: =+BI7-(SUM(BD7:BF7)+AZ7+AV7) -> 0.08333333333 | BH7: 0.25 | BI7: 1 | BJ7: =0.0128205128205128*AS7/(0.0833333333333333)+2/78*AT7/(1/12)+3/78*AU7/(1/12)+4/78*AW7/(1/12)+5/78*AX7/(1/12)+6/78*AY7/(1/12)+7/78*BA7/(1/12)+8/78*BB7/(1/12)+9/78*BC7/(1/12)+10/78*BE7/(1/12)+11/78*BF7/(1/12)+12/78*BG7/(1/12) -> 1 | BL7: =+M1PCD4 -> 0.08333333333 | BM7: =+M2PCD4 -> 0.08333333333 | BN7: =+M3PCD4 -> 0.08333333333 | BO7: 0.25 | BP7: =+M4PCD4 -> 0.08333333333 | BQ7: =+M5PCD4 -> 0.08333333333 | BR7: =+M6PCD4 -> 0.08333333333 | BS7: 0.25 | BT7: =+M7PCD4 -> 0.08333333333 | BU7: =+M8PCD4 -> 0.08333333333 | BV7: =+M9PCD4 -> 0.08333333333 | BW7: 0.25 | BX7: =+M10PCD4 -> 0.08333333333 | BY7: =+M11PCD4 -> 0.08333333333 | BZ7: =+CB7-(SUM(BW7:BY7)+BS7+BO7) -> 0.08333333333 | CA7: 0.25 | CB7: 1 | CC7: =0.0128205128205128*BL7/(0.0833333333333333)+2/78*BM7/(1/12)+3/78*BN7/(1/12)+4/78*BP7/(1/12)+5/78*BQ7/(1/12)+6/78*BR7/(1/12)+7/78*BT7/(1/12)+8/78*BU7/(1/12)+9/78*BV7/(1/12)+10/78*BX7/(1/12)+11/78*BY7/(1/12)+12/78*BZ7/(1/12) -> 1 | CE7: =+M1PCD5 -> 0.08333333333 | CF7: =+M2PCD5 -> 0.08333333333 | CG7: =+M3PCD5 -> 0.08333333333 | CH7: 0.25 | CI7: =+M4PCD5 -> 0.08333333333 | CJ7: =+M5PCD5 -> 0.08333333333 | CK7: =+M6PCD5 -> 0.08333333333 | CL7: 0.25 | CM7: =+M7PCD5 -> 0.08333333333 | CN7: =+M8PCD5 -> 0.08333333333 | CO7: =+M9PCD5 -> 0.08333333333 | CP7: 0.25 | CQ7: =+M10PCD5 -> 0.08333333333 | CR7: =+M11PCD5 -> 0.08333333333 | CS7: =+CU7-(SUM(CP7:CR7)+CL7+CH7) -> 0.08333333333 | CT7: 0.25 | CU7: 1 | CV7: =0.0128205128205128*CE7/(0.0833333333333333)+2/78*CF7/(1/12)+3/78*CG7/(1/12)+4/78*CI7/(1/12)+5/78*CJ7/(1/12)+6/78*CK7/(1/12)+7/78*CM7/(1/12)+8/78*CN7/(1/12)+9/78*CO7/(1/12)+10/78*CQ7/(1/12)+11/78*CR7/(1/12)+12/78*CS7/(1/12) -> 1 | CX7: RLPC
B8: Growth Revenue | G8: =+G9*X4 -> 0 | H8: =+H9*X4 -> 0 | I8: =+I9*X4 -> 0 | J8: 0 | K8: =+K9*X4 -> 0 | L8: =+L9*X4 -> 0 | M8: =+M9*X4 -> 0 | N8: 0 | O8: =+O9*X4 -> 0 | P8: =+P9*X4 -> 0 | Q8: =+Q9*X4 -> 0 | R8: 0 | S8: =+S9*X4 -> 0 | T8: =+T9*X4 -> 0 | U8: =+U9*X4 -> 0 | V8: 0 | W8: =+V8+R8+N8+J8 -> 0 | Z8: =+Z9*AQ4 -> 0 | AA8: =+AA9*AQ4 -> 0 | AB8: =+AB9*AQ4 -> 0 | AC8: 0 | AD8: =+AD9*AQ4 -> 0 | AE8: =+AE9*AQ4 -> 0 | AF8: =+AF9*AQ4 -> 0 | AG8: 0 | AH8: =+AH9*AQ4 -> 0 | AI8: =+AI9*AQ4 -> 0 | AJ8: =+AJ9*AQ4 -> 0 | AK8: 0 | AL8: =+AL9*AQ4 -> 0 | AM8: =+AM9*AQ4 -> 0 | AN8: =+AN9*AQ4 -> 0 | AO8: 0 | AP8: =+AO8+AK8+AG8+AC8 -> 0 | AS8: =+AS9*BJ4 -> 0 | AT8: =+AT9*BJ4 -> 0 | AU8: =+AU9*BJ4 -> 0 | AV8: 0 | AW8: =+AW9*BJ4 -> 0 | AX8: =+AX9*BJ4 -> 0 | AY8: =+AY9*BJ4 -> 0 | AZ8: 0 | BA8: =+BA9*BJ4 -> 0 | BB8: =+BB9*BJ4 -> 0 | BC8: =+BC9*BJ4 -> 0 | BD8: 0 | BE8: =+BE9*BJ4 -> 0 | BF8: =+BF9*BJ4 -> 0 | BG8: =+BG9*BJ4 -> 0 | BH8: 0 | BI8: =+BH8+BD8+AZ8+AV8 -> 0 | BL8: =+BL9*CC4 -> 0 | BM8: =+BM9*CC4 -> 0 | BN8: =+BN9*CC4 -> 0 | BO8: 0 | BP8: =+BP9*CC4 -> 0 | BQ8: =+BQ9*CC4 -> 0 | BR8: =+BR9*CC4 -> 0 | BS8: 0 | BT8: =+BT9*CC4 -> 0 | BU8: =+BU9*CC4 -> 0 | BV8: =+BV9*CC4 -> 0 | BW8: 0 | BX8: =+BX9*CC4 -> 0 | BY8: =+BY9*CC4 -> 0 | BZ8: =+BZ9*CC4 -> 0 | CA8: 0 | CB8: =+CA8+BW8+BS8+BO8 -> 0 | CE8: =+CE9*CV4 -> 0 | CF8: =+CF9*CV4 -> 0 | CG8: =+CG9*CV4 -> 0 | CH8: 0 | CI8: =+CI9*CV4 -> 0 | CJ8: =+CJ9*CV4 -> 0 | CK8: =+CK9*CV4 -> 0 | CL8: 0 | CM8: =+CM9*CV4 -> 0 | CN8: =+CN9*CV4 -> 0 | CO8: =+CO9*CV4 -> 0 | CP8: 0 | CQ8: =+CQ9*CV4 -> 0 | CR8: =+CR9*CV4 -> 0 | CS8: =+CS9*CV4 -> 0 | CT8: 0 | CU8: =+CT8+CP8+CL8+CH8 -> 0 | CX8: RLG
B9: Percentage of Year | G9: =0.0128205128205128*G7/(0.0833333333333333)/X7 -> 0.01282051282 | H9: =2/78*H7/(0.0833333333333333)/X7 -> 0.02564102564 | I9: =3/78*I7/(0.0833333333333333)/X7 -> 0.03846153846 | J9: 0.07692307692 | K9: =4/78*K7/(0.0833333333333333)/X7 -> 0.05128205128 | L9: =5/78*L7/(0.0833333333333333)/X7 -> 0.0641025641 | M9: =6/78*M7/(0.0833333333333333)/X7 -> 0.07692307692 | N9: 0.1923076923 | O9: =7/78*O7/(0.0833333333333333)/X7 -> 0.08974358974 | P9: =8/78*P7/(0.0833333333333333)/X7 -> 0.1025641026 | Q9: =9/78*Q7/(0.0833333333333333)/X7 -> 0.1153846154 | R9: 0.3076923077 | S9: =10/78*S7/(0.0833333333333333)/X7 -> 0.1282051282 | T9: =11/78*T7/(0.0833333333333333)/X7 -> 0.141025641 | U9: =12/78*U7/(0.0833333333333333)/X7 -> 0.1538461538 | V9: 0.4230769231 | W9: =+V9+R9+N9+J9 -> 1 | Z9: =0.0128205128205128*Z7/(0.0833333333333333)/AQ7 -> 0.01282051282 | AA9: =2/78*AA7/(0.0833333333333333)/AQ7 -> 0.02564102564 | AB9: =3/78*AB7/(0.0833333333333333)/AQ7 -> 0.03846153846 | AC9: 0.07692307692 | AD9: =4/78*AD7/(0.0833333333333333)/AQ7 -> 0.05128205128 | AE9: =5/78*AE7/(0.0833333333333333)/AQ7 -> 0.0641025641 | AF9: =6/78*AF7/(0.0833333333333333)/AQ7 -> 0.07692307692 | AG9: 0.1923076923 | AH9: =7/78*AH7/(0.0833333333333333)/AQ7 -> 0.08974358974 | AI9: =8/78*AI7/(0.0833333333333333)/AQ7 -> 0.1025641026 | AJ9: =9/78*AJ7/(0.0833333333333333)/AQ7 -> 0.1153846154 | AK9: 0.3076923077 | AL9: =10/78*AL7/(0.0833333333333333)/AQ7 -> 0.1282051282 | AM9: =11/78*AM7/(0.0833333333333333)/AQ7 -> 0.141025641 | AN9: =12/78*AN7/(0.0833333333333333)/AQ7 -> 0.1538461538 | AO9: 0.4230769231 | AP9: =+AO9+AK9+AG9+AC9 -> 1 | AS9: =0.0128205128205128*AS7/(0.0833333333333333)/BJ7 -> 0.01282051282 | AT9: =2/78*AT7/(0.0833333333333333)/BJ7 -> 0.02564102564 | AU9: =3/78*AU7/(0.0833333333333333)/BJ7 -> 0.03846153846 | AV9: 0.07692307692 | AW9: =4/78*AW7/(0.0833333333333333)/BJ7 -> 0.05128205128 | AX9: =5/78*AX7/(0.0833333333333333)/BJ7 -> 0.0641025641 | AY9: =6/78*AY7/(0.0833333333333333)/BJ7 -> 0.07692307692 | AZ9: 0.1923076923 | BA9: =7/78*BA7/(0.0833333333333333)/BJ7 -> 0.08974358974 | BB9: =8/78*BB7/(0.0833333333333333)/BJ7 -> 0.1025641026 | BC9: =9/78*BC7/(0.0833333333333333)/BJ7 -> 0.1153846154 | BD9: 0.3076923077 | BE9: =10/78*BE7/(0.0833333333333333)/BJ7 -> 0.1282051282 | BF9: =11/78*BF7/(0.0833333333333333)/BJ7 -> 0.141025641 | BG9: =12/78*BG7/(0.0833333333333333)/BJ7 -> 0.1538461538 | BH9: 0.4230769231 | BI9: =+BH9+BD9+AZ9+AV9 -> 1 | BL9: =0.0128205128205128*BL7/(0.0833333333333333)/CC7 -> 0.01282051282 | BM9: =2/78*BM7/(0.0833333333333333)/CC7 -> 0.02564102564 | BN9: =3/78*BN7/(0.0833333333333333)/CC7 -> 0.03846153846 | BO9: 0.07692307692 | BP9: =4/78*BP7/(0.0833333333333333)/CC7 -> 0.05128205128 | BQ9: =5/78*BQ7/(0.0833333333333333)/CC7 -> 0.0641025641 | BR9: =6/78*BR7/(0.0833333333333333)/CC7 -> 0.07692307692 | BS9: 0.1923076923 | BT9: =7/78*BT7/(0.0833333333333333)/CC7 -> 0.08974358974 | BU9: =8/78*BU7/(0.0833333333333333)/CC7 -> 0.1025641026 | BV9: =9/78*BV7/(0.0833333333333333)/CC7 -> 0.1153846154 | BW9: 0.3076923077 | BX9: =10/78*BX7/(0.0833333333333333)/CC7 -> 0.1282051282 | BY9: =11/78*BY7/(0.0833333333333333)/CC7 -> 0.141025641 | BZ9: =12/78*BZ7/(0.0833333333333333)/CC7 -> 0.1538461538 | CA9: 0.4230769231 | CB9: =+CA9+BW9+BS9+BO9 -> 1 | CE9: =0.0128205128205128*CE7/(0.0833333333333333)/CV7 -> 0.01282051282 | CF9: =2/78*CF7/(0.0833333333333333)/CV7 -> 0.02564102564 | CG9: =3/78*CG7/(0.0833333333333333)/CV7 -> 0.03846153846 | CH9: 0.07692307692 | CI9: =4/78*CI7/(0.0833333333333333)/CV7 -> 0.05128205128 | CJ9: =5/78*CJ7/(0.0833333333333333)/CV7 -> 0.0641025641 | CK9: =6/78*CK7/(0.0833333333333333)/CV7 -> 0.07692307692 | CL9: 0.1923076923 | CM9: =7/78*CM7/(0.0833333333333333)/CV7 -> 0.08974358974 | CN9: =8/78*CN7/(0.0833333333333333)/CV7 -> 0.1025641026 | CO9: =9/78*CO7/(0.0833333333333333)/CV7 -> 0.1153846154 | CP9: 0.3076923077 | CQ9: =10/78*CQ7/(0.0833333333333333)/CV7 -> 0.1282051282 | CR9: =11/78*CR7/(0.0833333333333333)/CV7 -> 0.141025641 | CS9: =12/78*CS7/(0.0833333333333333)/CV7 -> 0.1538461538 | CT9: 0.4230769231 | CU9: =+CT9+CP9+CL9+CH9 -> 1 | CX9: RLGP
B10: Sub Total Base Revenue | G10: =SUMIF($CX3:$CX9,"RLB",G3:G9) -> 0 | H10: =SUMIF($CX3:$CX9,"RLB",H3:H9) -> 0 | I10: 0 | J10: 0 | K10: 0 | L10: 0 | M10: 0 | N10: 0 | O10: 0 | P10: 0 | Q10: 0 | R10: 0 | S10: 0 | T10: 0 | U10: 0 | V10: 0 | W10: 0 | Z10: =SUMIF($CX3:$CX9,"RLB",Z3:Z9) -> 0 | AA10: 0 | AB10: 0 | AC10: 0 | AD10: 0 | AE10: 0 | AF10: 0 | AG10: 0 | AH10: 0 | AI10: 0 | AJ10: 0 | AK10: 0 | AL10: 0 | AM10: 0 | AN10: 0 | AO10: 0 | AP10: 0 | AS10: =SUMIF($CX3:$CX9,"RLB",AS3:AS9) -> 0 | AT10: 0 | AU10: 0 | AV10: 0 | AW10: 0 | AX10: 0 | AY10: 0 | AZ10: 0 | BA10: 0 | BB10: 0 | BC10: 0 | BD10: 0 | BE10: 0 | BF10: 0 | BG10: 0 | BH10: 0 | BI10: 0 | BL10: =SUMIF($CX3:$CX9,"RLB",BL3:BL9) -> 0 | BM10: 0 | BN10: 0 | BO10: 0 | BP10: 0 | BQ10: 0 | BR10: 0 | BS10: 0 | BT10: 0 | BU10: 0 | BV10: 0 | BW10: 0 | BX10: 0 | BY10: 0 | BZ10: 0 | CA10: 0 | CB10: 0 | CE10: =SUMIF($CX3:$CX9,"RLB",CE3:CE9) -> 0 | CF10: 0 | CG10: 0 | CH10: 0 | CI10: 0 | CJ10: 0 | CK10: 0 | CL10: 0 | CM10: 0 | CN10: 0 | CO10: 0 | CP10: 0 | CQ10: 0 | CR10: 0 | CS10: 0 | CT10: 0 | CU10: 0 | CX10: RCBT
B11: Percentage of Year | G11: =+G10/W10 ->  | H11: =+H10/W10 ->  | I11: =+I10/W10 ->  | J11: =+J10/W10 ->  | K11: =+K10/W10 ->  | L11: =+L10/W10 ->  | M11: =+M10/W10 ->  | N11: =+N10/W10 ->  | O11: =+O10/W10 ->  | P11: =+P10/W10 ->  | Q11: =+Q10/W10 ->  | R11: =+R10/W10 ->  | S11: =+S10/W10 ->  | T11: =+T10/W10 ->  | U11: =+U10/W10 ->  | V11: =+V10/W10 ->  | W11: =+W10/W10 ->  | Z11: =+Z10/AP10 ->  | AA11: =+AA10/AP10 ->  | AB11: =+AB10/AP10 ->  | AC11: =+AC10/AP10 ->  | AD11: =+AD10/AP10 ->  | AE11: =+AE10/AP10 ->  | AF11: =+AF10/AP10 ->  | AG11: =+AG10/AP10 ->  | AH11: =+AH10/AP10 ->  | AI11: =+AI10/AP10 ->  | AJ11: =+AJ10/AP10 ->  | AK11: =+AK10/AP10 ->  | AL11: =+AL10/AP10 ->  | AM11: =+AM10/AP10 ->  | AN11: =+AN10/AP10 ->  | AO11: =+AO10/AP10 ->  | AP11: =+AP10/AP10 ->  | AS11: =+AS10/BI10 ->  | AT11: =+AT10/BI10 ->  | AU11: =+AU10/BI10 ->  | AV11: =+AV10/BI10 ->  | AW11: =+AW10/BI10 ->  | AX11: =+AX10/BI10 ->  | AY11: =+AY10/BI10 ->  | AZ11: =+AZ10/BI10 ->  | BA11: =+BA10/BI10 ->  | BB11: =+BB10/BI10 ->  | BC11: =+BC10/BI10 ->  | BD11: =+BD10/BI10 ->  | BE11: =+BE10/BI10 ->  | BF11: =+BF10/BI10 ->  | BG11: =+BG10/BI10 ->  | BH11: =+BH10/BI10 ->  | BI11: =+BI10/BI10 ->  | BL11: =+BL10/CB10 ->  | BM11: =+BM10/CB10 ->  | BN11: =+BN10/CB10 ->  | BO11: =+BO10/CB10 ->  | BP11: =+BP10/CB10 ->  | BQ11: =+BQ10/CB10 ->  | BR11: =+BR10/CB10 ->  | BS11: =+BS10/CB10 ->  | BT11: =+BT10/CB10 ->  | BU11: =+BU10/CB10 ->  | BV11: =+BV10/CB10 ->  | BW11: =+BW10/CB10 ->  | BX11: =+BX10/CB10 ->  | BY11: =+BY10/CB10 ->  | BZ11: =+BZ10/CB10 ->  | CA11: =+CA10/CB10 ->  | CB11: =+CB10/CB10 ->  | CE11: =+CE10/CU10 ->  | CF11: =+CF10/CU10 ->  | CG11: =+CG10/CU10 ->  | CH11: =+CH10/CU10 ->  | CI11: =+CI10/CU10 ->  | CJ11: =+CJ10/CU10 ->  | CK11: =+CK10/CU10 ->  | CL11: =+CL10/CU10 ->  | CM11: =+CM10/CU10 ->  | CN11: =+CN10/CU10 ->  | CO11: =+CO10/CU10 ->  | CP11: =+CP10/CU10 ->  | CQ11: =+CQ10/CU10 ->  | CR11: =+CR10/CU10 ->  | CS11: =+CS10/CU10 ->  | CT11: =+CT10/CU10 ->  | CU11: =+CU10/CU10 ->  | CX11: RCBP
B12: Sub Total Growth Revenue | G12: =SUMIF($CX3:$CX9,"RLG",G3:G9) -> 0 | H12: =SUMIF($CX3:$CX9,"RLG",H3:H9) -> 0 | I12: 0 | J12: 0 | K12: 0 | L12: 0 | M12: 0 | N12: 0 | O12: 0 | P12: 0 | Q12: 0 | R12: 0 | S12: 0 | T12: 0 | U12: 0 | V12: 0 | W12: 0 | Z12: =SUMIF($CX3:$CX9,"RLG",Z3:Z9) -> 0 | AA12: =SUMIF($CX3:$CX9,"RLG",AA3:AA9) -> 0 | AB12: 0 | AC12: 0 | AD12: 0 | AE12: 0 | AF12: 0 | AG12: 0 | AH12: 0 | AI12: 0 | AJ12: 0 | AK12: 0 | AL12: 0 | AM12: 0 | AN12: 0 | AO12: 0 | AP12: 0 | AS12: =SUMIF($CX3:$CX9,"RLG",AS3:AS9) -> 0 | AT12: =SUMIF($CX3:$CX9,"RLG",AT3:AT9) -> 0 | AU12: 0 | AV12: 0 | AW12: 0 | AX12: 0 | AY12: 0 | AZ12: 0 | BA12: 0 | BB12: 0 | BC12: 0 | BD12: 0 | BE12: 0 | BF12: 0 | BG12: 0 | BH12: 0 | BI12: 0 | BL12: =SUMIF($CX3:$CX9,"RLG",BL3:BL9) -> 0 | BM12: =SUMIF($CX3:$CX9,"RLG",BM3:BM9) -> 0 | BN12: 0 | BO12: 0 | BP12: 0 | BQ12: 0 | BR12: 0 | BS12: 0 | BT12: 0 | BU12: 0 | BV12: 0 | BW12: 0 | BX12: 0 | BY12: 0 | BZ12: 0 | CA12: 0 | CB12: 0 | CE12: =SUMIF($CX3:$CX9,"RLG",CE3:CE9) -> 0 | CF12: =SUMIF($CX3:$CX9,"RLG",CF3:CF9) -> 0 | CG12: 0 | CH12: 0 | CI12: 0 | CJ12: 0 | CK12: 0 | CL12: 0 | CM12: 0 | CN12: 0 | CO12: 0 | CP12: 0 | CQ12: 0 | CR12: 0 | CS12: 0 | CT12: 0 | CU12: 0 | CX12: RCGT
B13: Percentage of Year | G13: =+G12/W12 ->  | H13: =+H12/W12 ->  | I13: =+I12/W12 ->  | J13: =+J12/W12 ->  | K13: =+K12/W12 ->  | L13: =+L12/W12 ->  | M13: =+M12/W12 ->  | N13: =+N12/W12 ->  | O13: =+O12/W12 ->  | P13: =+P12/W12 ->  | Q13: =+Q12/W12 ->  | R13: =+R12/W12 ->  | S13: =+S12/W12 ->  | T13: =+T12/W12 ->  | U13: =+U12/W12 ->  | V13: =+V12/W12 ->  | W13: =+W12/W12 ->  | Z13: =+Z12/AP12 ->  | AA13: =+AA12/AP12 ->  | AB13: =+AB12/AP12 ->  | AC13: =+AC12/AP12 ->  | AD13: =+AD12/AP12 ->  | AE13: =+AE12/AP12 ->  | AF13: =+AF12/AP12 ->  | AG13: =+AG12/AP12 ->  | AH13: =+AH12/AP12 ->  | AI13: =+AI12/AP12 ->  | AJ13: =+AJ12/AP12 ->  | AK13: =+AK12/AP12 ->  | AL13: =+AL12/AP12 ->  | AM13: =+AM12/AP12 ->  | AN13: =+AN12/AP12 ->  | AO13: =+AO12/AP12 ->  | AP13: =+AP12/AP12 ->  | AS13: =+AS12/BI12 ->  | AT13: =+AT12/BI12 ->  | AU13: =+AU12/BI12 ->  | AV13: =+AV12/BI12 ->  | AW13: =+AW12/BI12 ->  | AX13: =+AX12/BI12 ->  | AY13: =+AY12/BI12 ->  | AZ13: =+AZ12/BI12 ->  | BA13: =+BA12/BI12 ->  | BB13: =+BB12/BI12 ->  | BC13: =+BC12/BI12 ->  | BD13: =+BD12/BI12 ->  | BE13: =+BE12/BI12 ->  | BF13: =+BF12/BI12 ->  | BG13: =+BG12/BI12 ->  | BH13: =+BH12/BI12 ->  | BI13: =+BI12/BI12 ->  | BL13: =+BL12/CB12 ->  | BM13: =+BM12/CB12 ->  | BN13: =+BN12/CB12 ->  | BO13: =+BO12/CB12 ->  | BP13: =+BP12/CB12 ->  | BQ13: =+BQ12/CB12 ->  | BR13: =+BR12/CB12 ->  | BS13: =+BS12/CB12 ->  | BT13: =+BT12/CB12 ->  | BU13: =+BU12/CB12 ->  | BV13: =+BV12/CB12 ->  | BW13: =+BW12/CB12 ->  | BX13: =+BX12/CB12 ->  | BY13: =+BY12/CB12 ->  | BZ13: =+BZ12/CB12 ->  | CA13: =+CA12/CB12 ->  | CB13: =+CB12/CB12 ->  | CE13: =+CE12/CU12 ->  | CF13: =+CF12/CU12 ->  | CG13: =+CG12/CU12 ->  | CH13: =+CH12/CU12 ->  | CI13: =+CI12/CU12 ->  | CJ13: =+CJ12/CU12 ->  | CK13: =+CK12/CU12 ->  | CL13: =+CL12/CU12 ->  | CM13: =+CM12/CU12 ->  | CN13: =+CN12/CU12 ->  | CO13: =+CO12/CU12 ->  | CP13: =+CP12/CU12 ->  | CQ13: =+CQ12/CU12 ->  | CR13: =+CR12/CU12 ->  | CS13: =+CS12/CU12 ->  | CT13: =+CT12/CU12 ->  | CU13: =+CU12/CU12 ->  | CX13: RCGP
B14: Sub Total | C14: =SUMIF($CX3:$CX13,"RL",C3:C13) -> 0 | D14: =SUMIF($CX3:$CX13,"RL",D3:D13) -> 0 | E14: =SUMIF($CX3:$CX13,"RL",E3:E13) -> 0 | G14: =SUMIF($CX3:$CX13,"RL",G3:G13) -> 0 | H14: =SUMIF($CX3:$CX13,"RL",H3:H13) -> 0 | I14: 0 | J14: 0 | K14: 0 | L14: 0 | M14: 0 | N14: 0 | O14: 0 | P14: 0 | Q14: 0 | R14: 0 | S14: 0 | T14: 0 | U14: 0 | V14: 0 | W14: 0 | X14: =+W14-E14 -> 0 | Z14: =SUMIF($CX3:$CX13,"RL",Z3:Z13) -> 0 | AA14: 0 | AB14: 0 | AC14: 0 | AD14: 0 | AE14: 0 | AF14: 0 | AG14: 0 | AH14: 0 | AI14: 0 | AJ14: 0 | AK14: 0 | AL14: 0 | AM14: 0 | AN14: 0 | AO14: 0 | AP14: 0 | AQ14: =+AP14-W14 -> 0 | AS14: =SUMIF($CX3:$CX13,"RL",AS3:AS13) -> 0 | AT14: 0 | AU14: 0 | AV14: 0 | AW14: 0 | AX14: 0 | AY14: 0 | AZ14: 0 | BA14: 0 | BB14: 0 | BC14: 0 | BD14: 0 | BE14: 0 | BF14: 0 | BG14: 0 | BH14: 0 | BI14: 0 | BJ14: =+BI14-AP14 -> 0 | BL14: =SUMIF($CX3:$CX13,"RL",BL3:BL13) -> 0 | BM14: 0 | BN14: 0 | BO14: 0 | BP14: 0 | BQ14: 0 | BR14: 0 | BS14: 0 | BT14: 0 | BU14: 0 | BV14: 0 | BW14: 0 | BX14: 0 | BY14: 0 | BZ14: 0 | CA14: 0 | CB14: 0 | CC14: =+CB14-BI14 -> 0 | CE14: =SUMIF($CX3:$CX13,"RL",CE3:CE13) -> 0 | CF14: 0 | CG14: 0 | CH14: 0 | CI14: 0 | CJ14: 0 | CK14: 0 | CL14: 0 | CM14: 0 | CN14: 0 | CO14: 0 | CP14: 0 | CQ14: 0 | CR14: 0 | CS14: 0 | CT14: 0 | CU14: 0 | CV14: =+CU14-CB14 -> 0 | CX14: RCT
B15: Percent of Year | G15: =+G14/W14 ->  | H15: =+H14/W14 ->  | I15: =+I14/W14 ->  | J15: =+J14/W14 ->  | K15: =+K14/W14 ->  | L15: =+L14/W14 ->  | M15: =+M14/W14 ->  | N15: =+N14/W14 ->  | O15: =+O14/W14 ->  | P15: =+P14/W14 ->  | Q15: =+Q14/W14 ->  | R15: =+R14/W14 ->  | S15: =+S14/W14 ->  | T15: =+T14/W14 ->  | U15: =+U14/W14 ->  | V15: =+V14/W14 ->  | W15: =+W14/W14 ->  | X15: =+X14/E14 ->  | Z15: =+Z14/AP14 ->  | AA15: =+AA14/AP14 ->  | AB15: =+AB14/AP14 ->  | AC15: =+AC14/AP14 ->  | AD15: =+AD14/AP14 ->  | AE15: =+AE14/AP14 ->  | AF15: =+AF14/AP14 ->  | AG15: =+AG14/AP14 ->  | AH15: =+AH14/AP14 ->  | AI15: =+AI14/AP14 ->  | AJ15: =+AJ14/AP14 ->  | AK15: =+AK14/AP14 ->  | AL15: =+AL14/AP14 ->  | AM15: =+AM14/AP14 ->  | AN15: =+AN14/AP14 ->  | AO15: =+AO14/AP14 ->  | AP15: =+AP14/AP14 ->  | AQ15: =+W14/AP14 ->  | AS15: =+AS14/BI14 ->  | AT15: =+AT14/BI14 ->  | AU15: =+AU14/BI14 ->  | AV15: =+AV14/BI14 ->  | AW15: =+AW14/BI14 ->  | AX15: =+AX14/BI14 ->  | AY15: =+AY14/BI14 ->  | AZ15: =+AZ14/BI14 ->  | BA15: =+BA14/BI14 ->  | BB15: =+BB14/BI14 ->  | BC15: =+BC14/BI14 ->  | BD15: =+BD14/BI14 ->  | BE15: =+BE14/BI14 ->  | BF15: =+BF14/BI14 ->  | BG15: =+BG14/BI14 ->  | BH15: =+BH14/BI14 ->  | BI15: =+BI14/BI14 ->  | BJ15: =+BJ14/AP14 ->  | BL15: =+BL14/CB14 ->  | BM15: =+BM14/CB14 ->  | BN15: =+BN14/CB14 ->  | BO15: =+BO14/CB14 ->  | BP15: =+BP14/CB14 ->  | BQ15: =+BQ14/CB14 ->  | BR15: =+BR14/CB14 ->  | BS15: =+BS14/CB14 ->  | BT15: =+BT14/CB14 ->  | BU15: =+BU14/CB14 ->  | BV15: =+BV14/CB14 ->  | BW15: =+BW14/CB14 ->  | BX15: =+BX14/CB14 ->  | BY15: =+BY14/CB14 ->  | BZ15: =+BZ14/CB14 ->  | CA15: =+CA14/CB14 ->  | CB15: =+CB14/CB14 ->  | CC15: =+CC14/BI14 ->  | CE15: =+CE14/CU14 ->  | CF15: =+CF14/CU14 ->  | CG15: =+CG14/CU14 ->  | CH15: =+CH14/CU14 ->  | CI15: =+CI14/CU14 ->  | CJ15: =+CJ14/CU14 ->  | CK15: =+CK14/CU14 ->  | CL15: =+CL14/CU14 ->  | CM15: =+CM14/CU14 ->  | CN15: =+CN14/CU14 ->  | CO15: =+CO14/CU14 ->  | CP15: =+CP14/CU14 ->  | CQ15: =+CQ14/CU14 ->  | CR15: =+CR14/CU14 ->  | CS15: =+CS14/CU14 ->  | CT15: =+CT14/CU14 ->  | CU15: =+CU14/CU14 ->  | CV15: =+CV14/CB14 ->  | CX15: RCP
B18: New Revenue Line | C18: 0 | D18: =+RemMonths/YTDMonths*C18 -> 0 | E18: =+D18+C18 -> 0 | F18: =+DefRelRev -> 0 | G18: =+G20+G22 -> 0 | H18: =+H20+H22 -> 0 | I18: =+I20+I22 -> 0 | J18: =SUM(G18:I18) -> 0 | K18: =+K20+K22 -> 0 | L18: =+L20+L22 -> 0 | M18: =+M20+M22 -> 0 | N18: =SUM(K18:M18) -> 0 | O18: =+O20+O22 -> 0 | P18: =+P20+P22 -> 0 | Q18: =+Q20+Q22 -> 0 | R18: =SUM(O18:Q18) -> 0 | S18: =+S20+S22 -> 0 | T18: =+T20+T22 -> 0 | U18: =+U20+U22 -> 0 | V18: =SUM(S18:U18) -> 0 | W18: =+E18*(1+F18) -> 0 | X18: =+W18-E18 -> 0 | Y18: =+DefRelRev2 -> 0 | Z18: =+Z20+Z22 -> 0 | AA18: =+AA20+AA22 -> 0 | AB18: =+AB20+AB22 -> 0 | AC18: =SUM(Z18:AB18) -> 0 | AD18: =+AD20+AD22 -> 0 | AE18: =+AE20+AE22 -> 0 | AF18: =+AF20+AF22 -> 0 | AG18: =SUM(AD18:AF18) -> 0 | AH18: =+AH20+AH22 -> 0 | AI18: =+AI20+AI22 -> 0 | AJ18: =+AJ20+AJ22 -> 0 | AK18: =SUM(AH18:AJ18) -> 0 | AL18: =+AL20+AL22 -> 0 | AM18: =+AM20+AM22 -> 0 | AN18: =+AN20+AN22 -> 0 | AO18: =SUM(AL18:AN18) -> 0 | AP18: =+W18*(1+Y18) -> 0 | AQ18: =+AP18-W18 -> 0 | AR18: =+DefRelRev3 -> 0 | AS18: =+AS20+AS22 -> 0 | AT18: =+AT20+AT22 -> 0 | AU18: =+AU20+AU22 -> 0 | AV18: =SUM(AS18:AU18) -> 0 | AW18: =+AW20+AW22 -> 0 | AX18: =+AX20+AX22 -> 0 | AY18: =+AY20+AY22 -> 0 | AZ18: =SUM(AW18:AY18) -> 0 | BA18: =+BA20+BA22 -> 0 | BB18: =+BB20+BB22 -> 0 | BC18: =+BC20+BC22 -> 0 | BD18: =SUM(BA18:BC18) -> 0 | BE18: =+BE20+BE22 -> 0 | BF18: =+BF20+BF22 -> 0 | BG18: =+BG20+BG22 -> 0 | BH18: =SUM(BE18:BG18) -> 0 | BI18: =+AP18*(1+AR18) -> 0 | BJ18: =+BI18-AP18 -> 0 | BK18: =+DefRelRev4 -> 0 | BL18: =+BL20+BL22 -> 0 | BM18: =+BM20+BM22 -> 0 | BN18: =+BN20+BN22 -> 0 | BO18: =SUM(BL18:BN18) -> 0 | BP18: =+BP20+BP22 -> 0 | BQ18: =+BQ20+BQ22 -> 0 | BR18: =+BR20+BR22 -> 0 | BS18: =SUM(BP18:BR18) -> 0 | BT18: =+BT20+BT22 -> 0 | BU18: =+BU20+BU22 -> 0 | BV18: =+BV20+BV22 -> 0 | BW18: =SUM(BT18:BV18) -> 0 | BX18: =+BX20+BX22 -> 0 | BY18: =+BY20+BY22 -> 0 | BZ18: =+BZ20+BZ22 -> 0 | CA18: =SUM(BX18:BZ18) -> 0 | CB18: =+BI18*(1+BK18) -> 0 | CC18: =+CB18-BI18 -> 0 | CD18: =+DefRelRev5 -> 0 | CE18: =+CE20+CE22 -> 0 | CF18: =+CF20+CF22 -> 0 | CG18: =+CG20+CG22 -> 0 | CH18: =SUM(CE18:CG18) -> 0 | CI18: =+CI20+CI22 -> 0 | CJ18: =+CJ20+CJ22 -> 0 | CK18: =+CK20+CK22 -> 0 | CL18: =SUM(CI18:CK18) -> 0 | CM18: =+CM20+CM22 -> 0 | CN18: =+CN20+CN22 -> 0 | CO18: =+CO20+CO22 -> 0 | CP18: =SUM(CM18:CO18) -> 0 | CQ18: =+CQ20+CQ22 -> 0 | CR18: =+CR20+CR22 -> 0 | CS18: =+CS20+CS22 -> 0 | CT18: =SUM(CQ18:CS18) -> 0 | CU18: =+CB18*(1+CD18) -> 0 | CV18: =+CU18-CB18 -> 0 | CX18: RL
B19: Percentage of Year | G19: =+G18/W18 ->  | H19: =+H18/W18 ->  | I19: =+I18/W18 ->  | K19: =+K18/W18 ->  | L19: =+L18/W18 ->  | M19: =+M18/W18 ->  | O19: =+O18/W18 ->  | P19: =+P18/W18 ->  | Q19: =+Q18/W18 ->  | S19: =+S18/W18 ->  | T19: =+T18/W18 ->  | U19: =+U18/W18 ->  | W19: =+V19+R19+N19+J19 ->  | X19: =+X14/E18 ->  | Z19: =+Z18/AP18 ->  | AA19: =+AA18/AP18 ->  | AB19: =+AB18/AP18 ->  | AD19: =+AD18/AP18 ->  | AE19: =+AE18/AP18 ->  | AF19: =+AF18/AP18 ->  | AH19: =+AH18/AP18 ->  | AI19: =+AI18/AP18 ->  | AJ19: =+AJ18/AP18 ->  | AL19: =+AL18/AP18 ->  | AM19: =+AM18/AP18 ->  | AN19: =+AN18/AP18 ->  | AP19: =+AO19+AK19+AG19+AC19 ->  | AQ19: =+AP18/W18 ->  | AS19: =+AS18/BI18 ->  | AT19: =+AT18/BI18 ->  | AU19: =+AU18/BI18 ->  | AW19: =+AW18/BI18 ->  | AX19: =+AX18/BI18 ->  | AY19: =+AY18/BI18 ->  | BA19: =+BA18/BI18 ->  | BB19: =+BB18/BI18 ->  | BC19: =+BC18/BI18 ->  | BE19: =+BE18/BI18 ->  | BF19: =+BF18/BI18 ->  | BG19: =+BG18/BI18 ->  | BI19: =+BH19+BD19+AZ19+AV19 ->  | BJ19: =+BJ18/AP18 ->  | BL19: =+BL18/CB18 ->  | BM19: =+BM18/CB18 ->  | BN19: =+BN18/CB18 ->  | BP19: =+BP18/CB18 ->  | BQ19: =+BQ18/CB18 ->  | BR19: =+BR18/CB18 ->  | BT19: =+BT18/CB18 ->  | BU19: =+BU18/CB18 ->  | BV19: =+BV18/CB18 ->  | BX19: =+BX18/CB18 ->  | BY19: =+BY18/CB18 ->  | BZ19: =+BZ18/CB18 ->  | CB19: =+CA19+BW19+BS19+BO19 ->  | CC19: =+CC18/BI18 ->  | CE19: =+CE18/CU18 ->  | CF19: =+CF18/CU18 ->  | CG19: =+CG18/CU18 ->  | CI19: =+CI18/CU18 ->  | CJ19: =+CJ18/CU18 ->  | CK19: =+CK18/CU18 ->  | CM19: =+CM18/CU18 ->  | CN19: =+CN18/CU18 ->  | CO19: =+CO18/CU18 ->  | CQ19: =+CQ18/CU18 ->  | CR19: =+CR18/CU18 ->  | CS19: =+CS18/CU18 ->  | CU19: =+CT19+CP19+CL19+CH19 ->  | CV19: =+CV18/CB18 ->  | CX19: RLP
B20: Base Revenue | G20: =+G21*E18 -> 0 | H20: =+H21*E18 -> 0 | I20: =+I21*E18 -> 0 | J20: 0 | K20: =+K21*E18 -> 0 | L20: =+L21*E18 -> 0 | M20: =+M21*E18 -> 0 | N20: 0 | O20: =+O21*E18 -> 0 | P20: =+P21*E18 -> 0 | Q20: =+Q21*E18 -> 0 | R20: 0 | S20: =+S21*E18 -> 0 | T20: =+T21*E18 -> 0 | U20: =+U21*E18 -> 0 | V20: 0 | W20: =+V20+R20+N20+J20 -> 0 | Z20: =+Z21*W18 -> 0 | AA20: =+AA21*W18 -> 0 | AB20: =+AB21*W18 -> 0 | AC20: 0 | AD20: =+AD21*W18 -> 0 | AE20: =+AE21*W18 -> 0 | AF20: =+AF21*W18 -> 0 | AG20: 0 | AH20: =+AH21*W18 -> 0 | AI20: =+AI21*W18 -> 0 | AJ20: =+AJ21*W18 -> 0 | AK20: 0 | AL20: =+AL21*W18 -> 0 | AM20: =+AM21*W18 -> 0 | AN20: =+AN21*W18 -> 0 | AO20: 0 | AP20: =+AO20+AK20+AG20+AC20 -> 0 | AS20: =+AS21*AP18 -> 0 | AT20: =+AT21*AP18 -> 0 | AU20: =+AU21*AP18 -> 0 | AV20: 0 | AW20: =+AW21*AP18 -> 0 | AX20: =+AX21*AP18 -> 0 | AY20: =+AY21*AP18 -> 0 | AZ20: 0 | BA20: =+BA21*AP18 -> 0 | BB20: =+BB21*AP18 -> 0 | BC20: =+BC21*AP18 -> 0 | BD20: 0 | BE20: =+BE21*AP18 -> 0 | BF20: =+BF21*AP18 -> 0 | BG20: =+BG21*AP18 -> 0 | BH20: 0 | BI20: =+BH20+BD20+AZ20+AV20 -> 0 | BL20: =+BL21*BI18 -> 0 | BM20: =+BM21*BI18 -> 0 | BN20: =+BN21*BI18 -> 0 | BO20: 0 | BP20: =+BP21*BI18 -> 0 | BQ20: =+BQ21*BI18 -> 0 | BR20: =+BR21*BI18 -> 0 | BS20: 0 | BT20: =+BT21*BI18 -> 0 | BU20: =+BU21*BI18 -> 0 | BV20: =+BV21*BI18 -> 0 | BW20: 0 | BX20: =+BX21*BI18 -> 0 | BY20: =+BY21*BI18 -> 0 | BZ20: =+BZ21*BI18 -> 0 | CA20: 0 | CB20: =+CA20+BW20+BS20+BO20 -> 0 | CE20: =+CE21*CB18 -> 0 | CF20: =+CF21*CB18 -> 0 | CG20: =+CG21*CB18 -> 0 | CH20: 0 | CI20: =+CI21*CB18 -> 0 | CJ20: =+CJ21*CB18 -> 0 | CK20: =+CK21*CB18 -> 0 | CL20: 0 | CM20: =+CM21*CB18 -> 0 | CN20: =+CN21*CB18 -> 0 | CO20: =+CO21*CB18 -> 0 | CP20: 0 | CQ20: =+CQ21*CB18 -> 0 | CR20: =+CR21*CB18 -> 0 | CS20: =+CS21*CB18 -> 0 | CT20: 0 | CU20: =+CT20+CP20+CL20+CH20 -> 0 | CX20: RLB
B21: Percentage of Year | G21: =+M1PCD -> 0.08333333333 | H21: =+M2PCD -> 0.08333333333 | I21: =+M3PCD -> 0.08333333333 | J21: 0.25 | K21: =+M4PCD -> 0.08333333333 | L21: =+M5PCD -> 0.08333333333 | M21: =+M6PCD -> 0.08333333333 | N21: 0.25 | O21: =+M7PCD -> 0.08333333333 | P21: =+M8PCD -> 0.08333333333 | Q21: =+M9PCD -> 0.08333333333 | R21: 0.25 | S21: =+M10PCD -> 0.08333333333 | T21: =+M11PCD -> 0.08333333333 | U21: =+W21-(SUM(R21:T21)+N21+J21) -> 0.08333333333 | V21: 0.25 | W21: 1 | X21: =0.0128205128205128*G21/(0.0833333333333333)+2/78*H21/(1/12)+3/78*I21/(1/12)+4/78*K21/(1/12)+5/78*L21/(1/12)+6/78*M21/(1/12)+7/78*O21/(1/12)+8/78*P21/(1/12)+9/78*Q21/(1/12)+10/78*S21/(1/12)+11/78*T21/(1/12)+12/78*U21/(1/12) -> 1 | Z21: =+M1PCD2 -> 0.08333333333 | AA21: =+M2PCD2 -> 0.08333333333 | AB21: =+M3PCD2 -> 0.08333333333 | AC21: 0.25 | AD21: =+M4PCD2 -> 0.08333333333 | AE21: =+M5PCD2 -> 0.08333333333 | AF21: =+M6PCD2 -> 0.08333333333 | AG21: 0.25 | AH21: =+M7PCD2 -> 0.08333333333 | AI21: =+M8PCD2 -> 0.08333333333 | AJ21: =+M9PCD2 -> 0.08333333333 | AK21: 0.25 | AL21: =+M10PCD2 -> 0.08333333333 | AM21: =+M11PCD2 -> 0.08333333333 | AN21: =+AP21-(SUM(AK21:AM21)+AG21+AC21) -> 0.08333333333 | AO21: 0.25 | AP21: 1 | AQ21: =0.0128205128205128*Z21/(0.0833333333333333)+2/78*AA21/(1/12)+3/78*AB21/(1/12)+4/78*AD21/(1/12)+5/78*AE21/(1/12)+6/78*AF21/(1/12)+7/78*AH21/(1/12)+8/78*AI21/(1/12)+9/78*AJ21/(1/12)+10/78*AL21/(1/12)+11/78*AM21/(1/12)+12/78*AN21/(1/12) -> 1 | AS21: =+M1PCD3 -> 0.08333333333 | AT21: =+M2PCD3 -> 0.08333333333 | AU21: =+M3PCD3 -> 0.08333333333 | AV21: 0.25 | AW21: =+M4PCD3 -> 0.08333333333 | AX21: =+M5PCD3 -> 0.08333333333 | AY21: =+M6PCD3 -> 0.08333333333 | AZ21: 0.25 | BA21: =+M7PCD3 -> 0.08333333333 | BB21: =+M8PCD3 -> 0.08333333333 | BC21: =+M9PCD3 -> 0.08333333333 | BD21: 0.25 | BE21: =+M10PCD3 -> 0.08333333333 | BF21: =+M11PCD3 -> 0.08333333333 | BG21: =+BI21-(SUM(BD21:BF21)+AZ21+AV21) -> 0.08333333333 | BH21: 0.25 | BI21: 1 | BJ21: =0.0128205128205128*AS21/(0.0833333333333333)+2/78*AT21/(1/12)+3/78*AU21/(1/12)+4/78*AW21/(1/12)+5/78*AX21/(1/12)+6/78*AY21/(1/12)+7/78*BA21/(1/12)+8/78*BB21/(1/12)+9/78*BC21/(1/12)+10/78*BE21/(1/12)+11/78*BF21/(1/12)+12/78*BG21/(1/12) -> 1 | BL21: =+M1PCD4 -> 0.08333333333 | BM21: =+M2PCD4 -> 0.08333333333 | BN21: =+M3PCD4 -> 0.08333333333 | BO21: 0.25 | BP21: =+M4PCD4 -> 0.08333333333 | BQ21: =+M5PCD4 -> 0.08333333333 | BR21: =+M6PCD4 -> 0.08333333333 | BS21: 0.25 | BT21: =+M7PCD4 -> 0.08333333333 | BU21: =+M8PCD4 -> 0.08333333333 | BV21: =+M9PCD4 -> 0.08333333333 | BW21: 0.25 | BX21: =+M10PCD4 -> 0.08333333333 | BY21: =+M11PCD4 -> 0.08333333333 | BZ21: =+CB21-(SUM(BW21:BY21)+BS21+BO21) -> 0.08333333333 | CA21: 0.25 | CB21: 1 | CC21: =0.0128205128205128*BL21/(0.0833333333333333)+2/78*BM21/(1/12)+3/78*BN21/(1/12)+4/78*BP21/(1/12)+5/78*BQ21/(1/12)+6/78*BR21/(1/12)+7/78*BT21/(1/12)+8/78*BU21/(1/12)+9/78*BV21/(1/12)+10/78*BX21/(1/12)+11/78*BY21/(1/12)+12/78*BZ21/(1/12) -> 1 | CE21: =+M1PCD5 -> 0.08333333333 | CF21: =+M2PCD5 -> 0.08333333333 | CG21: =+M3PCD5 -> 0.08333333333 | CH21: 0.25 | CI21: =+M4PCD5 -> 0.08333333333 | CJ21: =+M5PCD5 -> 0.08333333333 | CK21: =+M6PCD5 -> 0.08333333333 | CL21: 0.25 | CM21: =+M7PCD5 -> 0.08333333333 | CN21: =+M8PCD5 -> 0.08333333333 | CO21: =+M9PCD5 -> 0.08333333333 | CP21: 0.25 | CQ21: =+M10PCD5 -> 0.08333333333 | CR21: =+M11PCD5 -> 0.08333333333 | CS21: =+CU21-(SUM(CP21:CR21)+CL21+CH21) -> 0.08333333333 | CT21: 0.25 | CU21: 1 | CV21: =0.0128205128205128*CE21/(0.0833333333333333)+2/78*CF21/(1/12)+3/78*CG21/(1/12)+4/78*CI21/(1/12)+5/78*CJ21/(1/12)+6/78*CK21/(1/12)+7/78*CM21/(1/12)+8/78*CN21/(1/12)+9/78*CO21/(1/12)+10/78*CQ21/(1/12)+11/78*CR21/(1/12)+12/78*CS21/(1/12) -> 1 | CX21: RLPC
B22: Growth Revenue | G22: =+G23*X18 -> 0 | H22: =+H23*X18 -> 0 | I22: =+I23*X18 -> 0 | J22: 0 | K22: =+K23*X18 -> 0 | L22: =+L23*X18 -> 0 | M22: =+M23*X18 -> 0 | N22: 0 | O22: =+O23*X18 -> 0 | P22: =+P23*X18 -> 0 | Q22: =+Q23*X18 -> 0 | R22: 0 | S22: =+S23*X18 -> 0 | T22: =+T23*X18 -> 0 | U22: =+U23*X18 -> 0 | V22: 0 | W22: =+V22+R22+N22+J22 -> 0 | Z22: =+Z23*AQ18 -> 0 | AA22: =+AA23*AQ18 -> 0 | AB22: =+AB23*AQ18 -> 0 | AC22: 0 | AD22: =+AD23*AQ18 -> 0 | AE22: =+AE23*AQ18 -> 0 | AF22: =+AF23*AQ18 -> 0 | AG22: 0 | AH22: =+AH23*AQ18 -> 0 | AI22: =+AI23*AQ18 -> 0 | AJ22: =+AJ23*AQ18 -> 0 | AK22: 0 | AL22: =+AL23*AQ18 -> 0 | AM22: =+AM23*AQ18 -> 0 | AN22: =+AN23*AQ18 -> 0 | AO22: 0 | AP22: =+AO22+AK22+AG22+AC22 -> 0 | AS22: =+AS23*BJ18 -> 0 | AT22: =+AT23*BJ18 -> 0 | AU22: =+AU23*BJ18 -> 0 | AV22: 0 | AW22: =+AW23*BJ18 -> 0 | AX22: =+AX23*BJ18 -> 0 | AY22: =+AY23*BJ18 -> 0 | AZ22: 0 | BA22: =+BA23*BJ18 -> 0 | BB22: =+BB23*BJ18 -> 0 | BC22: =+BC23*BJ18 -> 0 | BD22: 0 | BE22: =+BE23*BJ18 -> 0 | BF22: =+BF23*BJ18 -> 0 | BG22: =+BG23*BJ18 -> 0 | BH22: 0 | BI22: =+BH22+BD22+AZ22+AV22 -> 0 | BL22: =+BL23*CC18 -> 0 | BM22: =+BM23*CC18 -> 0 | BN22: =+BN23*CC18 -> 0 | BO22: 0 | BP22: =+BP23*CC18 -> 0 | BQ22: =+BQ23*CC18 -> 0 | BR22: =+BR23*CC18 -> 0 | BS22: 0 | BT22: =+BT23*CC18 -> 0 | BU22: =+BU23*CC18 -> 0 | BV22: =+BV23*CC18 -> 0 | BW22: 0 | BX22: =+BX23*CC18 -> 0 | BY22: =+BY23*CC18 -> 0 | BZ22: =+BZ23*CC18 -> 0 | CA22: 0 | CB22: =+CA22+BW22+BS22+BO22 -> 0 | CE22: =+CE23*CV18 -> 0 | CF22: =+CF23*CV18 -> 0 | CG22: =+CG23*CV18 -> 0 | CH22: 0 | CI22: =+CI23*CV18 -> 0 | CJ22: =+CJ23*CV18 -> 0 | CK22: =+CK23*CV18 -> 0 | CL22: 0 | CM22: =+CM23*CV18 -> 0 | CN22: =+CN23*CV18 -> 0 | CO22: =+CO23*CV18 -> 0 | CP22: 0 | CQ22: =+CQ23*CV18 -> 0 | CR22: =+CR23*CV18 -> 0 | CS22: =+CS23*CV18 -> 0 | CT22: 0 | CU22: =+CT22+CP22+CL22+CH22 -> 0 | CX22: RLG
B23: Percentage of Year | G23: =0.0128205128205128*G21/(0.0833333333333333)/X21 -> 0.01282051282 | H23: =2/78*H21/(0.0833333333333333)/X21 -> 0.02564102564 | I23: =3/78*I21/(0.0833333333333333)/X21 -> 0.03846153846 | J23: 0.07692307692 | K23: =4/78*K21/(0.0833333333333333)/X21 -> 0.05128205128 | L23: =5/78*L21/(0.0833333333333333)/X21 -> 0.0641025641 | M23: =6/78*M21/(0.0833333333333333)/X21 -> 0.07692307692 | N23: 0.1923076923 | O23: =7/78*O21/(0.0833333333333333)/X21 -> 0.08974358974 | P23: =8/78*P21/(0.0833333333333333)/X21 -> 0.1025641026 | Q23: =9/78*Q21/(0.0833333333333333)/X21 -> 0.1153846154 | R23: 0.3076923077 | S23: =10/78*S21/(0.0833333333333333)/X21 -> 0.1282051282 | T23: =11/78*T21/(0.0833333333333333)/X21 -> 0.141025641 | U23: =12/78*U21/(0.0833333333333333)/X21 -> 0.1538461538 | V23: 0.4230769231 | W23: =+V23+R23+N23+J23 -> 1 | Z23: =0.0128205128205128*Z21/(0.0833333333333333)/AQ21 -> 0.01282051282 | AA23: =2/78*AA21/(0.0833333333333333)/AQ21 -> 0.02564102564 | AB23: =3/78*AB21/(0.0833333333333333)/AQ21 -> 0.03846153846 | AC23: 0.07692307692 | AD23: =4/78*AD21/(0.0833333333333333)/AQ21 -> 0.05128205128 | AE23: =5/78*AE21/(0.0833333333333333)/AQ21 -> 0.0641025641 | AF23: =6/78*AF21/(0.0833333333333333)/AQ21 -> 0.07692307692 | AG23: 0.1923076923 | AH23: =7/78*AH21/(0.0833333333333333)/AQ21 -> 0.08974358974 | AI23: =8/78*AI21/(0.0833333333333333)/AQ21 -> 0.1025641026 | AJ23: =9/78*AJ21/(0.0833333333333333)/AQ21 -> 0.1153846154 | AK23: 0.3076923077 | AL23: =10/78*AL21/(0.0833333333333333)/AQ21 -> 0.1282051282 | AM23: =11/78*AM21/(0.0833333333333333)/AQ21 -> 0.141025641 | AN23: =12/78*AN21/(0.0833333333333333)/AQ21 -> 0.1538461538 | AO23: 0.4230769231 | AP23: =+AO23+AK23+AG23+AC23 -> 1 | AS23: =0.0128205128205128*AS21/(0.0833333333333333)/BJ21 -> 0.01282051282 | AT23: =2/78*AT21/(0.0833333333333333)/BJ21 -> 0.02564102564 | AU23: =3/78*AU21/(0.0833333333333333)/BJ21 -> 0.03846153846 | AV23: 0.07692307692 | AW23: =4/78*AW21/(0.0833333333333333)/BJ21 -> 0.05128205128 | AX23: =5/78*AX21/(0.0833333333333333)/BJ21 -> 0.0641025641 | AY23: =6/78*AY21/(0.0833333333333333)/BJ21 -> 0.07692307692 | AZ23: 0.1923076923 | BA23: =7/78*BA21/(0.0833333333333333)/BJ21 -> 0.08974358974 | BB23: =8/78*BB21/(0.0833333333333333)/BJ21 -> 0.1025641026 | BC23: =9/78*BC21/(0.0833333333333333)/BJ21 -> 0.1153846154 | BD23: 0.3076923077 | BE23: =10/78*BE21/(0.0833333333333333)/BJ21 -> 0.1282051282 | BF23: =11/78*BF21/(0.0833333333333333)/BJ21 -> 0.141025641 | BG23: =12/78*BG21/(0.0833333333333333)/BJ21 -> 0.1538461538 | BH23: 0.4230769231 | BI23: =+BH23+BD23+AZ23+AV23 -> 1 | BL23: =0.0128205128205128*BL21/(0.0833333333333333)/CC21 -> 0.01282051282 | BM23: =2/78*BM21/(0.0833333333333333)/CC21 -> 0.02564102564 | BN23: =3/78*BN21/(0.0833333333333333)/CC21 -> 0.03846153846 | BO23: 0.07692307692 | BP23: =4/78*BP21/(0.0833333333333333)/CC21 -> 0.05128205128 | BQ23: =5/78*BQ21/(0.0833333333333333)/CC21 -> 0.0641025641 | BR23: =6/78*BR21/(0.0833333333333333)/CC21 -> 0.07692307692 | BS23: 0.1923076923 | BT23: =7/78*BT21/(0.0833333333333333)/CC21 -> 0.08974358974 | BU23: =8/78*BU21/(0.0833333333333333)/CC21 -> 0.1025641026 | BV23: =9/78*BV21/(0.0833333333333333)/CC21 -> 0.1153846154 | BW23: 0.3076923077 | BX23: =10/78*BX21/(0.0833333333333333)/CC21 -> 0.1282051282 | BY23: =11/78*BY21/(0.0833333333333333)/CC21 -> 0.141025641 | BZ23: =12/78*BZ21/(0.0833333333333333)/CC21 -> 0.1538461538 | CA23: 0.4230769231 | CB23: =+CA23+BW23+BS23+BO23 -> 1 | CE23: =0.0128205128205128*CE21/(0.0833333333333333)/CV21 -> 0.01282051282 | CF23: =2/78*CF21/(0.0833333333333333)/CV21 -> 0.02564102564 | CG23: =3/78*CG21/(0.0833333333333333)/CV21 -> 0.03846153846 | CH23: 0.07692307692 | CI23: =4/78*CI21/(0.0833333333333333)/CV21 -> 0.05128205128 | CJ23: =5/78*CJ21/(0.0833333333333333)/CV21 -> 0.0641025641 | CK23: =6/78*CK21/(0.0833333333333333)/CV21 -> 0.07692307692 | CL23: 0.1923076923 | CM23: =7/78*CM21/(0.0833333333333333)/CV21 -> 0.08974358974 | CN23: =8/78*CN21/(0.0833333333333333)/CV21 -> 0.1025641026 | CO23: =9/78*CO21/(0.0833333333333333)/CV21 -> 0.1153846154 | CP23: 0.3076923077 | CQ23: =10/78*CQ21/(0.0833333333333333)/CV21 -> 0.1282051282 | CR23: =11/78*CR21/(0.0833333333333333)/CV21 -> 0.141025641 | CS23: =12/78*CS21/(0.0833333333333333)/CV21 -> 0.1538461538 | CT23: 0.4230769231 | CU23: =+CT23+CP23+CL23+CH23 -> 1 | CX23: RLGP
B26: New Variable Category | CX26: VC
B27: New Variable Cost | C27: =+C28*RTCYYTD -> 0 | D27: =+C27*(RemMonths/YTDMonths) -> 0 | E27: =+D27+C27 -> 0 | G27: =+$E28*(1+$F28)*RTY1M1 ->  | H27: =+$E28*(1+$F28)*RTY1M2 ->  | I27: =+$E28*(1+$F28)*RTY1M3 ->  | J27: =SUM(G27:I27) ->  | K27: =+$E28*(1+$F28)*RTY1M4 ->  | L27: =+$E28*(1+$F28)*RTY1M5 ->  | M27: =+$E28*(1+$F28)*RTY1M6 ->  | N27: =SUM(K27:M27) ->  | O27: =+$E28*(1+$F28)*RTY1M7 ->  | P27: =+$E28*(1+$F28)*RTY1M8 ->  | Q27: =+$E28*(1+$F28)*RTY1M9 ->  | R27: =SUM(O27:Q27) ->  | S27: =+$E28*(1+$F28)*RTY1M10 ->  | T27: =+$E28*(1+$F28)*RTY1M11 ->  | U27: =+$E28*(1+$F28)*RTY1M12 ->  | V27: =SUM(S27:U27) ->  | W27: =+V27+R27+N27+J27 ->  | X27: =+W27-E27 ->  | Z27: =+$W28*(1+$Y28)*RTY2M1 ->  | AA27: =+$W28*(1+$Y28)*RTY2M2 ->  | AB27: =+$W28*(1+$Y28)*RTY2M3 ->  | AC27: =SUM(Z27:AB27) ->  | AD27: =+$W28*(1+$Y28)*RTY2M4 ->  | AE27: =+$W28*(1+$Y28)*RTY2M5 ->  | AF27: =+$W28*(1+$Y28)*RTY2M6 ->  | AG27: =SUM(AD27:AF27) ->  | AH27: =+$W28*(1+$Y28)*RTY2M7 ->  | AI27: =+$W28*(1+$Y28)*RTY2M8 ->  | AJ27: =+$W28*(1+$Y28)*RTY2M9 ->  | AK27: =SUM(AH27:AJ27) ->  | AL27: =+$W28*(1+$Y28)*RTY2M10 ->  | AM27: =+$W28*(1+$Y28)*RTY2M11 ->  | AN27: =+$W28*(1+$Y28)*RTY2M12 ->  | AO27: =SUM(AL27:AN27) ->  | AP27: =+AO27+AK27+AG27+AC27 ->  | AQ27: =+AP27-W27 ->  | AS27: =+$AP28*(1+$AR28)*RTY3M1 ->  | AT27: =+$AP28*(1+$AR28)*RTY3M2 ->  | AU27: =+$AP28*(1+$AR28)*RTY3M3 ->  | AV27: =SUM(AS27:AU27) ->  | AW27: =+$AP28*(1+$AR28)*RTY3M4 ->  | AX27: =+$AP28*(1+$AR28)*RTY3M5 ->  | AY27: =+$AP28*(1+$AR28)*RTY3M6 ->  | AZ27: =SUM(AW27:AY27) ->  | BA27: =+$AP28*(1+$AR28)*RTY3M7 ->  | BB27: =+$AP28*(1+$AR28)*RTY3M8 ->  | BC27: =+$AP28*(1+$AR28)*RTY3M9 ->  | BD27: =SUM(BA27:BC27) ->  | BE27: =+$AP28*(1+$AR28)*RTY3M10 ->  | BF27: =+$AP28*(1+$AR28)*RTY3M11 ->  | BG27: =+$AP28*(1+$AR28)*RTY3M12 ->  | BH27: =SUM(BE27:BG27) ->  | BI27: =+BH27+BD27+AZ27+AV27 ->  | BJ27: =+BI27-AP27 ->  | BL27: =+$BI28*(1+$BK28)*RTY4M1 ->  | BM27: =+$BI28*(1+$BK28)*RTY4M2 ->  | BN27: =+$BI28*(1+$BK28)*RTY4M3 ->  | BO27: =SUM(BL27:BN27) ->  | BP27: =+$BI28*(1+$BK28)*RTY4M4 ->  | BQ27: =+$BI28*(1+$BK28)*RTY4M5 ->  | BR27: =+$BI28*(1+$BK28)*RTY4M6 ->  | BS27: =SUM(BP27:BR27) ->  | BT27: =+$BI28*(1+$BK28)*RTY4M7 ->  | BU27: =+$BI28*(1+$BK28)*RTY4M8 ->  | BV27: =+$BI28*(1+$BK28)*RTY4M9 ->  | BW27: =SUM(BT27:BV27) ->  | BX27: =+$BI28*(1+$BK28)*RTY4M10 ->  | BY27: =+$BI28*(1+$BK28)*RTY4M11 ->  | BZ27: =+$BI28*(1+$BK28)*RTY4M12 ->  | CA27: =SUM(BX27:BZ27) ->  | CB27: =+CA27+BW27+BS27+BO27 ->  | CC27: =+CB27-BI27 ->  | CE27: =+$CB28*(1+$CD28)*RTY5M1 ->  | CF27: =+$CB28*(1+$CD28)*RTY5M2 ->  | CG27: =+$CB28*(1+$CD28)*RTY5M3 ->  | CH27: =SUM(CE27:CG27) ->  | CI27: =+$CB28*(1+$CD28)*RTY5M4 ->  | CJ27: =+$CB28*(1+$CD28)*RTY5M5 ->  | CK27: =+$CB28*(1+$CD28)*RTY5M6 ->  | CL27: =SUM(CI27:CK27) ->  | CM27: =+$CB28*(1+$CD28)*RTY5M7 ->  | CN27: =+$CB28*(1+$CD28)*RTY5M8 ->  | CO27: =+$CB28*(1+$CD28)*RTY5M9 ->  | CP27: =SUM(CM27:CO27) ->  | CQ27: =+$CB28*(1+$CD28)*RTY5M10 ->  | CR27: =+$CB28*(1+$CD28)*RTY5M11 ->  | CS27: =+$CB28*(1+$CD28)*RTY5M12 ->  | CT27: =SUM(CQ27:CS27) ->  | CU27: =+CT27+CP27+CL27+CH27 ->  | CV27: =+CU27-CB27 ->  | CX27: VL
B28: Percentage of Revenue | C28: 0 | D28: =+D27/RTCYRem ->  | E28: =+E27/RTCYFY ->  | F28: =+DefRelVar -> 0 | G28: =+G27/RTY1M1 ->  | H28: =+H27/RTY1M2 ->  | I28: =+I27/RTY1M3 ->  | J28: =+J27/RTY1Q1 ->  | K28: =+K27/RTY1M4 ->  | L28: =+L27/RTY1M5 ->  | M28: =+M27/RTY1M6 ->  | N28: =+N27/RTY1Q2 ->  | O28: =+O27/RTY1M7 ->  | P28: =+P27/RTY1M8 ->  | Q28: =+Q27/RTY1M9 ->  | R28: =+R27/RTY1Q3 ->  | S28: =+S27/RTY1M10 ->  | T28: =+T27/RTY1M11 ->  | U28: =+U27/RTY1M12 ->  | V28: =+V27/RTY1Q4 ->  | W28: =+W27/RTY1FY ->  | X28: =+X27/E27 ->  | Y28: =+DefRelVar2 -> 0 | Z28: =+Z27/RTY2M1 ->  | AA28: =+AA27/RTY2M2 ->  | AB28: =+AB27/RTY2M3 ->  | AC28: =+AC27/RTY2Q1 ->  | AD28: =+AD27/RTY2M4 ->  | AE28: =+AE27/RTY2M5 ->  | AF28: =+AF27/RTY2M6 ->  | AG28: =+AG27/RTY2Q2 ->  | AH28: =+AH27/RTY2M7 ->  | AI28: =+AI27/RTY2M8 ->  | AJ28: =+AJ27/RTY2M9 ->  | AK28: =+AK27/RTY2Q3 ->  | AL28: =+AL27/RTY2M10 ->  | AM28: =+AM27/RTY2M11 ->  | AN28: =+AN27/RTY2M12 ->  | AO28: =+AO27/RTY2Q4 ->  | AP28: =+AP27/RTY2FY ->  | AQ28: =+AQ27/W27 ->  | AR28: =+DefRelVar3 -> 0 | AS28: =+AS27/RTY3M1 ->  | AT28: =+AT27/RTY3M2 ->  | AU28: =+AU27/RTY3M3 ->  | AV28: =+AV27/RTY3Q1 ->  | AW28: =+AW27/RTY3M4 ->  | AX28: =+AX27/RTY3M5 ->  | AY28: =+AY27/RTY3M6 ->  | AZ28: =+AZ27/RTY3Q2 ->  | BA28: =+BA27/RTY3M7 ->  | BB28: =+BB27/RTY3M8 ->  | BC28: =+BC27/RTY3M9 ->  | BD28: =+BD27/RTY3Q3 ->  | BE28: =+BE27/RTY3M10 ->  | BF28: =+BF27/RTY3M11 ->  | BG28: =+BG27/RTY3M12 ->  | BH28: =+BH27/RTY3Q4 ->  | BI28: =+BI27/RTY3FY ->  | BJ28: =+BJ27/AP27 ->  | BK28: =+DefRelVar4 -> 0 | BL28: =+BL27/RTY4M1 ->  | BM28: =+BM27/RTY4M2 ->  | BN28: =+BN27/RTY4M3 ->  | BO28: =+BO27/RTY4Q1 ->  | BP28: =+BP27/RTY4M4 ->  | BQ28: =+BQ27/RTY4M5 ->  | BR28: =+BR27/RTY4M6 ->  | BS28: =+BS27/RTY4Q2 ->  | BT28: =+BT27/RTY4M7 ->  | BU28: =+BU27/RTY4M8 ->  | BV28: =+BV27/RTY4M9 ->  | BW28: =+BW27/RTY4Q3 ->  | BX28: =+BX27/RTY4M10 ->  | BY28: =+BY27/RTY4M11 ->  | BZ28: =+BZ27/RTY4M12 ->  | CA28: =+CA27/RTY4Q4 ->  | CB28: =+CB27/RTY4FY ->  | CC28: =+CC27/BI27 ->  | CD28: =+DefRelVar5 -> 0 | CE28: =+CE27/RTY5M1 ->  | CF28: =+CF27/RTY5M2 ->  | CG28: =+CG27/RTY5M3 ->  | CH28: =+CH27/RTY5Q1 ->  | CI28: =+CI27/RTY5M4 ->  | CJ28: =+CJ27/RTY5M5 ->  | CK28: =+CK27/RTY5M6 ->  | CL28: =+CL27/RTY5Q2 ->  | CM28: =+CM27/RTY5M7 ->  | CN28: =+CN27/RTY5M8 ->  | CO28: =+CO27/RTY5M9 ->  | CP28: =+CP27/RTY5Q3 ->  | CQ28: =+CQ27/RTY5M10 ->  | CR28: =+CR27/RTY5M11 ->  | CS28: =+CS27/RTY5M12 ->  | CT28: =+CT27/RTY5Q4 ->  | CU28: =+CU27/RTY5FY ->  | CV28: =+CV27/CB27 ->  | CX28: VLP
B29: Sub Total | C29: =SUMIF($CX26:$CX28,"VL",C26:C28) -> 0 | D29: =SUMIF($CX26:$CX28,"VL",D26:D28) -> 0 | E29: =SUMIF($CX26:$CX28,"VL",E26:E28) -> 0 | G29: =SUMIF($CX26:$CX28,"VL",G26:G28) ->  | H29: =SUMIF($CX26:$CX28,"VL",H26:H28) ->  | X29: =+W29-E29 ->  | Z29: =SUMIF($CX26:$CX28,"VL",Z26:Z28) ->  | AA29: =SUMIF($CX26:$CX28,"VL",AA26:AA28) ->  | AQ29: =+AP29-W29 ->  | AS29: =SUMIF($CX26:$CX28,"VL",AS26:AS28) ->  | AT29: =SUMIF($CX26:$CX28,"VL",AT26:AT28) ->  | BJ29: =+BI29-AP29 ->  | BL29: =SUMIF($CX26:$CX28,"VL",BL26:BL28) ->  | BM29: =SUMIF($CX26:$CX28,"VL",BM26:BM28) ->  | CC29: =+CB29-BI29 ->  | CE29: =SUMIF($CX26:$CX28,"VL",CE26:CE28) ->  | CF29: =SUMIF($CX26:$CX28,"VL",CF26:CF28) ->  | CV29: =+CU29-CB29 ->  | CX29: VCT
B30: Percentage of Revenue | C30: =+C29/RTCYYTD ->  | D30: =+D29/RTCYRem ->  | E30: =+E29/RTCYFY ->  | G30: =+G29/RTY1M1 ->  | H30: =+H29/RTY1M2 ->  | I30: =+I29/RTY1M3 ->  | J30: =+J29/RTY1Q1 ->  | K30: =+K29/RTY1M4 ->  | L30: =+L29/RTY1M5 ->  | M30: =+M29/RTY1M6 ->  | N30: =+N29/RTY1Q2 ->  | O30: =+O29/RTY1M7 ->  | P30: =+P29/RTY1M8 ->  | Q30: =+Q29/RTY1M9 ->  | R30: =+R29/RTY1Q3 ->  | S30: =+S29/RTY1M10 ->  | T30: =+T29/RTY1M11 ->  | U30: =+U29/RTY1M12 ->  | V30: =+V29/RTY1Q4 ->  | W30: =+W29/RTY1FY ->  | X30: =+X29/E29 ->  | Z30: =+Z29/RTY2M1 ->  | AA30: =+AA29/RTY2M2 ->  | AB30: =+AB29/RTY2M3 ->  | AC30: =+AC29/RTY2Q1 ->  | AD30: =+AD29/RTY2M4 ->  | AE30: =+AE29/RTY2M5 ->  | AF30: =+AF29/RTY2M6 ->  | AG30: =+AG29/RTY2Q2 ->  | AH30: =+AH29/RTY2M7 ->  | AI30: =+AI29/RTY2M8 ->  | AJ30: =+AJ29/RTY2M9 ->  | AK30: =+AK29/RTY2Q3 ->  | AL30: =+AL29/RTY2M10 ->  | AM30: =+AM29/RTY2M11 ->  | AN30: =+AN29/RTY2M12 ->  | AO30: =+AO29/RTY2Q4 ->  | AP30: =+AP29/RTY2FY ->  | AQ30: =+AQ29/W29 ->  | AS30: =+AS29/RTY3M1 ->  | AT30: =+AT29/RTY3M2 ->  | AU30: =+AU29/RTY3M3 ->  | AV30: =+AV29/RTY3Q1 ->  | AW30: =+AW29/RTY3M4 ->  | AX30: =+AX29/RTY3M5 ->  | AY30: =+AY29/RTY3M6 ->  | AZ30: =+AZ29/RTY3Q2 ->  | BA30: =+BA29/RTY3M7 ->  | BB30: =+BB29/RTY3M8 ->  | BC30: =+BC29/RTY3M9 ->  | BD30: =+BD29/RTY3Q3 ->  | BE30: =+BE29/RTY3M10 ->  | BF30: =+BF29/RTY3M11 ->  | BG30: =+BG29/RTY3M12 ->  | BH30: =+BH29/RTY3Q4 ->  | BI30: =+BI29/RTY3FY ->  | BJ30: =+BJ29/AP29 ->  | BL30: =+BL29/RTY4M1 ->  | BM30: =+BM29/RTY4M2 ->  | BN30: =+BN29/RTY4M3 ->  | BO30: =+BO29/RTY4Q1 ->  | BP30: =+BP29/RTY4M4 ->  | BQ30: =+BQ29/RTY4M5 ->  | BR30: =+BR29/RTY4M6 ->  | BS30: =+BS29/RTY4Q2 ->  | BT30: =+BT29/RTY4M7 ->  | BU30: =+BU29/RTY4M8 ->  | BV30: =+BV29/RTY4M9 ->  | BW30: =+BW29/RTY4Q3 ->  | BX30: =+BX29/RTY4M10 ->  | BY30: =+BY29/RTY4M11 ->  | BZ30: =+BZ29/RTY4M12 ->  | CA30: =+CA29/RTY4Q4 ->  | CB30: =+CB29/RTY4FY ->  | CC30: =+CC29/BI29 ->  | CE30: =+CE29/RTY5M1 ->  | CF30: =+CF29/RTY5M2 ->  | CG30: =+CG29/RTY5M3 ->  | CH30: =+CH29/RTY5Q1 ->  | CI30: =+CI29/RTY5M4 ->  | CJ30: =+CJ29/RTY5M5 ->  | CK30: =+CK29/RTY5M6 ->  | CL30: =+CL29/RTY5Q2 ->  | CM30: =+CM29/RTY5M7 ->  | CN30: =+CN29/RTY5M8 ->  | CO30: =+CO29/RTY5M9 ->  | CP30: =+CP29/RTY5Q3 ->  | CQ30: =+CQ29/RTY5M10 ->  | CR30: =+CR29/RTY5M11 ->  | CS30: =+CS29/RTY5M12 ->  | CT30: =+CT29/RTY5Q4 ->  | CU30: =+CU29/RTY5FY ->  | CV30: =+CV29/CB29 ->  | CX30: VCP
B33: New Variable Category | CX33: VC
B34: New Variable Cost | C34: 0 | D34: =+RemMonths/YTDMonths*C34 -> 0 | E34: =+D34+C34 -> 0 | G34: =+$E35*(1+$F35)*RTY1M1 ->  | H34: =+$E35*(1+$F35)*RTY1M2 ->  | I34: =+$E35*(1+$F35)*RTY1M3 ->  | J34: =SUM(G34:I34) ->  | K34: =+$E35*(1+$F35)*RTY1M4 ->  | L34: =+$E35*(1+$F35)*RTY1M5 ->  | M34: =+$E35*(1+$F35)*RTY1M6 ->  | N34: =SUM(K34:M34) ->  | O34: =+$E35*(1+$F35)*RTY1M7 ->  | P34: =+$E35*(1+$F35)*RTY1M8 ->  | Q34: =+$E35*(1+$F35)*RTY1M9 ->  | R34: =SUM(O34:Q34) ->  | S34: =+$E35*(1+$F35)*RTY1M10 ->  | T34: =+$E35*(1+$F35)*RTY1M11 ->  | U34: =+$E35*(1+$F35)*RTY1M12 ->  | V34: =SUM(S34:U34) ->  | W34: =+V34+R34+N34+J34 ->  | X34: =+W34-E34 ->  | Z34: =+$W35*(1+$Y35)*RTY2M1 ->  | AA34: =+$W35*(1+$Y35)*RTY2M2 ->  | AB34: =+$W35*(1+$Y35)*RTY2M3 ->  | AC34: =SUM(Z34:AB34) ->  | AD34: =+$W35*(1+$Y35)*RTY2M4 ->  | AE34: =+$W35*(1+$Y35)*RTY2M5 ->  | AF34: =+$W35*(1+$Y35)*RTY2M6 ->  | AG34: =SUM(AD34:AF34) ->  | AH34: =+$W35*(1+$Y35)*RTY2M7 ->  | AI34: =+$W35*(1+$Y35)*RTY2M8 ->  | AJ34: =+$W35*(1+$Y35)*RTY2M9 ->  | AK34: =SUM(AH34:AJ34) ->  | AL34: =+$W35*(1+$Y35)*RTY2M10 ->  | AM34: =+$W35*(1+$Y35)*RTY2M11 ->  | AN34: =+$W35*(1+$Y35)*RTY2M12 ->  | AO34: =SUM(AL34:AN34) ->  | AP34: =+AO34+AK34+AG34+AC34 ->  | AQ34: =+AP34-W34 ->  | AS34: =+$AP35*(1+$AR35)*RTY3M1 ->  | AT34: =+$AP35*(1+$AR35)*RTY3M2 ->  | AU34: =+$AP35*(1+$AR35)*RTY3M3 ->  | AV34: =SUM(AS34:AU34) ->  | AW34: =+$AP35*(1+$AR35)*RTY3M4 ->  | AX34: =+$AP35*(1+$AR35)*RTY3M5 ->  | AY34: =+$AP35*(1+$AR35)*RTY3M6 ->  | AZ34: =SUM(AW34:AY34) ->  | BA34: =+$AP35*(1+$AR35)*RTY3M7 ->  | BB34: =+$AP35*(1+$AR35)*RTY3M8 ->  | BC34: =+$AP35*(1+$AR35)*RTY3M9 ->  | BD34: =SUM(BA34:BC34) ->  | BE34: =+$AP35*(1+$AR35)*RTY3M10 ->  | BF34: =+$AP35*(1+$AR35)*RTY3M11 ->  | BG34: =+$AP35*(1+$AR35)*RTY3M12 ->  | BH34: =SUM(BE34:BG34) ->  | BI34: =+BH34+BD34+AZ34+AV34 ->  | BJ34: =+BI34-AP34 ->  | BL34: =+$BI35*(1+$BK35)*RTY4M1 ->  | BM34: =+$BI35*(1+$BK35)*RTY4M2 ->  | BN34: =+$BI35*(1+$BK35)*RTY4M3 ->  | BO34: =SUM(BL34:BN34) ->  | BP34: =+$BI35*(1+$BK35)*RTY4M4 ->  | BQ34: =+$BI35*(1+$BK35)*RTY4M5 ->  | BR34: =+$BI35*(1+$BK35)*RTY4M6 ->  | BS34: =SUM(BP34:BR34) ->  | BT34: =+$BI35*(1+$BK35)*RTY4M7 ->  | BU34: =+$BI35*(1+$BK35)*RTY4M8 ->  | BV34: =+$BI35*(1+$BK35)*RTY4M9 ->  | BW34: =SUM(BT34:BV34) ->  | BX34: =+$BI35*(1+$BK35)*RTY4M10 ->  | BY34: =+$BI35*(1+$BK35)*RTY4M11 ->  | BZ34: =+$BI35*(1+$BK35)*RTY4M12 ->  | CA34: =SUM(BX34:BZ34) ->  | CB34: =+CA34+BW34+BS34+BO34 ->  | CC34: =+CB34-BI34 ->  | CE34: =+$CB35*(1+$CD35)*RTY5M1 ->  | CF34: =+$CB35*(1+$CD35)*RTY5M2 ->  | CG34: =+$CB35*(1+$CD35)*RTY5M3 ->  | CH34: =SUM(CE34:CG34) ->  | CI34: =+$CB35*(1+$CD35)*RTY5M4 ->  | CJ34: =+$CB35*(1+$CD35)*RTY5M5 ->  | CK34: =+$CB35*(1+$CD35)*RTY5M6 ->  | CL34: =SUM(CI34:CK34) ->  | CM34: =+$CB35*(1+$CD35)*RTY5M7 ->  | CN34: =+$CB35*(1+$CD35)*RTY5M8 ->  | CO34: =+$CB35*(1+$CD35)*RTY5M9 ->  | CP34: =SUM(CM34:CO34) ->  | CQ34: =+$CB35*(1+$CD35)*RTY5M10 ->  | CR34: =+$CB35*(1+$CD35)*RTY5M11 ->  | CS34: =+$CB35*(1+$CD35)*RTY5M12 ->  | CT34: =SUM(CQ34:CS34) ->  | CU34: =+CT34+CP34+CL34+CH34 ->  | CV34: =+CU34-CB34 ->  | CX34: VL
B35: Percentage of Revenue | C35: =+C34/RTCYYTD ->  | D35: =+D34/RTCYRem ->  | E35: =+E34/RTCYFY ->  | F35: =+DefRelVar -> 0 | G35: =+G34/RTY1M1 ->  | H35: =+H34/RTY1M2 ->  | I35: =+I34/RTY1M3 ->  | J35: =+J34/RTY1Q1 ->  | K35: =+K34/RTY1M4 ->  | L35: =+L34/RTY1M5 ->  | M35: =+M34/RTY1M6 ->  | N35: =+N34/RTY1Q2 ->  | O35: =+O34/RTY1M7 ->  | P35: =+P34/RTY1M8 ->  | Q35: =+Q34/RTY1M9 ->  | R35: =+R34/RTY1Q3 ->  | S35: =+S34/RTY1M10 ->  | T35: =+T34/RTY1M11 ->  | U35: =+U34/RTY1M12 ->  | V35: =+V34/RTY1Q4 ->  | W35: =+W34/RTY1FY ->  | X35: =+X34/E34 ->  | Y35: =+DefRelVar2 -> 0 | Z35: =+Z34/RTY2M1 ->  | AA35: =+AA34/RTY2M2 ->  | AB35: =+AB34/RTY2M3 ->  | AC35: =+AC34/RTY2Q1 ->  | AD35: =+AD34/RTY2M4 ->  | AE35: =+AE34/RTY2M5 ->  | AF35: =+AF34/RTY2M6 ->  | AG35: =+AG34/RTY2Q2 ->  | AH35: =+AH34/RTY2M7 ->  | AI35: =+AI34/RTY2M8 ->  | AJ35: =+AJ34/RTY2M9 ->  | AK35: =+AK34/RTY2Q3 ->  | AL35: =+AL34/RTY2M10 ->  | AM35: =+AM34/RTY2M11 ->  | AN35: =+AN34/RTY2M12 ->  | AO35: =+AO34/RTY2Q4 ->  | AP35: =+AP34/RTY2FY ->  | AQ35: =+AQ34/W34 ->  | AR35: =+DefRelVar3 -> 0 | AS35: =+AS34/RTY3M1 ->  | AT35: =+AT34/RTY3M2 ->  | AU35: =+AU34/RTY3M3 ->  | AV35: =+AV34/RTY3Q1 ->  | AW35: =+AW34/RTY3M4 ->  | AX35: =+AX34/RTY3M5 ->  | AY35: =+AY34/RTY3M6 ->  | AZ35: =+AZ34/RTY3Q2 ->  | BA35: =+BA34/RTY3M7 ->  | BB35: =+BB34/RTY3M8 ->  | BC35: =+BC34/RTY3M9 ->  | BD35: =+BD34/RTY3Q3 ->  | BE35: =+BE34/RTY3M10 ->  | BF35: =+BF34/RTY3M11 ->  | BG35: =+BG34/RTY3M12 ->  | BH35: =+BH34/RTY3Q4 ->  | BI35: =+BI34/RTY3FY ->  | BJ35: =+BJ34/AP34 ->  | BK35: =+DefRelVar4 -> 0 | BL35: =+BL34/RTY4M1 ->  | BM35: =+BM34/RTY4M2 ->  | BN35: =+BN34/RTY4M3 ->  | BO35: =+BO34/RTY4Q1 ->  | BP35: =+BP34/RTY4M4 ->  | BQ35: =+BQ34/RTY4M5 ->  | BR35: =+BR34/RTY4M6 ->  | BS35: =+BS34/RTY4Q2 ->  | BT35: =+BT34/RTY4M7 ->  | BU35: =+BU34/RTY4M8 ->  | BV35: =+BV34/RTY4M9 ->  | BW35: =+BW34/RTY4Q3 ->  | BX35: =+BX34/RTY4M10 ->  | BY35: =+BY34/RTY4M11 ->  | BZ35: =+BZ34/RTY4M12 ->  | CA35: =+CA34/RTY4Q4 ->  | CB35: =+CB34/RTY4FY ->  | CC35: =+CC34/BI34 ->  | CD35: =+DefRelVar5 -> 0 | CE35: =+CE34/RTY5M1 ->  | CF35: =+CF34/RTY5M2 ->  | CG35: =+CG34/RTY5M3 ->  | CH35: =+CH34/RTY5Q1 ->  | CI35: =+CI34/RTY5M4 ->  | CJ35: =+CJ34/RTY5M5 ->  | CK35: =+CK34/RTY5M6 ->  | CL35: =+CL34/RTY5Q2 ->  | CM35: =+CM34/RTY5M7 ->  | CN35: =+CN34/RTY5M8 ->  | CO35: =+CO34/RTY5M9 ->  | CP35: =+CP34/RTY5Q3 ->  | CQ35: =+CQ34/RTY5M10 ->  | CR35: =+CR34/RTY5M11 ->  | CS35: =+CS34/RTY5M12 ->  | CT35: =+CT34/RTY5Q4 ->  | CU35: =+CU34/RTY5FY ->  | CV35: =+CV34/CB34 ->  | CX35: VLP
B36: Sub Total | C36: =SUMIF($CX33:$CX35,"VL",C33:C35) -> 0 | D36: =SUMIF($CX33:$CX35,"VL",D33:D35) -> 0 | E36: =SUMIF($CX33:$CX35,"VL",E33:E35) -> 0 | G36: =SUMIF($CX33:$CX35,"VL",G33:G35) ->  | H36: =SUMIF($CX33:$CX35,"VL",H33:H35) ->  | X36: =+W36-E36 ->  | Z36: =SUMIF($CX33:$CX35,"VL",Z33:Z35) ->  | AA36: =SUMIF($CX33:$CX35,"VL",AA33:AA35) ->  | AQ36: =+AP36-W36 ->  | AS36: =SUMIF($CX33:$CX35,"VL",AS33:AS35) ->  | AT36: =SUMIF($CX33:$CX35,"VL",AT33:AT35) ->  | BJ36: =+BI36-AP36 ->  | BL36: =SUMIF($CX33:$CX35,"VL",BL33:BL35) ->  | BM36: =SUMIF($CX33:$CX35,"VL",BM33:BM35) ->  | CC36: =+CB36-BI36 ->  | CE36: =SUMIF($CX33:$CX35,"VL",CE33:CE35) ->  | CF36: =SUMIF($CX33:$CX35,"VL",CF33:CF35) ->  | CV36: =+CU36-CB36 ->  | CX36: VCT
B37: Percentage of Revenue | C37: =+C36/RTCYYTD ->  | D37: =+D36/RTCYRem ->  | E37: =+E36/RTCYFY ->  | G37: =+G36/RTY1M1 ->  | H37: =+H36/RTY1M2 ->  | I37: =+I36/RTY1M3 ->  | J37: =+J36/RTY1Q1 ->  | K37: =+K36/RTY1M4 ->  | L37: =+L36/RTY1M5 ->  | M37: =+M36/RTY1M6 ->  | N37: =+N36/RTY1Q2 ->  | O37: =+O36/RTY1M7 ->  | P37: =+P36/RTY1M8 ->  | Q37: =+Q36/RTY1M9 ->  | R37: =+R36/RTY1Q3 ->  | S37: =+S36/RTY1M10 ->  | T37: =+T36/RTY1M11 ->  | U37: =+U36/RTY1M12 ->  | V37: =+V36/RTY1Q4 ->  | W37: =+W36/RTY1FY ->  | X37: =+X36/E36 ->  | Z37: =+Z36/RTY2M1 ->  | AA37: =+AA36/RTY2M2 ->  | AB37: =+AB36/RTY2M3 ->  | AC37: =+AC36/RTY2Q1 ->  | AD37: =+AD36/RTY2M4 ->  | AE37: =+AE36/RTY2M5 ->  | AF37: =+AF36/RTY2M6 ->  | AG37: =+AG36/RTY2Q2 ->  | AH37: =+AH36/RTY2M7 ->  | AI37: =+AI36/RTY2M8 ->  | AJ37: =+AJ36/RTY2M9 ->  | AK37: =+AK36/RTY2Q3 ->  | AL37: =+AL36/RTY2M10 ->  | AM37: =+AM36/RTY2M11 ->  | AN37: =+AN36/RTY2M12 ->  | AO37: =+AO36/RTY2Q4 ->  | AP37: =+AP36/RTY2FY ->  | AQ37: =+AQ36/W36 ->  | AS37: =+AS36/RTY3M1 ->  | AT37: =+AT36/RTY3M2 ->  | AU37: =+AU36/RTY3M3 ->  | AV37: =+AV36/RTY3Q1 ->  | AW37: =+AW36/RTY3M4 ->  | AX37: =+AX36/RTY3M5 ->  | AY37: =+AY36/RTY3M6 ->  | AZ37: =+AZ36/RTY3Q2 ->  | BA37: =+BA36/RTY3M7 ->  | BB37: =+BB36/RTY3M8 ->  | BC37: =+BC36/RTY3M9 ->  | BD37: =+BD36/RTY3Q3 ->  | BE37: =+BE36/RTY3M10 ->  | BF37: =+BF36/RTY3M11 ->  | BG37: =+BG36/RTY3M12 ->  | BH37: =+BH36/RTY3Q4 ->  | BI37: =+BI36/RTY3FY ->  | BJ37: =+BJ36/AP36 ->  | BL37: =+BL36/RTY4M1 ->  | BM37: =+BM36/RTY4M2 ->  | BN37: =+BN36/RTY4M3 ->  | BO37: =+BO36/RTY4Q1 ->  | BP37: =+BP36/RTY4M4 ->  | BQ37: =+BQ36/RTY4M5 ->  | BR37: =+BR36/RTY4M6 ->  | BS37: =+BS36/RTY4Q2 ->  | BT37: =+BT36/RTY4M7 ->  | BU37: =+BU36/RTY4M8 ->  | BV37: =+BV36/RTY4M9 ->  | BW37: =+BW36/RTY4Q3 ->  | BX37: =+BX36/RTY4M10 ->  | BY37: =+BY36/RTY4M11 ->  | BZ37: =+BZ36/RTY4M12 ->  | CA37: =+CA36/RTY4Q4 ->  | CB37: =+CB36/RTY4FY ->  | CC37: =+CC36/BI36 ->  | CE37: =+CE36/RTY5M1 ->  | CF37: =+CF36/RTY5M2 ->  | CG37: =+CG36/RTY5M3 ->  | CH37: =+CH36/RTY5Q1 ->  | CI37: =+CI36/RTY5M4 ->  | CJ37: =+CJ36/RTY5M5 ->  | CK37: =+CK36/RTY5M6 ->  | CL37: =+CL36/RTY5Q2 ->  | CM37: =+CM36/RTY5M7 ->  | CN37: =+CN36/RTY5M8 ->  | CO37: =+CO36/RTY5M9 ->  | CP37: =+CP36/RTY5Q3 ->  | CQ37: =+CQ36/RTY5M10 ->  | CR37: =+CR36/RTY5M11 ->  | CS37: =+CS36/RTY5M12 ->  | CT37: =+CT36/RTY5Q4 ->  | CU37: =+CU36/RTY5FY ->  | CV37: =+CV36/CB36 ->  | CX37: VCP
B40: New Variable Cost | C40: =+C41*RTCYYTD -> 0 | D40: =+C40*(RemMonths/YTDMonths) -> 0 | E40: =+D40+C40 -> 0 | G40: =+$E41*(1+$F41)*RTY1M1 ->  | H40: =+$E41*(1+$F41)*RTY1M2 ->  | I40: =+$E41*(1+$F41)*RTY1M3 ->  | J40: =SUM(G40:I40) ->  | K40: =+$E41*(1+$F41)*RTY1M4 ->  | L40: =+$E41*(1+$F41)*RTY1M5 ->  | M40: =+$E41*(1+$F41)*RTY1M6 ->  | N40: =SUM(K40:M40) ->  | O40: =+$E41*(1+$F41)*RTY1M7 ->  | P40: =+$E41*(1+$F41)*RTY1M8 ->  | Q40: =+$E41*(1+$F41)*RTY1M9 ->  | R40: =SUM(O40:Q40) ->  | S40: =+$E41*(1+$F41)*RTY1M10 ->  | T40: =+$E41*(1+$F41)*RTY1M11 ->  | U40: =+$E41*(1+$F41)*RTY1M12 ->  | V40: =SUM(S40:U40) ->  | W40: =+V40+R40+N40+J40 ->  | X40: =+W40-E40 ->  | Z40: =+$W41*(1+$Y41)*RTY2M1 ->  | AA40: =+$W41*(1+$Y41)*RTY2M2 ->  | AB40: =+$W41*(1+$Y41)*RTY2M3 ->  | AC40: =SUM(Z40:AB40) ->  | AD40: =+$W41*(1+$Y41)*RTY2M4 ->  | AE40: =+$W41*(1+$Y41)*RTY2M5 ->  | AF40: =+$W41*(1+$Y41)*RTY2M6 ->  | AG40: =SUM(AD40:AF40) ->  | AH40: =+$W41*(1+$Y41)*RTY2M7 ->  | AI40: =+$W41*(1+$Y41)*RTY2M8 ->  | AJ40: =+$W41*(1+$Y41)*RTY2M9 ->  | AK40: =SUM(AH40:AJ40) ->  | AL40: =+$W41*(1+$Y41)*RTY2M10 ->  | AM40: =+$W41*(1+$Y41)*RTY2M11 ->  | AN40: =+$W41*(1+$Y41)*RTY2M12 ->  | AO40: =SUM(AL40:AN40) ->  | AP40: =+AO40+AK40+AG40+AC40 ->  | AQ40: =+AP40-W40 ->  | AS40: =+$AP41*(1+$AR41)*RTY3M1 ->  | AT40: =+$AP41*(1+$AR41)*RTY3M2 ->  | AU40: =+$AP41*(1+$AR41)*RTY3M3 ->  | AV40: =SUM(AS40:AU40) ->  | AW40: =+$AP41*(1+$AR41)*RTY3M4 ->  | AX40: =+$AP41*(1+$AR41)*RTY3M5 ->  | AY40: =+$AP41*(1+$AR41)*RTY3M6 ->  | AZ40: =SUM(AW40:AY40) ->  | BA40: =+$AP41*(1+$AR41)*RTY3M7 ->  | BB40: =+$AP41*(1+$AR41)*RTY3M8 ->  | BC40: =+$AP41*(1+$AR41)*RTY3M9 ->  | BD40: =SUM(BA40:BC40) ->  | BE40: =+$AP41*(1+$AR41)*RTY3M10 ->  | BF40: =+$AP41*(1+$AR41)*RTY3M11 ->  | BG40: =+$AP41*(1+$AR41)*RTY3M12 ->  | BH40: =SUM(BE40:BG40) ->  | BI40: =+BH40+BD40+AZ40+AV40 ->  | BJ40: =+BI40-AP40 ->  | BL40: =+$BI41*(1+$BK41)*RTY4M1 ->  | BM40: =+$BI41*(1+$BK41)*RTY4M2 ->  | BN40: =+$BI41*(1+$BK41)*RTY4M3 ->  | BO40: =SUM(BL40:BN40) ->  | BP40: =+$BI41*(1+$BK41)*RTY4M4 ->  | BQ40: =+$BI41*(1+$BK41)*RTY4M5 ->  | BR40: =+$BI41*(1+$BK41)*RTY4M6 ->  | BS40: =SUM(BP40:BR40) ->  | BT40: =+$BI41*(1+$BK41)*RTY4M7 ->  | BU40: =+$BI41*(1+$BK41)*RTY4M8 ->  | BV40: =+$BI41*(1+$BK41)*RTY4M9 ->  | BW40: =SUM(BT40:BV40) ->  | BX40: =+$BI41*(1+$BK41)*RTY4M10 ->  | BY40: =+$BI41*(1+$BK41)*RTY4M11 ->  | BZ40: =+$BI41*(1+$BK41)*RTY4M12 ->  | CA40: =SUM(BX40:BZ40) ->  | CB40: =+CA40+BW40+BS40+BO40 ->  | CC40: =+CB40-BI40 ->  | CE40: =+$CB41*(1+$CD41)*RTY5M1 ->  | CF40: =+$CB41*(1+$CD41)*RTY5M2 ->  | CG40: =+$CB41*(1+$CD41)*RTY5M3 ->  | CH40: =SUM(CE40:CG40) ->  | CI40: =+$CB41*(1+$CD41)*RTY5M4 ->  | CJ40: =+$CB41*(1+$CD41)*RTY5M5 ->  | CK40: =+$CB41*(1+$CD41)*RTY5M6 ->  | CL40: =SUM(CI40:CK40) ->  | CM40: =+$CB41*(1+$CD41)*RTY5M7 ->  | CN40: =+$CB41*(1+$CD41)*RTY5M8 ->  | CO40: =+$CB41*(1+$CD41)*RTY5M9 ->  | CP40: =SUM(CM40:CO40) ->  | CQ40: =+$CB41*(1+$CD41)*RTY5M10 ->  | CR40: =+$CB41*(1+$CD41)*RTY5M11 ->  | CS40: =+$CB41*(1+$CD41)*RTY5M12 ->  | CT40: =SUM(CQ40:CS40) ->  | CU40: =+CT40+CP40+CL40+CH40 ->  | CV40: =+CU40-CB40 ->  | CX40: VL
B41: Percentage of Revenue | C41: 0 | D41: =+D40/RTCYRem ->  | E41: =+E40/RTCYFY ->  | F41: =+DefRelVar -> 0 | G41: =+G40/RTY1M1 ->  | H41: =+H40/RTY1M2 ->  | I41: =+I40/RTY1M3 ->  | J41: =+J40/RTY1Q1 ->  | K41: =+K40/RTY1M4 ->  | L41: =+L40/RTY1M5 ->  | M41: =+M40/RTY1M6 ->  | N41: =+N40/RTY1Q2 ->  | O41: =+O40/RTY1M7 ->  | P41: =+P40/RTY1M8 ->  | Q41: =+Q40/RTY1M9 ->  | R41: =+R40/RTY1Q3 ->  | S41: =+S40/RTY1M10 ->  | T41: =+T40/RTY1M11 ->  | U41: =+U40/RTY1M12 ->  | V41: =+V40/RTY1Q4 ->  | W41: =+W40/RTY1FY ->  | X41: =+X40/E40 ->  | Y41: =+DefRelVar2 -> 0 | Z41: =+Z40/RTY2M1 ->  | AA41: =+AA40/RTY2M2 ->  | AB41: =+AB40/RTY2M3 ->  | AC41: =+AC40/RTY2Q1 ->  | AD41: =+AD40/RTY2M4 ->  | AE41: =+AE40/RTY2M5 ->  | AF41: =+AF40/RTY2M6 ->  | AG41: =+AG40/RTY2Q2 ->  | AH41: =+AH40/RTY2M7 ->  | AI41: =+AI40/RTY2M8 ->  | AJ41: =+AJ40/RTY2M9 ->  | AK41: =+AK40/RTY2Q3 ->  | AL41: =+AL40/RTY2M10 ->  | AM41: =+AM40/RTY2M11 ->  | AN41: =+AN40/RTY2M12 ->  | AO41: =+AO40/RTY2Q4 ->  | AP41: =+AP40/RTY2FY ->  | AQ41: =+AQ40/W40 ->  | AR41: =+DefRelVar3 -> 0 | AS41: =+AS40/RTY3M1 ->  | AT41: =+AT40/RTY3M2 ->  | AU41: =+AU40/RTY3M3 ->  | AV41: =+AV40/RTY3Q1 ->  | AW41: =+AW40/RTY3M4 ->  | AX41: =+AX40/RTY3M5 ->  | AY41: =+AY40/RTY3M6 ->  | AZ41: =+AZ40/RTY3Q2 ->  | BA41: =+BA40/RTY3M7 ->  | BB41: =+BB40/RTY3M8 ->  | BC41: =+BC40/RTY3M9 ->  | BD41: =+BD40/RTY3Q3 ->  | BE41: =+BE40/RTY3M10 ->  | BF41: =+BF40/RTY3M11 ->  | BG41: =+BG40/RTY3M12 ->  | BH41: =+BH40/RTY3Q4 ->  | BI41: =+BI40/RTY3FY ->  | BJ41: =+BJ40/AP40 ->  | BK41: =+DefRelVar4 -> 0 | BL41: =+BL40/RTY4M1 ->  | BM41: =+BM40/RTY4M2 ->  | BN41: =+BN40/RTY4M3 ->  | BO41: =+BO40/RTY4Q1 ->  | BP41: =+BP40/RTY4M4 ->  | BQ41: =+BQ40/RTY4M5 ->  | BR41: =+BR40/RTY4M6 ->  | BS41: =+BS40/RTY4Q2 ->  | BT41: =+BT40/RTY4M7 ->  | BU41: =+BU40/RTY4M8 ->  | BV41: =+BV40/RTY4M9 ->  | BW41: =+BW40/RTY4Q3 ->  | BX41: =+BX40/RTY4M10 ->  | BY41: =+BY40/RTY4M11 ->  | BZ41: =+BZ40/RTY4M12 ->  | CA41: =+CA40/RTY4Q4 ->  | CB41: =+CB40/RTY4FY ->  | CC41: =+CC40/BI40 ->  | CD41: =+DefRelVar5 -> 0 | CE41: =+CE40/RTY5M1 ->  | CF41: =+CF40/RTY5M2 ->  | CG41: =+CG40/RTY5M3 ->  | CH41: =+CH40/RTY5Q1 ->  | CI41: =+CI40/RTY5M4 ->  | CJ41: =+CJ40/RTY5M5 ->  | CK41: =+CK40/RTY5M6 ->  | CL41: =+CL40/RTY5Q2 ->  | CM41: =+CM40/RTY5M7 ->  | CN41: =+CN40/RTY5M8 ->  | CO41: =+CO40/RTY5M9 ->  | CP41: =+CP40/RTY5Q3 ->  | CQ41: =+CQ40/RTY5M10 ->  | CR41: =+CR40/RTY5M11 ->  | CS41: =+CS40/RTY5M12 ->  | CT41: =+CT40/RTY5Q4 ->  | CU41: =+CU40/RTY5FY ->  | CV41: =+CV40/CB40 ->  | CX41: VLP
B44: New Variable Cost | C44: 0 | D44: =+RemMonths/YTDMonths*C44 -> 0 | E44: =+D44+C44 -> 0 | G44: =+$E45*(1+$F45)*RTY1M1 ->  | H44: =+$E45*(1+$F45)*RTY1M2 ->  | I44: =+$E45*(1+$F45)*RTY1M3 ->  | J44: =SUM(G44:I44) ->  | K44: =+$E45*(1+$F45)*RTY1M4 ->  | L44: =+$E45*(1+$F45)*RTY1M5 ->  | M44: =+$E45*(1+$F45)*RTY1M6 ->  | N44: =SUM(K44:M44) ->  | O44: =+$E45*(1+$F45)*RTY1M7 ->  | P44: =+$E45*(1+$F45)*RTY1M8 ->  | Q44: =+$E45*(1+$F45)*RTY1M9 ->  | R44: =SUM(O44:Q44) ->  | S44: =+$E45*(1+$F45)*RTY1M10 ->  | T44: =+$E45*(1+$F45)*RTY1M11 ->  | U44: =+$E45*(1+$F45)*RTY1M12 ->  | V44: =SUM(S44:U44) ->  | W44: =+V44+R44+N44+J44 ->  | X44: =+W44-E44 ->  | Z44: =+$W45*(1+$Y45)*RTY2M1 ->  | AA44: =+$W45*(1+$Y45)*RTY2M2 ->  | AB44: =+$W45*(1+$Y45)*RTY2M3 ->  | AC44: =SUM(Z44:AB44) ->  | AD44: =+$W45*(1+$Y45)*RTY2M4 ->  | AE44: =+$W45*(1+$Y45)*RTY2M5 ->  | AF44: =+$W45*(1+$Y45)*RTY2M6 ->  | AG44: =SUM(AD44:AF44) ->  | AH44: =+$W45*(1+$Y45)*RTY2M7 ->  | AI44: =+$W45*(1+$Y45)*RTY2M8 ->  | AJ44: =+$W45*(1+$Y45)*RTY2M9 ->  | AK44: =SUM(AH44:AJ44) ->  | AL44: =+$W45*(1+$Y45)*RTY2M10 ->  | AM44: =+$W45*(1+$Y45)*RTY2M11 ->  | AN44: =+$W45*(1+$Y45)*RTY2M12 ->  | AO44: =SUM(AL44:AN44) ->  | AP44: =+AO44+AK44+AG44+AC44 ->  | AQ44: =+AP44-W44 ->  | AS44: =+$AP45*(1+$AR45)*RTY3M1 ->  | AT44: =+$AP45*(1+$AR45)*RTY3M2 ->  | AU44: =+$AP45*(1+$AR45)*RTY3M3 ->  | AV44: =SUM(AS44:AU44) ->  | AW44: =+$AP45*(1+$AR45)*RTY3M4 ->  | AX44: =+$AP45*(1+$AR45)*RTY3M5 ->  | AY44: =+$AP45*(1+$AR45)*RTY3M6 ->  | AZ44: =SUM(AW44:AY44) ->  | BA44: =+$AP45*(1+$AR45)*RTY3M7 ->  | BB44: =+$AP45*(1+$AR45)*RTY3M8 ->  | BC44: =+$AP45*(1+$AR45)*RTY3M9 ->  | BD44: =SUM(BA44:BC44) ->  | BE44: =+$AP45*(1+$AR45)*RTY3M10 ->  | BF44: =+$AP45*(1+$AR45)*RTY3M11 ->  | BG44: =+$AP45*(1+$AR45)*RTY3M12 ->  | BH44: =SUM(BE44:BG44) ->  | BI44: =+BH44+BD44+AZ44+AV44 ->  | BJ44: =+BI44-AP44 ->  | BL44: =+$BI45*(1+$BK45)*RTY4M1 ->  | BM44: =+$BI45*(1+$BK45)*RTY4M2 ->  | BN44: =+$BI45*(1+$BK45)*RTY4M3 ->  | BO44: =SUM(BL44:BN44) ->  | BP44: =+$BI45*(1+$BK45)*RTY4M4 ->  | BQ44: =+$BI45*(1+$BK45)*RTY4M5 ->  | BR44: =+$BI45*(1+$BK45)*RTY4M6 ->  | BS44: =SUM(BP44:BR44) ->  | BT44: =+$BI45*(1+$BK45)*RTY4M7 ->  | BU44: =+$BI45*(1+$BK45)*RTY4M8 ->  | BV44: =+$BI45*(1+$BK45)*RTY4M9 ->  | BW44: =SUM(BT44:BV44) ->  | BX44: =+$BI45*(1+$BK45)*RTY4M10 ->  | BY44: =+$BI45*(1+$BK45)*RTY4M11 ->  | BZ44: =+$BI45*(1+$BK45)*RTY4M12 ->  | CA44: =SUM(BX44:BZ44) ->  | CB44: =+CA44+BW44+BS44+BO44 ->  | CC44: =+CB44-BI44 ->  | CE44: =+$CB45*(1+$CD45)*RTY5M1 ->  | CF44: =+$CB45*(1+$CD45)*RTY5M2 ->  | CG44: =+$CB45*(1+$CD45)*RTY5M3 ->  | CH44: =SUM(CE44:CG44) ->  | CI44: =+$CB45*(1+$CD45)*RTY5M4 ->  | CJ44: =+$CB45*(1+$CD45)*RTY5M5 ->  | CK44: =+$CB45*(1+$CD45)*RTY5M6 ->  | CL44: =SUM(CI44:CK44) ->  | CM44: =+$CB45*(1+$CD45)*RTY5M7 ->  | CN44: =+$CB45*(1+$CD45)*RTY5M8 ->  | CO44: =+$CB45*(1+$CD45)*RTY5M9 ->  | CP44: =SUM(CM44:CO44) ->  | CQ44: =+$CB45*(1+$CD45)*RTY5M10 ->  | CR44: =+$CB45*(1+$CD45)*RTY5M11 ->  | CS44: =+$CB45*(1+$CD45)*RTY5M12 ->  | CT44: =SUM(CQ44:CS44) ->  | CU44: =+CT44+CP44+CL44+CH44 ->  | CV44: =+CU44-CB44 ->  | CX44: VL
B45: Percentage of Revenue | C45: =+C44/RTCYYTD ->  | D45: =+D44/RTCYRem ->  | E45: =+E44/RTCYFY ->  | F45: =+DefRelVar -> 0 | G45: =+G44/RTY1M1 ->  | H45: =+H44/RTY1M2 ->  | I45: =+I44/RTY1M3 ->  | J45: =+J44/RTY1Q1 ->  | K45: =+K44/RTY1M4 ->  | L45: =+L44/RTY1M5 ->  | M45: =+M44/RTY1M6 ->  | N45: =+N44/RTY1Q2 ->  | O45: =+O44/RTY1M7 ->  | P45: =+P44/RTY1M8 ->  | Q45: =+Q44/RTY1M9 ->  | R45: =+R44/RTY1Q3 ->  | S45: =+S44/RTY1M10 ->  | T45: =+T44/RTY1M11 ->  | U45: =+U44/RTY1M12 ->  | V45: =+V44/RTY1Q4 ->  | W45: =+W44/RTY1FY ->  | X45: =+X44/E44 ->  | Y45: =+DefRelVar2 -> 0 | Z45: =+Z44/RTY2M1 ->  | AA45: =+AA44/RTY2M2 ->  | AB45: =+AB44/RTY2M3 ->  | AC45: =+AC44/RTY2Q1 ->  | AD45: =+AD44/RTY2M4 ->  | AE45: =+AE44/RTY2M5 ->  | AF45: =+AF44/RTY2M6 ->  | AG45: =+AG44/RTY2Q2 ->  | AH45: =+AH44/RTY2M7 ->  | AI45: =+AI44/RTY2M8 ->  | AJ45: =+AJ44/RTY2M9 ->  | AK45: =+AK44/RTY2Q3 ->  | AL45: =+AL44/RTY2M10 ->  | AM45: =+AM44/RTY2M11 ->  | AN45: =+AN44/RTY2M12 ->  | AO45: =+AO44/RTY2Q4 ->  | AP45: =+AP44/RTY2FY ->  | AQ45: =+AQ44/W44 ->  | AR45: =+DefRelVar3 -> 0 | AS45: =+AS44/RTY3M1 ->  | AT45: =+AT44/RTY3M2 ->  | AU45: =+AU44/RTY3M3 ->  | AV45: =+AV44/RTY3Q1 ->  | AW45: =+AW44/RTY3M4 ->  | AX45: =+AX44/RTY3M5 ->  | AY45: =+AY44/RTY3M6 ->  | AZ45: =+AZ44/RTY3Q2 ->  | BA45: =+BA44/RTY3M7 ->  | BB45: =+BB44/RTY3M8 ->  | BC45: =+BC44/RTY3M9 ->  | BD45: =+BD44/RTY3Q3 ->  | BE45: =+BE44/RTY3M10 ->  | BF45: =+BF44/RTY3M11 ->  | BG45: =+BG44/RTY3M12 ->  | BH45: =+BH44/RTY3Q4 ->  | BI45: =+BI44/RTY3FY ->  | BJ45: =+BJ44/AP44 ->  | BK45: =+DefRelVar4 -> 0 | BL45: =+BL44/RTY4M1 ->  | BM45: =+BM44/RTY4M2 ->  | BN45: =+BN44/RTY4M3 ->  | BO45: =+BO44/RTY4Q1 ->  | BP45: =+BP44/RTY4M4 ->  | BQ45: =+BQ44/RTY4M5 ->  | BR45: =+BR44/RTY4M6 ->  | BS45: =+BS44/RTY4Q2 ->  | BT45: =+BT44/RTY4M7 ->  | BU45: =+BU44/RTY4M8 ->  | BV45: =+BV44/RTY4M9 ->  | BW45: =+BW44/RTY4Q3 ->  | BX45: =+BX44/RTY4M10 ->  | BY45: =+BY44/RTY4M11 ->  | BZ45: =+BZ44/RTY4M12 ->  | CA45: =+CA44/RTY4Q4 ->  | CB45: =+CB44/RTY4FY ->  | CC45: =+CC44/BI44 ->  | CD45: =+DefRelVar5 -> 0 | CE45: =+CE44/RTY5M1 ->  | CF45: =+CF44/RTY5M2 ->  | CG45: =+CG44/RTY5M3 ->  | CH45: =+CH44/RTY5Q1 ->  | CI45: =+CI44/RTY5M4 ->  | CJ45: =+CJ44/RTY5M5 ->  | CK45: =+CK44/RTY5M6 ->  | CL45: =+CL44/RTY5Q2 ->  | CM45: =+CM44/RTY5M7 ->  | CN45: =+CN44/RTY5M8 ->  | CO45: =+CO44/RTY5M9 ->  | CP45: =+CP44/RTY5Q3 ->  | CQ45: =+CQ44/RTY5M10 ->  | CR45: =+CR44/RTY5M11 ->  | CS45: =+CS44/RTY5M12 ->  | CT45: =+CT44/RTY5Q4 ->  | CU45: =+CU44/RTY5FY ->  | CV45: =+CV44/CB44 ->  | CX45: VLP
B48: New Fixed Category | CX48: FC
B49: New Fixed Cost Line | C49: 0 | D49: =+RemMonths/YTDMonths * C49 -> 0 | E49: =+C49+D49 -> 0 | F49: =+DefRelFix -> 0 | G49: =($F49+1)*$E49/12 -> 0 | H49: =($F49+1)*$E49/12 -> 0 | I49: =($F49+1)*$E49/12 -> 0 | J49: =SUM(G49:I49) -> 0 | K49: =($F49+1)*$E49/12 -> 0 | L49: =($F49+1)*$E49/12 -> 0 | M49: =($F49+1)*$E49/12 -> 0 | N49: =SUM(K49:M49) -> 0 | O49: =($F49+1)*$E49/12 -> 0 | P49: =($F49+1)*$E49/12 -> 0 | Q49: =($F49+1)*$E49/12 -> 0 | R49: =SUM(O49:Q49) -> 0 | S49: =($F49+1)*$E49/12 -> 0 | T49: =($F49+1)*$E49/12 -> 0 | U49: =($F49+1)*$E49/12 -> 0 | V49: =SUM(S49:U49) -> 0 | W49: =+V49+R49+N49+J49 -> 0 | X49: =+W49-E49 -> 0 | Y49: =+DefRelFix2 -> 0 | Z49: =($Y49+1)*$W49/12 -> 0 | AA49: =($Y49+1)*$W49/12 -> 0 | AB49: =($Y49+1)*$W49/12 -> 0 | AC49: =SUM(Z49:AB49) -> 0 | AD49: =($Y49+1)*$W49/12 -> 0 | AE49: =($Y49+1)*$W49/12 -> 0 | AF49: =($Y49+1)*$W49/12 -> 0 | AG49: =SUM(AD49:AF49) -> 0 | AH49: =($Y49+1)*$W49/12 -> 0 | AI49: =($Y49+1)*$W49/12 -> 0 | AJ49: =($Y49+1)*$W49/12 -> 0 | AK49: =SUM(AH49:AJ49) -> 0 | AL49: =($Y49+1)*$W49/12 -> 0 | AM49: =($Y49+1)*$W49/12 -> 0 | AN49: =($Y49+1)*$W49/12 -> 0 | AO49: =SUM(AL49:AN49) -> 0 | AP49: =+AO49+AK49+AG49+AC49 -> 0 | AQ49: =+AP49-W49 -> 0 | AR49: =+DefRelFix3 -> 0 | AS49: =($AR49+1)*$AP49/12 -> 0 | AT49: =($AR49+1)*$AP49/12 -> 0 | AU49: =($AR49+1)*$AP49/12 -> 0 | AV49: =SUM(AS49:AU49) -> 0 | AW49: =($AR49+1)*$AP49/12 -> 0 | AX49: =($AR49+1)*$AP49/12 -> 0 | AY49: =($AR49+1)*$AP49/12 -> 0 | AZ49: =SUM(AW49:AY49) -> 0 | BA49: =($AR49+1)*$AP49/12 -> 0 | BB49: =($AR49+1)*$AP49/12 -> 0 | BC49: =($AR49+1)*$AP49/12 -> 0 | BD49: =SUM(BA49:BC49) -> 0 | BE49: =($AR49+1)*$AP49/12 -> 0 | BF49: =($AR49+1)*$AP49/12 -> 0 | BG49: =($AR49+1)*$AP49/12 -> 0 | BH49: =SUM(BE49:BG49) -> 0 | BI49: =+BH49+BD49+AZ49+AV49 -> 0 | BJ49: =+BI49-AP49 -> 0 | BK49: =+DefRelFix -> 0 | BL49: =($BK49+1)*$BI49/12 -> 0 | BM49: =($BK49+1)*$BI49/12 -> 0 | BN49: =($BK49+1)*$BI49/12 -> 0 | BO49: =SUM(BL49:BN49) -> 0 | BP49: =($BK49+1)*$BI49/12 -> 0 | BQ49: =($BK49+1)*$BI49/12 -> 0 | BR49: =($BK49+1)*$BI49/12 -> 0 | BS49: =SUM(BP49:BR49) -> 0 | BT49: =($BK49+1)*$BI49/12 -> 0 | BU49: =($BK49+1)*$BI49/12 -> 0 | BV49: =($BK49+1)*$BI49/12 -> 0 | BW49: =SUM(BT49:BV49) -> 0 | BX49: =($BK49+1)*$BI49/12 -> 0 | BY49: =($BK49+1)*$BI49/12 -> 0 | BZ49: =($BK49+1)*$BI49/12 -> 0 | CA49: =SUM(BX49:BZ49) -> 0 | CB49: =+CA49+BW49+BS49+BO49 -> 0 | CC49: =+CB49-BI49 -> 0 | CD49: =+DefRelFix5 -> 0 | CE49: =($CD49+1)*$CB49/12 -> 0 | CF49: =($CD49+1)*$CB49/12 -> 0 | CG49: =($CD49+1)*$CB49/12 -> 0 | CH49: =SUM(CE49:CG49) -> 0 | CI49: =($CD49+1)*$CB49/12 -> 0 | CJ49: =($CD49+1)*$CB49/12 -> 0 | CK49: =($CD49+1)*$CB49/12 -> 0 | CL49: =SUM(CI49:CK49) -> 0 | CM49: =($CD49+1)*$CB49/12 -> 0 | CN49: =($CD49+1)*$CB49/12 -> 0 | CO49: =($CD49+1)*$CB49/12 -> 0 | CP49: =SUM(CM49:CO49) -> 0 | CQ49: =($CD49+1)*$CB49/12 -> 0 | CR49: =($CD49+1)*$CB49/12 -> 0 | CS49: =($CD49+1)*$CB49/12 -> 0 | CT49: =SUM(CQ49:CS49) -> 0 | CU49: =+CT49+CP49+CL49+CH49 -> 0 | CV49: =+CU49-CB49 -> 0 | CX49: FL
B50: Percentage of Revenue | C50: =+C49/RTCYYTD ->  | D50: =+D49/RTCYRem ->  | E50: =+E49/RTCYFY ->  | G50: =+G49/RTY1M1 ->  | H50: =+H49/RTY1M2 ->  | I50: =+I49/RTY1M3 ->  | J50: =+J49/RTY1Q1 ->  | K50: =+K49/RTY1M4 ->  | L50: =+L49/RTY1M5 ->  | M50: =+M49/RTY1M6 ->  | N50: =+N49/RTY1Q2 ->  | O50: =+O49/RTY1M7 ->  | P50: =+P49/RTY1M8 ->  | Q50: =+Q49/RTY1M9 ->  | R50: =+R49/RTY1Q3 ->  | S50: =+S49/RTY1M10 ->  | T50: =+T49/RTY1M11 ->  | U50: =+U49/RTY1M12 ->  | V50: =+V49/RTY1Q4 ->  | W50: =+W49/RTY1FY ->  | X50: =+X49/E49 ->  | Z50: =+Z49/RTY2M1 ->  | AA50: =+AA49/RTY2M2 ->  | AB50: =+AB49/RTY2M3 ->  | AC50: =+AC49/RTY2Q1 ->  | AD50: =+AD49/RTY2M4 ->  | AE50: =+AE49/RTY2M5 ->  | AF50: =+AF49/RTY2M6 ->  | AG50: =+AG49/RTY2Q2 ->  | AH50: =+AH49/RTY2M7 ->  | AI50: =+AI49/RTY2M8 ->  | AJ50: =+AJ49/RTY2M9 ->  | AK50: =+AK49/RTY2Q3 ->  | AL50: =+AL49/RTY2M10 ->  | AM50: =+AM49/RTY2M11 ->  | AN50: =+AN49/RTY2M12 ->  | AO50: =+AO49/RTY2Q4 ->  | AP50: =+AP49/RTY2FY ->  | AQ50: =+AQ49/W49 ->  | AS50: =+AS49/RTY3M1 ->  | AT50: =+AT49/RTY3M2 ->  | AU50: =+AU49/RTY3M3 ->  | AV50: =+AV49/RTY3Q1 ->  | AW50: =+AW49/RTY3M4 ->  | AX50: =+AX49/RTY3M5 ->  | AY50: =+AY49/RTY3M6 ->  | AZ50: =+AZ49/RTY3Q2 ->  | BA50: =+BA49/RTY3M7 ->  | BB50: =+BB49/RTY3M8 ->  | BC50: =+BC49/RTY3M9 ->  | BD50: =+BD49/RTY3Q3 ->  | BE50: =+BE49/RTY3M10 ->  | BF50: =+BF49/RTY3M11 ->  | BG50: =+BG49/RTY3M12 ->  | BH50: =+BH49/RTY3Q4 ->  | BI50: =+BI49/RTY3FY ->  | BJ50: =+BJ49/AP49 ->  | BL50: =+BL49/RTY4M1 ->  | BM50: =+BM49/RTY4M2 ->  | BN50: =+BN49/RTY4M3 ->  | BO50: =+BO49/RTY4Q1 ->  | BP50: =+BP49/RTY4M4 ->  | BQ50: =+BQ49/RTY4M5 ->  | BR50: =+BR49/RTY4M6 ->  | BS50: =+BS49/RTY4Q2 ->  | BT50: =+BT49/RTY4M7 ->  | BU50: =+BU49/RTY4M8 ->  | BV50: =+BV49/RTY4M9 ->  | BW50: =+BW49/RTY4Q3 ->  | BX50: =+BX49/RTY4M10 ->  | BY50: =+BY49/RTY4M11 ->  | BZ50: =+BZ49/RTY4M12 ->  | CA50: =+CA49/RTY4Q4 ->  | CB50: =+CB49/RTY4FY ->  | CC50: =+CC49/BI49 ->  | CE50: =+CE49/RTY5M1 ->  | CF50: =+CF49/RTY5M2 ->  | CG50: =+CG49/RTY5M3 ->  | CH50: =+CH49/RTY5Q1 ->  | CI50: =+CI49/RTY5M4 ->  | CJ50: =+CJ49/RTY5M5 ->  | CK50: =+CK49/RTY5M6 ->  | CL50: =+CL49/RTY5Q2 ->  | CM50: =+CM49/RTY5M7 ->  | CN50: =+CN49/RTY5M8 ->  | CO50: =+CO49/RTY5M9 ->  | CP50: =+CP49/RTY5Q3 ->  | CQ50: =+CQ49/RTY5M10 ->  | CR50: =+CR49/RTY5M11 ->  | CS50: =+CS49/RTY5M12 ->  | CT50: =+CT49/RTY5Q4 ->  | CU50: =+CU49/RTY5FY ->  | CV50: =+CV49/CB49 ->  | CX50: FLP
B51: Sub Total | C51: =SUMIF($CX48:$CX50,"FL",C48:C50) -> 0 | D51: =SUMIF($CX48:$CX50,"FL",D48:D50) -> 0 | E51: =SUMIF($CX48:$CX50,"FL",E48:E50) -> 0 | G51: =SUMIF($CX48:$CX50,"FL",G48:G50) -> 0 | H51: =SUMIF($CX48:$CX50,"FL",H48:H50) -> 0 | I51: 0 | J51: 0 | K51: 0 | L51: 0 | M51: 0 | N51: 0 | O51: 0 | P51: 0 | Q51: 0 | R51: 0 | S51: 0 | T51: 0 | U51: 0 | V51: 0 | W51: 0 | X51: =+W51-E51 -> 0 | Z51: =SUMIF($CX48:$CX50,"FL",Z48:Z50) -> 0 | AA51: =SUMIF($CX48:$CX50,"FL",AA48:AA50) -> 0 | AB51: 0 | AC51: 0 | AD51: 0 | AE51: 0 | AF51: 0 | AG51: 0 | AH51: 0 | AI51: 0 | AJ51: 0 | AK51: 0 | AL51: 0 | AM51: 0 | AN51: 0 | AO51: 0 | AP51: 0 | AQ51: =+AP51-W51 -> 0 | AS51: =SUMIF($CX48:$CX50,"FL",AS48:AS50) -> 0 | AT51: =SUMIF($CX48:$CX50,"FL",AT48:AT50) -> 0 | AU51: 0 | AV51: 0 | AW51: 0 | AX51: 0 | AY51: 0 | AZ51: 0 | BA51: 0 | BB51: 0 | BC51: 0 | BD51: 0 | BE51: 0 | BF51: 0 | BG51: 0 | BH51: 0 | BI51: 0 | BJ51: =+BI51-AP51 -> 0 | BL51: =SUMIF($CX48:$CX50,"FL",BL48:BL50) -> 0 | BM51: =SUMIF($CX48:$CX50,"FL",BM48:BM50) -> 0 | BN51: 0 | BO51: 0 | BP51: 0 | BQ51: 0 | BR51: 0 | BS51: 0 | BT51: 0 | BU51: 0 | BV51: 0 | BW51: 0 | BX51: 0 | BY51: 0 | BZ51: 0 | CA51: 0 | CB51: 0 | CC51: =+CB51-BI51 -> 0 | CE51: =SUMIF($CX48:$CX50,"FL",CE48:CE50) -> 0 | CF51: =SUMIF($CX48:$CX50,"FL",CF48:CF50) -> 0 | CG51: 0 | CH51: 0 | CI51: 0 | CJ51: 0 | CK51: 0 | CL51: 0 | CM51: 0 | CN51: 0 | CO51: 0 | CP51: 0 | CQ51: 0 | CR51: 0 | CS51: 0 | CT51: 0 | CU51: 0 | CV51: =+CU51-CB51 -> 0 | CX51: FCT
B52: Percentage of Revenue | C52: =+C51/RTCYYTD ->  | D52: =+D51/RTCYRem ->  | E52: =+E51/RTCYFY ->  | G52: =+G51/RTY1M1 ->  | H52: =+H51/RTY1M2 ->  | I52: =+I51/RTY1M3 ->  | J52: =+J51/RTY1Q1 ->  | K52: =+K51/RTY1M4 ->  | L52: =+L51/RTY1M5 ->  | M52: =+M51/RTY1M6 ->  | N52: =+N51/RTY1Q2 ->  | O52: =+O51/RTY1M7 ->  | P52: =+P51/RTY1M8 ->  | Q52: =+Q51/RTY1M9 ->  | R52: =+R51/RTY1Q3 ->  | S52: =+S51/RTY1M10 ->  | T52: =+T51/RTY1M11 ->  | U52: =+U51/RTY1M12 ->  | V52: =+V51/RTY1Q4 ->  | W52: =+W51/RTY1FY ->  | X52: =+X51/E51 ->  | Z52: =+Z51/RTY2M1 ->  | AA52: =+AA51/RTY2M2 ->  | AB52: =+AB51/RTY2M3 ->  | AC52: =+AC51/RTY2Q1 ->  | AD52: =+AD51/RTY2M4 ->  | AE52: =+AE51/RTY2M5 ->  | AF52: =+AF51/RTY2M6 ->  | AG52: =+AG51/RTY2Q2 ->  | AH52: =+AH51/RTY2M7 ->  | AI52: =+AI51/RTY2M8 ->  | AJ52: =+AJ51/RTY2M9 ->  | AK52: =+AK51/RTY2Q3 ->  | AL52: =+AL51/RTY2M10 ->  | AM52: =+AM51/RTY2M11 ->  | AN52: =+AN51/RTY2M12 ->  | AO52: =+AO51/RTY2Q4 ->  | AP52: =+AP51/RTY2FY ->  | AQ52: =+AQ51/W51 ->  | AS52: =+AS51/RTY3M1 ->  | AT52: =+AT51/RTY3M2 ->  | AU52: =+AU51/RTY3M3 ->  | AV52: =+AV51/RTY3Q1 ->  | AW52: =+AW51/RTY3M4 ->  | AX52: =+AX51/RTY3M5 ->  | AY52: =+AY51/RTY3M6 ->  | AZ52: =+AZ51/RTY3Q2 ->  | BA52: =+BA51/RTY3M7 ->  | BB52: =+BB51/RTY3M8 ->  | BC52: =+BC51/RTY3M9 ->  | BD52: =+BD51/RTY3Q3 ->  | BE52: =+BE51/RTY3M10 ->  | BF52: =+BF51/RTY3M11 ->  | BG52: =+BG51/RTY3M12 ->  | BH52: =+BH51/RTY3Q4 ->  | BI52: =+BI51/RTY3FY ->  | BJ52: =+BJ51/AP51 ->  | BL52: =+BL51/RTY4M1 ->  | BM52: =+BM51/RTY4M2 ->  | BN52: =+BN51/RTY4M3 ->  | BO52: =+BO51/RTY4Q1 ->  | BP52: =+BP51/RTY4M4 ->  | BQ52: =+BQ51/RTY4M5 ->  | BR52: =+BR51/RTY4M6 ->  | BS52: =+BS51/RTY4Q2 ->  | BT52: =+BT51/RTY4M7 ->  | BU52: =+BU51/RTY4M8 ->  | BV52: =+BV51/RTY4M9 ->  | BW52: =+BW51/RTY4Q3 ->  | BX52: =+BX51/RTY4M10 ->  | BY52: =+BY51/RTY4M11 ->  | BZ52: =+BZ51/RTY4M12 ->  | CA52: =+CA51/RTY4Q4 ->  | CB52: =+CB51/RTY4FY ->  | CC52: =+CC51/BI51 ->  | CE52: =+CE51/RTY5M1 ->  | CF52: =+CF51/RTY5M2 ->  | CG52: =+CG51/RTY5M3 ->  | CH52: =+CH51/RTY5Q1 ->  | CI52: =+CI51/RTY5M4 ->  | CJ52: =+CJ51/RTY5M5 ->  | CK52: =+CK51/RTY5M6 ->  | CL52: =+CL51/RTY5Q2 ->  | CM52: =+CM51/RTY5M7 ->  | CN52: =+CN51/RTY5M8 ->  | CO52: =+CO51/RTY5M9 ->  | CP52: =+CP51/RTY5Q3 ->  | CQ52: =+CQ51/RTY5M10 ->  | CR52: =+CR51/RTY5M11 ->  | CS52: =+CS51/RTY5M12 ->  | CT52: =+CT51/RTY5Q4 ->  | CU52: =+CU51/RTY5FY ->  | CV52: =+CV51/CB51 ->  | CX52: FCP
B55: New Fixed Cost Line | C55: 0 | D55: =+RemMonths/YTDMonths * C55 -> 0 | E55: =+C55+D55 -> 0 | F55: =+DefRelFix -> 0 | G55: =($F55+1)*$E55/12 -> 0 | H55: =($F55+1)*$E55/12 -> 0 | I55: =($F55+1)*$E55/12 -> 0 | J55: =SUM(G55:I55) -> 0 | K55: =($F55+1)*$E55/12 -> 0 | L55: =($F55+1)*$E55/12 -> 0 | M55: =($F55+1)*$E55/12 -> 0 | N55: =SUM(K55:M55) -> 0 | O55: =($F55+1)*$E55/12 -> 0 | P55: =($F55+1)*$E55/12 -> 0 | Q55: =($F55+1)*$E55/12 -> 0 | R55: =SUM(O55:Q55) -> 0 | S55: =($F55+1)*$E55/12 -> 0 | T55: =($F55+1)*$E55/12 -> 0 | U55: =($F55+1)*$E55/12 -> 0 | V55: =SUM(S55:U55) -> 0 | W55: =+V55+R55+N55+J55 -> 0 | X55: =+W55-E55 -> 0 | Y55: =+DefRelFix2 -> 0 | Z55: =($Y55+1)*$W55/12 -> 0 | AA55: =($Y55+1)*$W55/12 -> 0 | AB55: =($Y55+1)*$W55/12 -> 0 | AC55: =SUM(Z55:AB55) -> 0 | AD55: =($Y55+1)*$W55/12 -> 0 | AE55: =($Y55+1)*$W55/12 -> 0 | AF55: =($Y55+1)*$W55/12 -> 0 | AG55: =SUM(AD55:AF55) -> 0 | AH55: =($Y55+1)*$W55/12 -> 0 | AI55: =($Y55+1)*$W55/12 -> 0 | AJ55: =($Y55+1)*$W55/12 -> 0 | AK55: =SUM(AH55:AJ55) -> 0 | AL55: =($Y55+1)*$W55/12 -> 0 | AM55: =($Y55+1)*$W55/12 -> 0 | AN55: =($Y55+1)*$W55/12 -> 0 | AO55: =SUM(AL55:AN55) -> 0 | AP55: =+AO55+AK55+AG55+AC55 -> 0 | AQ55: =+AP55-W55 -> 0 | AR55: =+DefRelFix3 -> 0 | AS55: =($AR55+1)*$AP55/12 -> 0 | AT55: =($AR55+1)*$AP55/12 -> 0 | AU55: =($AR55+1)*$AP55/12 -> 0 | AV55: =SUM(AS55:AU55) -> 0 | AW55: =($AR55+1)*$AP55/12 -> 0 | AX55: =($AR55+1)*$AP55/12 -> 0 | AY55: =($AR55+1)*$AP55/12 -> 0 | AZ55: =SUM(AW55:AY55) -> 0 | BA55: =($AR55+1)*$AP55/12 -> 0 | BB55: =($AR55+1)*$AP55/12 -> 0 | BC55: =($AR55+1)*$AP55/12 -> 0 | BD55: =SUM(BA55:BC55) -> 0 | BE55: =($AR55+1)*$AP55/12 -> 0 | BF55: =($AR55+1)*$AP55/12 -> 0 | BG55: =($AR55+1)*$AP55/12 -> 0 | BH55: =SUM(BE55:BG55) -> 0 | BI55: =+BH55+BD55+AZ55+AV55 -> 0 | BJ55: =+BI55-AP55 -> 0 | BK55: =+DefRelFix -> 0 | BL55: =($BK55+1)*$BI55/12 -> 0 | BM55: =($BK55+1)*$BI55/12 -> 0 | BN55: =($BK55+1)*$BI55/12 -> 0 | BO55: =SUM(BL55:BN55) -> 0 | BP55: =($BK55+1)*$BI55/12 -> 0 | BQ55: =($BK55+1)*$BI55/12 -> 0 | BR55: =($BK55+1)*$BI55/12 -> 0 | BS55: =SUM(BP55:BR55) -> 0 | BT55: =($BK55+1)*$BI55/12 -> 0 | BU55: =($BK55+1)*$BI55/12 -> 0 | BV55: =($BK55+1)*$BI55/12 -> 0 | BW55: =SUM(BT55:BV55) -> 0 | BX55: =($BK55+1)*$BI55/12 -> 0 | BY55: =($BK55+1)*$BI55/12 -> 0 | BZ55: =($BK55+1)*$BI55/12 -> 0 | CA55: =SUM(BX55:BZ55) -> 0 | CB55: =+CA55+BW55+BS55+BO55 -> 0 | CC55: =+CB55-BI55 -> 0 | CD55: =+DefRelFix5 -> 0 | CE55: =($CD55+1)*$CB55/12 -> 0 | CF55: =($CD55+1)*$CB55/12 -> 0 | CG55: =($CD55+1)*$CB55/12 -> 0 | CH55: =SUM(CE55:CG55) -> 0 | CI55: =($CD55+1)*$CB55/12 -> 0 | CJ55: =($CD55+1)*$CB55/12 -> 0 | CK55: =($CD55+1)*$CB55/12 -> 0 | CL55: =SUM(CI55:CK55) -> 0 | CM55: =($CD55+1)*$CB55/12 -> 0 | CN55: =($CD55+1)*$CB55/12 -> 0 | CO55: =($CD55+1)*$CB55/12 -> 0 | CP55: =SUM(CM55:CO55) -> 0 | CQ55: =($CD55+1)*$CB55/12 -> 0 | CR55: =($CD55+1)*$CB55/12 -> 0 | CS55: =($CD55+1)*$CB55/12 -> 0 | CT55: =SUM(CQ55:CS55) -> 0 | CU55: =+CT55+CP55+CL55+CH55 -> 0 | CV55: =+CU55-CB55 -> 0 | CX55: FL
B56: Percentage of Revenue | C56: =+C55/RTCYYTD ->  | D56: =+D55/RTCYRem ->  | E56: =+E55/RTCYFY ->  | G56: =+G55/RTY1M1 ->  | H56: =+H55/RTY1M2 ->  | I56: =+I55/RTY1M3 ->  | J56: =+J55/RTY1Q1 ->  | K56: =+K55/RTY1M4 ->  | L56: =+L55/RTY1M5 ->  | M56: =+M55/RTY1M6 ->  | N56: =+N55/RTY1Q2 ->  | O56: =+O55/RTY1M7 ->  | P56: =+P55/RTY1M8 ->  | Q56: =+Q55/RTY1M9 ->  | R56: =+R55/RTY1Q3 ->  | S56: =+S55/RTY1M10 ->  | T56: =+T55/RTY1M11 ->  | U56: =+U55/RTY1M12 ->  | V56: =+V55/RTY1Q4 ->  | W56: =+W55/RTY1FY ->  | X56: =+X55/E55 ->  | Z56: =+Z55/RTY2M1 ->  | AA56: =+AA55/RTY2M2 ->  | AB56: =+AB55/RTY2M3 ->  | AC56: =+AC55/RTY2Q1 ->  | AD56: =+AD55/RTY2M4 ->  | AE56: =+AE55/RTY2M5 ->  | AF56: =+AF55/RTY2M6 ->  | AG56: =+AG55/RTY2Q2 ->  | AH56: =+AH55/RTY2M7 ->  | AI56: =+AI55/RTY2M8 ->  | AJ56: =+AJ55/RTY2M9 ->  | AK56: =+AK55/RTY2Q3 ->  | AL56: =+AL55/RTY2M10 ->  | AM56: =+AM55/RTY2M11 ->  | AN56: =+AN55/RTY2M12 ->  | AO56: =+AO55/RTY2Q4 ->  | AP56: =+AP55/RTY2FY ->  | AQ56: =+AQ55/W55 ->  | AS56: =+AS55/RTY3M1 ->  | AT56: =+AT55/RTY3M2 ->  | AU56: =+AU55/RTY3M3 ->  | AV56: =+AV55/RTY3Q1 ->  | AW56: =+AW55/RTY3M4 ->  | AX56: =+AX55/RTY3M5 ->  | AY56: =+AY55/RTY3M6 ->  | AZ56: =+AZ55/RTY3Q2 ->  | BA56: =+BA55/RTY3M7 ->  | BB56: =+BB55/RTY3M8 ->  | BC56: =+BC55/RTY3M9 ->  | BD56: =+BD55/RTY3Q3 ->  | BE56: =+BE55/RTY3M10 ->  | BF56: =+BF55/RTY3M11 ->  | BG56: =+BG55/RTY3M12 ->  | BH56: =+BH55/RTY3Q4 ->  | BI56: =+BI55/RTY3FY ->  | BJ56: =+BJ55/AP55 ->  | BL56: =+BL55/RTY4M1 ->  | BM56: =+BM55/RTY4M2 ->  | BN56: =+BN55/RTY4M3 ->  | BO56: =+BO55/RTY4Q1 ->  | BP56: =+BP55/RTY4M4 ->  | BQ56: =+BQ55/RTY4M5 ->  | BR56: =+BR55/RTY4M6 ->  | BS56: =+BS55/RTY4Q2 ->  | BT56: =+BT55/RTY4M7 ->  | BU56: =+BU55/RTY4M8 ->  | BV56: =+BV55/RTY4M9 ->  | BW56: =+BW55/RTY4Q3 ->  | BX56: =+BX55/RTY4M10 ->  | BY56: =+BY55/RTY4M11 ->  | BZ56: =+BZ55/RTY4M12 ->  | CA56: =+CA55/RTY4Q4 ->  | CB56: =+CB55/RTY4FY ->  | CC56: =+CC55/BI55 ->  | CE56: =+CE55/RTY5M1 ->  | CF56: =+CF55/RTY5M2 ->  | CG56: =+CG55/RTY5M3 ->  | CH56: =+CH55/RTY5Q1 ->  | CI56: =+CI55/RTY5M4 ->  | CJ56: =+CJ55/RTY5M5 ->  | CK56: =+CK55/RTY5M6 ->  | CL56: =+CL55/RTY5Q2 ->  | CM56: =+CM55/RTY5M7 ->  | CN56: =+CN55/RTY5M8 ->  | CO56: =+CO55/RTY5M9 ->  | CP56: =+CP55/RTY5Q3 ->  | CQ56: =+CQ55/RTY5M10 ->  | CR56: =+CR55/RTY5M11 ->  | CS56: =+CS55/RTY5M12 ->  | CT56: =+CT55/RTY5Q4 ->  | CU56: =+CU55/RTY5FY ->  | CV56: =+CV55/CB55 ->  | CX56: FLP
B59: Percent of Year | G59: =+G58/W58 ->  | H59: =+H58/W58 ->  | I59: =+I58/W58 ->  | J59: =+J58/W58 ->  | K59: =+K58/W58 ->  | L59: =+L58/W58 ->  | M59: =+M58/W58 ->  | N59: =+N58/W58 ->  | O59: =+O58/W58 ->  | P59: =+P58/W58 ->  | Q59: =+Q58/W58 ->  | R59: =+R58/W58 ->  | S59: =+S58/W58 ->  | T59: =+T58/W58 ->  | U59: =+U58/W58 ->  | V59: =+V58/W58 ->  | W59: =+W58/W58 ->  | X59: =+X58/E58 ->  | Z59: =+Z58/AP58 ->  | AA59: =+AA58/AP58 ->  | AB59: =+AB58/AP58 ->  | AC59: =+AC58/AP58 ->  | AD59: =+AD58/AP58 ->  | AE59: =+AE58/AP58 ->  | AF59: =+AF58/AP58 ->  | AG59: =+AG58/AP58 ->  | AH59: =+AH58/AP58 ->  | AI59: =+AI58/AP58 ->  | AJ59: =+AJ58/AP58 ->  | AK59: =+AK58/AP58 ->  | AL59: =+AL58/AP58 ->  | AM59: =+AM58/AP58 ->  | AN59: =+AN58/AP58 ->  | AO59: =+AO58/AP58 ->  | AP59: =+AP58/AP58 ->  | AQ59: =+AQ58/W58 ->  | AS59: =+AS58/BI58 ->  | AT59: =+AT58/BI58 ->  | AU59: =+AU58/BI58 ->  | AV59: =+AV58/BI58 ->  | AW59: =+AW58/BI58 ->  | AX59: =+AX58/BI58 ->  | AY59: =+AY58/BI58 ->  | AZ59: =+AZ58/BI58 ->  | BA59: =+BA58/BI58 ->  | BB59: =+BB58/BI58 ->  | BC59: =+BC58/BI58 ->  | BD59: =+BD58/BI58 ->  | BE59: =+BE58/BI58 ->  | BF59: =+BF58/BI58 ->  | BG59: =+BG58/BI58 ->  | BH59: =+BH58/BI58 ->  | BI59: =+BI58/BI58 ->  | BJ59: =+BJ58/AP58 ->  | BL59: =+BL58/CB58 ->  | BM59: =+BM58/CB58 ->  | BN59: =+BN58/CB58 ->  | BO59: =+BO58/CB58 ->  | BP59: =+BP58/CB58 ->  | BQ59: =+BQ58/CB58 ->  | BR59: =+BR58/CB58 ->  | BS59: =+BS58/CB58 ->  | BT59: =+BT58/CB58 ->  | BU59: =+BU58/CB58 ->  | BV59: =+BV58/CB58 ->  | BW59: =+BW58/CB58 ->  | BX59: =+BX58/CB58 ->  | BY59: =+BY58/CB58 ->  | BZ59: =+BZ58/CB58 ->  | CA59: =+CA58/CB58 ->  | CB59: =+CB58/CB58 ->  | CC59: =+CC58/BI58 ->  | CE59: =+CE58/CU58 ->  | CF59: =+CF58/CU58 ->  | CG59: =+CG58/CU58 ->  | CH59: =+CH58/CU58 ->  | CI59: =+CI58/CU58 ->  | CJ59: =+CJ58/CU58 ->  | CK59: =+CK58/CU58 ->  | CL59: =+CL58/CU58 ->  | CM59: =+CM58/CU58 ->  | CN59: =+CN58/CU58 ->  | CO59: =+CO58/CU58 ->  | CP59: =+CP58/CU58 ->  | CQ59: =+CQ58/CU58 ->  | CR59: =+CR58/CU58 ->  | CS59: =+CS58/CU58 ->  | CT59: =+CT58/CU58 ->  | CU59: =+CU58/CU58 ->  | CV59: =+CV58/CB58 ->  | CX59: RLP
B62: Percent of Month | G62: =+G61/SUMIF($CX$1:$CX61,"RAT",G$1:G61) ->  | H62: =+H61/SUMIF($CX$1:$CX61,"RAT",H$1:H61) ->  | I62: =+I61/SUMIF($CX$1:$CX61,"RAT",I$1:I61) ->  | J62: =+J61/SUMIF($CX$1:$CX61,"RAT",J$1:J61) ->  | K62: =+K61/SUMIF($CX$1:$CX61,"RAT",K$1:K61) ->  | L62: =+L61/SUMIF($CX$1:$CX61,"RAT",L$1:L61) ->  | M62: =+M61/SUMIF($CX$1:$CX61,"RAT",M$1:M61) ->  | N62: =+N61/SUMIF($CX$1:$CX61,"RAT",N$1:N61) ->  | O62: =+O61/SUMIF($CX$1:$CX61,"RAT",O$1:O61) ->  | P62: =+P61/SUMIF($CX$1:$CX61,"RAT",P$1:P61) ->  | Q62: =+Q61/SUMIF($CX$1:$CX61,"RAT",Q$1:Q61) ->  | R62: =+R61/SUMIF($CX$1:$CX61,"RAT",R$1:R61) ->  | S62: =+S61/SUMIF($CX$1:$CX61,"RAT",S$1:S61) ->  | T62: =+T61/SUMIF($CX$1:$CX61,"RAT",T$1:T61) ->  | U62: =+U61/SUMIF($CX$1:$CX61,"RAT",U$1:U61) ->  | V62: =+V61/SUMIF($CX$1:$CX61,"RAT",V$1:V61) ->  | W62: =+W61/SUMIF($CX$1:$CX61,"RAT",W$1:W61) ->  | X62: =+X61/E61 ->  | Z62: =+Z61/SUMIF($CX$1:$CX61,"RAT",Z$1:Z61) ->  | AA62: =+AA61/SUMIF($CX$1:$CX61,"RAT",AA$1:AA61) ->  | AB62: =+AB61/SUMIF($CX$1:$CX61,"RAT",AB$1:AB61) ->  | AC62: =+AC61/SUMIF($CX$1:$CX61,"RAT",AC$1:AC61) ->  | AD62: =+AD61/SUMIF($CX$1:$CX61,"RAT",AD$1:AD61) ->  | AE62: =+AE61/SUMIF($CX$1:$CX61,"RAT",AE$1:AE61) ->  | AF62: =+AF61/SUMIF($CX$1:$CX61,"RAT",AF$1:AF61) ->  | AG62: =+AG61/SUMIF($CX$1:$CX61,"RAT",AG$1:AG61) ->  | AH62: =+AH61/SUMIF($CX$1:$CX61,"RAT",AH$1:AH61) ->  | AI62: =+AI61/SUMIF($CX$1:$CX61,"RAT",AI$1:AI61) ->  | AJ62: =+AJ61/SUMIF($CX$1:$CX61,"RAT",AJ$1:AJ61) ->  | AK62: =+AK61/SUMIF($CX$1:$CX61,"RAT",AK$1:AK61) ->  | AL62: =+AL61/SUMIF($CX$1:$CX61,"RAT",AL$1:AL61) ->  | AM62: =+AM61/SUMIF($CX$1:$CX61,"RAT",AM$1:AM61) ->  | AN62: =+AN61/SUMIF($CX$1:$CX61,"RAT",AN$1:AN61) ->  | AO62: =+AO61/SUMIF($CX$1:$CX61,"RAT",AO$1:AO61) ->  | AP62: =+AP61/SUMIF($CX$1:$CX61,"RAT",AP$1:AP61) ->  | AQ62: =+AQ61/W61 ->  | AS62: =+AS61/SUMIF($CX$1:$CX61,"RAT",AS$1:AS61) ->  | AT62: =+AT61/SUMIF($CX$1:$CX61,"RAT",AT$1:AT61) ->  | AU62: =+AU61/SUMIF($CX$1:$CX61,"RAT",AU$1:AU61) ->  | AV62: =+AV61/SUMIF($CX$1:$CX61,"RAT",AV$1:AV61) ->  | AW62: =+AW61/SUMIF($CX$1:$CX61,"RAT",AW$1:AW61) ->  | AX62: =+AX61/SUMIF($CX$1:$CX61,"RAT",AX$1:AX61) ->  | AY62: =+AY61/SUMIF($CX$1:$CX61,"RAT",AY$1:AY61) ->  | AZ62: =+AZ61/SUMIF($CX$1:$CX61,"RAT",AZ$1:AZ61) ->  | BA62: =+BA61/SUMIF($CX$1:$CX61,"RAT",BA$1:BA61) ->  | BB62: =+BB61/SUMIF($CX$1:$CX61,"RAT",BB$1:BB61) ->  | BC62: =+BC61/SUMIF($CX$1:$CX61,"RAT",BC$1:BC61) ->  | BD62: =+BD61/SUMIF($CX$1:$CX61,"RAT",BD$1:BD61) ->  | BE62: =+BE61/SUMIF($CX$1:$CX61,"RAT",BE$1:BE61) ->  | BF62: =+BF61/SUMIF($CX$1:$CX61,"RAT",BF$1:BF61) ->  | BG62: =+BG61/SUMIF($CX$1:$CX61,"RAT",BG$1:BG61) ->  | BH62: =+BH61/SUMIF($CX$1:$CX61,"RAT",BH$1:BH61) ->  | BI62: =+BI61/SUMIF($CX$1:$CX61,"RAT",BI$1:BI61) ->  | BJ62: =+BJ61/AP61 ->  | BL62: =+BL61/SUMIF($CX$1:$CX61,"RAT",BL$1:BL61) ->  | BM62: =+BM61/SUMIF($CX$1:$CX61,"RAT",BM$1:BM61) ->  | BN62: =+BN61/SUMIF($CX$1:$CX61,"RAT",BN$1:BN61) ->  | BO62: =+BO61/SUMIF($CX$1:$CX61,"RAT",BO$1:BO61) ->  | BP62: =+BP61/SUMIF($CX$1:$CX61,"RAT",BP$1:BP61) ->  | BQ62: =+BQ61/SUMIF($CX$1:$CX61,"RAT",BQ$1:BQ61) ->  | BR62: =+BR61/SUMIF($CX$1:$CX61,"RAT",BR$1:BR61) ->  | BS62: =+BS61/SUMIF($CX$1:$CX61,"RAT",BS$1:BS61) ->  | BT62: =+BT61/SUMIF($CX$1:$CX61,"RAT",BT$1:BT61) ->  | BU62: =+BU61/SUMIF($CX$1:$CX61,"RAT",BU$1:BU61) ->  | BV62: =+BV61/SUMIF($CX$1:$CX61,"RAT",BV$1:BV61) ->  | BW62: =+BW61/SUMIF($CX$1:$CX61,"RAT",BW$1:BW61) ->  | BX62: =+BX61/SUMIF($CX$1:$CX61,"RAT",BX$1:BX61) ->  | BY62: =+BY61/SUMIF($CX$1:$CX61,"RAT",BY$1:BY61) ->  | BZ62: =+BZ61/SUMIF($CX$1:$CX61,"RAT",BZ$1:BZ61) ->  | CA62: =+CA61/SUMIF($CX$1:$CX61,"RAT",CA$1:CA61) ->  | CB62: =+CB61/SUMIF($CX$1:$CX61,"RAT",CB$1:CB61) ->  | CC62: =+CC61/BI61 ->  | CE62: =+CE61/SUMIF($CX$1:$CX61,"RAT",CE$1:CE61) ->  | CF62: =+CF61/SUMIF($CX$1:$CX61,"RAT",CF$1:CF61) ->  | CG62: =+CG61/SUMIF($CX$1:$CX61,"RAT",CG$1:CG61) ->  | CH62: =+CH61/SUMIF($CX$1:$CX61,"RAT",CH$1:CH61) ->  | CI62: =+CI61/SUMIF($CX$1:$CX61,"RAT",CI$1:CI61) ->  | CJ62: =+CJ61/SUMIF($CX$1:$CX61,"RAT",CJ$1:CJ61) ->  | CK62: =+CK61/SUMIF($CX$1:$CX61,"RAT",CK$1:CK61) ->  | CL62: =+CL61/SUMIF($CX$1:$CX61,"RAT",CL$1:CL61) ->  | CM62: =+CM61/SUMIF($CX$1:$CX61,"RAT",CM$1:CM61) ->  | CN62: =+CN61/SUMIF($CX$1:$CX61,"RAT",CN$1:CN61) ->  | CO62: =+CO61/SUMIF($CX$1:$CX61,"RAT",CO$1:CO61) ->  | CP62: =+CP61/SUMIF($CX$1:$CX61,"RAT",CP$1:CP61) ->  | CQ62: =+CQ61/SUMIF($CX$1:$CX61,"RAT",CQ$1:CQ61) ->  | CR62: =+CR61/SUMIF($CX$1:$CX61,"RAT",CR$1:CR61) ->  | CS62: =+CS61/SUMIF($CX$1:$CX61,"RAT",CS$1:CS61) ->  | CT62: =+CT61/SUMIF($CX$1:$CX61,"RAT",CT$1:CT61) ->  | CU62: =+CU61/SUMIF($CX$1:$CX61,"RAT",CU$1:CU61) ->  | CV62: =+CV61/CB61 ->  | CX62: RLP
E65: =+D65+C65 -> 0 | G65: =+G67+G69 -> 0 | H65: 0 | I65: 0 | J65: 0 | K65: 0 | L65: 0 | M65: 0 | N65: 0 | O65: 0 | P65: 0 | Q65: 0 | R65: 0 | S65: 0 | T65: 0 | U65: 0 | V65: 0 | W65: 0 | X65: =+W65-E65 -> 0 | Z65: =+Z67+Z69 -> 0 | AA65: 0 | AB65: 0 | AC65: 0 | AD65: 0 | AE65: 0 | AF65: 0 | AG65: 0 | AH65: 0 | AI65: 0 | AJ65: 0 | AK65: 0 | AL65: 0 | AM65: 0 | AN65: 0 | AO65: 0 | AP65: 0 | AQ65: =+AP65-W65 -> 0 | AS65: =+AS67+AS69 -> 0 | AT65: 0 | AU65: 0 | AV65: 0 | AW65: 0 | AX65: 0 | AY65: 0 | AZ65: 0 | BA65: 0 | BB65: 0 | BC65: 0 | BD65: 0 | BE65: 0 | BF65: 0 | BG65: 0 | BH65: 0 | BI65: 0 | BJ65: =+BI65-AP65 -> 0 | BL65: =+BL67+BL69 -> 0 | BM65: 0 | BN65: 0 | BO65: 0 | BP65: 0 | BQ65: 0 | BR65: 0 | BS65: 0 | BT65: 0 | BU65: 0 | BV65: 0 | BW65: 0 | BX65: 0 | BY65: 0 | BZ65: 0 | CA65: 0 | CB65: 0 | CC65: =+CB65-BI65 -> 0 | CE65: =+CE67+CE69 -> 0 | CF65: 0 | CG65: 0 | CH65: 0 | CI65: 0 | CJ65: 0 | CK65: 0 | CL65: 0 | CM65: 0 | CN65: 0 | CO65: 0 | CP65: 0 | CQ65: 0 | CR65: 0 | CS65: 0 | CT65: 0 | CU65: 0 | CV65: =+CU65-CB65 -> 0 | CX65: RL
CX68: RI
CX71: RA
CX74: BK
W77: =SUM(G77:V77) -> 0 | AP77: =+AO77+AK77+AG77+AC77 -> 0
E80: =+D80+C80 -> 0 | G80: =+G81+G82 -> 0 | H80: 0 | I80: 0 | J80: 0 | K80: 0 | L80: 0 | M80: 0 | N80: 0 | O80: 0 | P80: 0 | Q80: 0 | R80: 0 | S80: 0 | T80: 0 | U80: 0 | V80: 0 | W80: 0 | X80: =+W80-E80 -> 0 | Z80: =+Z81+Z82 -> 0 | AA80: 0 | AB80: 0 | AC80: 0 | AD80: 0 | AE80: 0 | AF80: 0 | AG80: 0 | AH80: 0 | AI80: 0 | AJ80: 0 | AK80: 0 | AL80: 0 | AM80: 0 | AN80: 0 | AO80: 0 | AP80: 0 | AQ80: =+AP80-W80 -> 0 | AS80: =+AS81+AS82 -> 0 | AT80: 0 | AU80: 0 | AV80: 0 | AW80: 0 | AX80: 0 | AY80: 0 | AZ80: 0 | BA80: 0 | BB80: 0 | BC80: 0 | BD80: 0 | BE80: 0 | BF80: 0 | BG80: 0 | BH80: 0 | BI80: 0 | BJ80: =+BI80-AP80 -> 0 | BL80: =+BL81+BL82 -> 0 | BM80: 0 | BN80: 0 | BO80: 0 | BP80: 0 | BQ80: 0 | BR80: 0 | BS80: 0 | BT80: 0 | BU80: 0 | BV80: 0 | BW80: 0 | BX80: 0 | BY80: 0 | BZ80: 0 | CA80: 0 | CB80: 0 | CC80: =+CB80-BI80 -> 0 | CE80: =+CE81+CE82 -> 0 | CF80: 0 | CG80: 0 | CH80: 0 | CI80: 0 | CJ80: 0 | CK80: 0 | CL80: 0 | CM80: 0 | CN80: 0 | CO80: 0 | CP80: 0 | CQ80: 0 | CR80: 0 | CS80: 0 | CT80: 0 | CU80: 0 | CV80: =+CU80-CB80 -> 0 | CX80: RL
E83: =+D83+C83 -> 0 | J83: =SUM(G83:I83) -> 0 | N83: =SUM(K83:M83) -> 0 | R83: =SUM(O83:Q83) -> 0 | V83: =SUM(S83:U83) -> 0 | W83: =+V83+R83+N83+J83 -> 0 | X83: =+W83-E83 -> 0 | AC83: =SUM(Z83:AB83) -> 0 | AG83: =SUM(AD83:AF83) -> 0 | AK83: =SUM(AH83:AJ83) -> 0 | AO83: =SUM(AL83:AN83) -> 0 | AP83: =+AO83+AK83+AG83+AC83 -> 0 | AQ83: =+AP83-W83 -> 0 | AV83: =SUM(AS83:AU83) -> 0 | AZ83: =SUM(AW83:AY83) -> 0 | BD83: =SUM(BA83:BC83) -> 0 | BH83: =SUM(BE83:BG83) -> 0 | BI83: =+BH83+BD83+AZ83+AV83 -> 0 | BJ83: =+BI83-AP83 -> 0 | BO83: =SUM(BL83:BN83) -> 0 | BS83: =SUM(BP83:BR83) -> 0 | BW83: =SUM(BT83:BV83) -> 0 | CA83: =SUM(BX83:BZ83) -> 0 | CB83: =+CA83+BW83+BS83+BO83 -> 0 | CC83: =+CB83-BI83 -> 0 | CH83: =SUM(CE83:CG83) -> 0 | CL83: =SUM(CI83:CK83) -> 0 | CP83: =SUM(CM83:CO83) -> 0 | CT83: =SUM(CQ83:CS83) -> 0 | CU83: =+CT83+CP83+CL83+CH83 -> 0 | CV83: =+CU83-CB83 -> 0 | CX83: RL

Sheet Scratch (hidden)
E41: =SUM(E42:E46) -> 294
B42: =1 -> 1 | C42: b | D42: =IFERROR(CODE(C42),0) -> 98 | E42: =B42*D42 -> 98
B43: =B42+1 -> 2 | C43: b | D43: =IFERROR(CODE(C43),0) -> 98 | E43: =B43*D43 -> 196
B44: 3 | D44: 0 | E44: 0
B45: 4 | D45: 0 | E45: 0
B46: 5 | D46: 0 | E46: 0
B50: =IF(Scratch!B55=TRUE,"Licensed to "&Welcome!C11, Welcome!C13&" In evaluation mode functionality is limited.") -> In evaluation mode functionality is limited.
B52: Locked | C52: 500000
B53: =IFERROR(AND(ISTEXT(Welcome!C18),LEN(Welcome!C18)>6),FALSE) -> FALSE | D53: emall len >6
B54: =IFERROR(AND(ISNUMBER(INT(Welcome!C19)),LEN(Welcome!C19)>8),FALSE) -> FALSE | C54: =IFERROR(Welcome!C19/Scratch!E57/E41,FALSE) -> FALSE | D54: code len>8 | E54: yyyymmdd=code/emailchsum/i
B55: =IFERROR(AND(ISNUMBER(C54),LEN(C54)=8,TODAY()<C55+7),FALSE) -> FALSE | C55: =IFERROR(DATE(MID(C54,1,4),MID(C54,5,2),MID(C54,7,2)),FALSE) -> FALSE | E55: yyyymmdd len=8 | G55: IF(ISNUMBER(C55),IF(C55>TODAY()+3650,2,IF(C55>TODAY()-2,1,0)),0)
C56: =IF(ISNUMBER(C55),IF(C55>TODAY()+3650,2,IF(C55>TODAY()-2,1,0)),0) -> 0 | D56: status | E56: >today+36500days=2 | J56: =I56*J57*E41 -> 0
E57: =SUM(E58:E107) -> 0 | J57: =SUM(J58:J107) -> 0
B58: =1 -> 1 | C58: =MID(Welcome!$C$18,B58,1) ->  | D58: =IFERROR(CODE(C58),0) -> 0 | E58: =B58*D58 -> 0 | G58: =1 -> 1 | H58: =MID($G$56,G58,1) ->  | I58: =IFERROR(CODE(H58),0) -> 0 | J58: =G58*I58 -> 0
B59: =B58+1 -> 2 | C59: =MID(Welcome!$C$18,B59,1) ->  | D59: 0 | E59: 0 | G59: =G58+1 -> 2 | H59: =MID($G$56,G59,1) ->  | I59: 0 | J59: 0
B60: 3 | C60: =MID(Welcome!$C$18,B60,1) ->  | D60: 0 | E60: 0 | G60: 3 | I60: 0 | J60: 0
B61: 4 | C61: =MID(Welcome!$C$18,B61,1) ->  | D61: 0 | E61: 0 | G61: 4 | I61: 0 | J61: 0
B62: 5 | C62: =MID(Welcome!$C$18,B62,1) ->  | D62: 0 | E62: 0 | G62: 5 | I62: 0 | J62: 0
B63: 6 | C63: =MID(Welcome!$C$18,B63,1) ->  | D63: 0 | E63: 0 | G63: 6 | I63: 0 | J63: 0
B64: 7 | C64: =MID(Welcome!$C$18,B64,1) ->  | D64: 0 | E64: 0 | G64: 7 | I64: 0 | J64: 0
B65: 8 | C65: =MID(Welcome!$C$18,B65,1) ->  | D65: 0 | E65: 0 | G65: 8 | I65: 0 | J65: 0
B66: 9 | C66: =MID(Welcome!$C$18,B66,1) ->  | D66: 0 | E66: 0 | G66: 9 | I66: 0 | J66: 0
B67: 10 | C67: =MID(Welcome!$C$18,B67,1) ->  | D67: 0 | E67: 0 | G67: 10 | I67: 0 | J67: 0
B68: 11 | C68: =MID(Welcome!$C$18,B68,1) ->  | D68: 0 | E68: 0 | G68: 11 | I68: 0 | J68: 0
B69: 12 | C69: =MID(Welcome!$C$18,B69,1) ->  | D69: 0 | E69: 0 | G69: 12 | I69: 0 | J69: 0
B70: 13 | C70: =MID(Welcome!$C$18,B70,1) ->  | D70: 0 | E70: 0 | G70: 13 | I70: 0 | J70: 0
B71: 14 | C71: =MID(Welcome!$C$18,B71,1) ->  | D71: 0 | E71: 0 | G71: 14 | I71: 0 | J71: 0
B72: 15 | C72: =MID(Welcome!$C$18,B72,1) ->  | D72: 0 | E72: 0 | G72: 15 | I72: 0 | J72: 0
B73: 16 | C73: =MID(Welcome!$C$18,B73,1) ->  | D73: 0 | E73: 0 | G73: 16 | I73: 0 | J73: 0
B74: 17 | C74: =MID(Welcome!$C$18,B74,1) ->  | D74: 0 | E74: 0 | G74: 17 | I74: 0 | J74: 0
B75: 18 | C75: =MID(Welcome!$C$18,B75,1) ->  | D75: 0 | E75: 0 | G75: 18 | I75: 0 | J75: 0
B76: 19 | C76: =MID(Welcome!$C$18,B76,1) ->  | D76: 0 | E76: 0 | G76: 19 | I76: 0 | J76: 0
B77: 20 | C77: =MID(Welcome!$C$18,B77,1) ->  | D77: 0 | E77: 0 | G77: 20 | I77: 0 | J77: 0
B78: 21 | C78: =MID(Welcome!$C$18,B78,1) ->  | D78: 0 | E78: 0 | G78: 21 | I78: 0 | J78: 0
B79: 22 | C79: =MID(Welcome!$C$18,B79,1) ->  | D79: 0 | E79: 0 | G79: 22 | I79: 0 | J79: 0
B80: 23 | C80: =MID(Welcome!$C$18,B80,1) ->  | D80: 0 | E80: 0 | G80: 23 | I80: 0 | J80: 0
B81: 24 | C81: =MID(Welcome!$C$18,B81,1) ->  | D81: 0 | E81: 0 | G81: 24 | I81: 0 | J81: 0
B82: 25 | C82: =MID(Welcome!$C$18,B82,1) ->  | D82: 0 | E82: 0 | G82: 25 | I82: 0 | J82: 0
B83: 26 | C83: =MID(Welcome!$C$18,B83,1) ->  | D83: 0 | E83: 0 | G83: 26 | I83: 0 | J83: 0
B84: 27 | C84: =MID(Welcome!$C$18,B84,1) ->  | D84: 0 | E84: 0 | G84: 27 | I84: 0 | J84: 0
B85: 28 | C85: =MID(Welcome!$C$18,B85,1) ->  | D85: 0 | E85: 0 | G85: 28 | I85: 0 | J85: 0
B86: 29 | C86: =MID(Welcome!$C$18,B86,1) ->  | D86: 0 | E86: 0 | G86: 29 | I86: 0 | J86: 0
B87: 30 | C87: =MID(Welcome!$C$18,B87,1) ->  | D87: 0 | E87: 0 | G87: 30 | I87: 0 | J87: 0
B88: 31 | C88: =MID(Welcome!$C$18,B88,1) ->  | D88: 0 | E88: 0 | G88: 31 | I88: 0 | J88: 0
B89: 32 | C89: =MID(Welcome!$C$18,B89,1) ->  | D89: 0 | E89: 0 | G89: 32 | I89: 0 | J89: 0
B90: 33 | C90: =MID(Welcome!$C$18,B90,1) ->  | D90: 0 | E90: 0 | G90: 33 | I90: 0 | J90: 0
B91: 34 | C91: =MID(Welcome!$C$18,B91,1) ->  | D91: 0 | E91: 0 | G91: 34 | I91: 0 | J91: 0
B92: 35 | C92: =MID(Welcome!$C$18,B92,1) ->  | D92: 0 | E92: 0 | G92: 35 | I92: 0 | J92: 0
B93: 36 | C93: =MID(Welcome!$C$18,B93,1) ->  | D93: 0 | E93: 0 | G93: 36 | I93: 0 | J93: 0
B94: 37 | C94: =MID(Welcome!$C$18,B94,1) ->  | D94: 0 | E94: 0 | G94: 37 | I94: 0 | J94: 0
B95: 38 | C95: =MID(Welcome!$C$18,B95,1) ->  | D95: 0 | E95: 0 | G95: 38 | I95: 0 | J95: 0
B96: 39 | C96: =MID(Welcome!$C$18,B96,1) ->  | D96: 0 | E96: 0 | G96: 39 | I96: 0 | J96: 0
B97: 40 | C97: =MID(Welcome!$C$18,B97,1) ->  | D97: 0 | E97: 0 | G97: 40 | I97: 0 | J97: 0
B98: 41 | C98: =MID(Welcome!$C$18,B98,1) ->  | D98: 0 | E98: 0 | G98: 41 | I98: 0 | J98: 0
B99: 42 | C99: =MID(Welcome!$C$18,B99,1) ->  | D99: 0 | E99: 0 | G99: 42 | I99: 0 | J99: 0
B100: 43 | C100: =MID(Welcome!$C$18,B100,1) ->  | D100: 0 | E100: 0 | G100: 43 | I100: 0 | J100: 0
B101: 44 | C101: =MID(Welcome!$C$18,B101,1) ->  | D101: 0 | E101: 0 | G101: 44 | I101: 0 | J101: 0
B102: 45 | C102: =MID(Welcome!$C$18,B102,1) ->  | D102: 0 | E102: 0 | G102: 45 | I102: 0 | J102: 0
B103: 46 | C103: =MID(Welcome!$C$18,B103,1) ->  | D103: 0 | E103: 0 | G103: 46 | I103: 0 | J103: 0
B104: 47 | C104: =MID(Welcome!$C$18,B104,1) ->  | D104: 0 | E104: 0 | G104: 47 | I104: 0 | J104: 0
B105: 48 | C105: =MID(Welcome!$C$18,B105,1) ->  | D105: 0 | E105: 0 | G105: 48 | I105: 0 | J105: 0
B106: 49 | C106: =MID(Welcome!$C$18,B106,1) ->  | D106: 0 | E106: 0 | G106: 49 | I106: 0 | J106: 0
B107: 50 | C107: =MID(Welcome!$C$18,B107,1) ->  | D107: 0 | E107: 0 | G107: 50 | I107: 0 | J107: 0

Sheet Wait (hidden)
F8: Please wait …
